{"text_format":"1","workbook":"xlsx","n_sheets":22,"sheets":["Intro","Setup","Players","Table","Stunty","GroupFixtures","GroupTable","Presentation","GroupMatrix","Matrix","Round1","Round2","Round3","Round4","Round5","Round6","Round7","Round8","Round9","NAF","Working","ChangeLog"],"not_rendered":{"charts":0,"images":0,"macros":1,"external_links":0,"defined_names":35,"comments":3,"pivot_tables":0},"unopened":[],"bounds":{"document_bytes":16777216,"sheet_cells":100000,"rows_first":2000,"rows_last":500,"rows_between":2000,"halvings":0,"cell_chars":16384,"cell_head_chars":4096},"cells_cut":0,"cells_raw":0,"read":"whole","date_system":"1900"}

{"sheet":"Intro","index":0,"n_rows":19,"n_cols":18,"rows_kept":19,"cut":false,"hidden":false,"merged":[]}
[]
[null,"Buttons for running a tournament:",null,null,null,null,null,null,null,null,null,null,null,null,null,null,null,"Setup Tabs"]
[null,null,null,null,null,null,null,null,null,null,null,null,null,null,null,null,null,"Presentation Tabs"]
[null,null,null,null,null,null,null,null,null,null,null,null,null,null,null,null,null,"Round Results"]
[null,null,null,null,null,null,null,null,null,null,null,null,null,null,null,null,null,"Other"]
[]
[]
[]
[]
[]
[]
[]
[]
[]
[]
[]
[]
[]
[null,"Buttons for practising:"]

{"sheet":"Setup","index":1,"n_rows":24,"n_cols":11,"rows_kept":24,"cut":false,"hidden":false,"merged":[]}
["SCORING SETUP",null,null,"Group/Ind Swiss?","Individual",null,"Individual Tie Breaks",null,null,"Group Tie Breaks"]
[null,null,null,null,null,null,"Player",null,null,"Group"]
["Points for…",null,null,"Name of First Bonus","Bonus1",null,"Points","Order",null,"Points","Order"]
["Win by at least 2 TD",2,null,"Name of Second Bonus","Bonus2",null,"TD For",null,null,"TD For"]
["Win by 1 TD",2,null,null,null,null,"TD Against",null,null,"TD Against"]
["Draw",1,null,null,null,null,"TD Net",2,null,"Net TDs",2]
["Lose by 1 TD",0,null,null,null,null,"Cas For",null,null,"Cas For"]
["Lose by at least 2 TD",0,null,null,null,null,"Cas Against",null,null,"Cas Against"]
[null,null,null,null,null,null,"Cas Net",3,null,"Net Cas",3]
["Bonus points for TD/Cas etc",null,null,"Test Individual Scoring System Here",null,null,{"$f":"Working!AG16","v":"Bonus1"},null,null,{"$f":"\"Group Total \"&Working!AG16","v":"Group Total Bonus1"}]
["Points per TD",0,null,"Your Score (required)",4,null,{"$f":"Working!AG17","v":"Bonus2"},null,null,{"$f":"\"Group Total \"&Working!AG17","v":"Group Total Bonus2"}]
["Max TD Bonus Pts",0,null,"Opponent Score (required)",3,null,"Wins",null,null,"Group Wins"]
["Points per Cas",0,null,"Your Cas (optional)",3,null,"Draws",null,null,"Groups Draws"]
["Max Cas Bonus Pts",0,null,{"$f":"\"Your \"&Working!AG16&\" (optional)\"","v":"Your Bonus1 (optional)"},1,null,"Losses",null,null,"Group Losses"]
[{"$f":"Working!AG16&\" Max Bonus Pts\"","v":"Bonus1 Max Bonus Pts"},0,null,{"$f":"\"Your \"&Working!AG17&\" (optional)\"","v":"Your Bonus2 (optional)"},2,null,"Opp Score",1,null,"Individual Wins"]
[{"$f":"Working!AG17&\" Max Bonus Pts\"","v":"Bonus2 Max Bonus Pts"},0,null,null,null,null,null,null,null,"Individual Draws"]
[null,null,null,"Your Points",{"$f":"fctScore(E11,E12,E13,E14,E15)","v":2},null,null,null,null,"Individual Losses"]
["Group Scoring Options",null,null,null,null,null,null,null,null,"Total Individual Points"]
["Points for a win",2,null,null,null,null,null,null,null,"Opponent Score",1]
["Points for a draw",1]
["Points for a loss",0]
["Points for a group win",200]
["Points for a group draw",100]
["Points for a group loss",0]

{"sheet":"Players","index":2,"n_rows":160,"n_cols":16,"rows_kept":160,"cut":false,"hidden":false,"merged":[]}
["Num","Display Name","NAF Name","NAF Number","Race","Group","Stunty","Adjustment",null,null,null,null,"Groups",null,"Team Size",4]
[{"$f":"IF(C2=\"\",\"\",MAX(A$1:A1)+1)","v":1},"a","a",18857,"Ogre",null,null,null,null,null,null,null,"A"]
[{"$f":"IF(C3=\"\",\"\",MAX(A$1:A2)+1)","v":2},"b","b",7809,"Nurgle",null,null,null,null,null,null,null,"B"]
[{"$f":"IF(C4=\"\",\"\",MAX(A$1:A3)+1)","v":3},"c","c",12001,"Halfling",null,null,null,null,null,null,null,"C"]
[{"$f":"IF(B5=\"\",\"\",MAX(A$1:A4)+1)","v":4},"d","d",15037,"Shambling Undead",null,null,null,null,null,null,null,"D"]
[{"$f":"IF(B6=\"\",\"\",MAX(A$1:A5)+1)","v":5},"e","e",8653,"Goblin",null,null,null,null,null,null,null,"E"]
[{"$f":"IF(C7=\"\",\"\",MAX(A$1:A6)+1)","v":6},"f","f",3607,"Shambling Undead",null,null,null,null,null,null,null,"F"]
[{"$f":"IF(C8=\"\",\"\",MAX(A$1:A7)+1)","v":7},"g","g",10062,"Shambling Undead",null,null,null,null,null,null,null,"G"]
[{"$f":"IF(C9=\"\",\"\",MAX(A$1:A8)+1)","v":8},"h","h",19752,"Daemons of Khorne",null,null,null,null,null,null,null,"H"]
[{"$f":"IF(C10=\"\",\"\",MAX(A$1:A9)+1)","v":9},"i","i",15631,"Bretonnian"]
[{"$f":"IF(B11=\"\",\"\",MAX(A$1:A10)+1)","v":10},"j","j",18159,"Skaven"]
[{"$f":"IF(B12=\"\",\"\",MAX(A$1:A11)+1)","v":11},"k","k",9695,"Black Orc"]
[{"$f":"IF(B13=\"\",\"\",MAX(A$1:A12)+1)","v":12},"l","l",1531,"Nurgle"]
[{"$f":"IF(B14=\"\",\"\",MAX(A$1:A13)+1)","v":13},"m","m",3738,"Chaos Chosen"]
[{"$f":"IF(C15=\"\",\"\",MAX(A$1:A14)+1)","v":14},"n","n",7609,"Old World Alliance"]
[{"$f":"IF(B16=\"\",\"\",MAX(A$1:A15)+1)","v":""}]
[{"$f":"IF(B17=\"\",\"\",MAX(A$1:A16)+1)","v":""}]
[{"$f":"IF(B18=\"\",\"\",MAX(A$1:A17)+1)","v":""}]
[{"$f":"IF(B19=\"\",\"\",MAX(A$1:A18)+1)","v":""}]
[{"$f":"IF(B20=\"\",\"\",MAX(A$1:A19)+1)","v":""}]
[{"$f":"IF(B21=\"\",\"\",MAX(A$1:A20)+1)","v":""}]
[{"$f":"IF(B22=\"\",\"\",MAX(A$1:A21)+1)","v":""}]
[{"$f":"IF(C23=\"\",\"\",MAX(A$1:A22)+1)","v":""}]
[{"$f":"IF(B24=\"\",\"\",MAX(A$1:A23)+1)","v":""}]
[{"$f":"IF(B25=\"\",\"\",MAX(A$1:A24)+1)","v":""}]
[{"$f":"IF(B26=\"\",\"\",MAX(A$1:A25)+1)","v":""}]
[{"$f":"IF(B27=\"\",\"\",MAX(A$1:A26)+1)","v":""}]
[{"$f":"IF(B28=\"\",\"\",MAX(A$1:A27)+1)","v":""}]
[{"$f":"IF(B29=\"\",\"\",MAX(A$1:A28)+1)","v":""}]
[{"$f":"IF(B30=\"\",\"\",MAX(A$1:A29)+1)","v":""}]
[{"$f":"IF(B31=\"\",\"\",MAX(A$1:A30)+1)","v":""}]
[{"$f":"IF(B32=\"\",\"\",MAX(A$1:A31)+1)","v":""}]
[{"$f":"IF(C33=\"\",\"\",MAX(A$1:A32)+1)","v":""}]
[{"$f":"IF(B34=\"\",\"\",MAX(A$1:A33)+1)","v":""}]
[{"$f":"IF(B35=\"\",\"\",MAX(A$1:A34)+1)","v":""}]
[{"$f":"IF(B36=\"\",\"\",MAX(A$1:A35)+1)","v":""}]
[{"$f":"IF(B37=\"\",\"\",MAX(A$1:A36)+1)","v":""}]
[{"$f":"IF(B38=\"\",\"\",MAX(A$1:A37)+1)","v":""}]
[{"$f":"IF(B39=\"\",\"\",MAX(A$1:A38)+1)","v":""}]
[{"$f":"IF(B40=\"\",\"\",MAX(A$1:A39)+1)","v":""}]
[{"$f":"IF(B41=\"\",\"\",MAX(A$1:A40)+1)","v":""}]
[{"$f":"IF(B42=\"\",\"\",MAX(A$1:A41)+1)","v":""}]
[{"$f":"IF(B43=\"\",\"\",MAX(A$1:A42)+1)","v":""}]
[{"$f":"IF(B44=\"\",\"\",MAX(A$1:A43)+1)","v":""}]
[{"$f":"IF(C45=\"\",\"\",MAX(A$1:A44)+1)","v":""}]
[{"$f":"IF(C46=\"\",\"\",MAX(A$1:A45)+1)","v":""}]
[{"$f":"IF(B47=\"\",\"\",MAX(A$1:A46)+1)","v":""}]
[{"$f":"IF(B48=\"\",\"\",MAX(A$1:A47)+1)","v":""}]
[{"$f":"IF(B49=\"\",\"\",MAX(A$1:A48)+1)","v":""}]
[{"$f":"IF(B50=\"\",\"\",MAX(A$1:A49)+1)","v":""}]
[{"$f":"IF(B51=\"\",\"\",MAX(A$1:A50)+1)","v":""}]
[{"$f":"IF(C52=\"\",\"\",MAX(A$1:A51)+1)","v":""}]
[{"$f":"IF(B53=\"\",\"\",MAX(A$1:A52)+1)","v":""}]
[{"$f":"IF(B54=\"\",\"\",MAX(A$1:A53)+1)","v":""}]
[{"$f":"IF(B55=\"\",\"\",MAX(A$1:A54)+1)","v":""}]
[{"$f":"IF(B56=\"\",\"\",MAX(A$1:A55)+1)","v":""}]
[{"$f":"IF(B57=\"\",\"\",MAX(A$1:A56)+1)","v":""}]
[{"$f":"IF(B58=\"\",\"\",MAX(A$1:A57)+1)","v":""}]
[{"$f":"IF(B59=\"\",\"\",MAX(A$1:A58)+1)","v":""}]
[{"$f":"IF(B60=\"\",\"\",MAX(A$1:A59)+1)","v":""}]
[{"$f":"IF(B61=\"\",\"\",MAX(A$1:A60)+1)","v":""}]
[{"$f":"IF(B62=\"\",\"\",MAX(A$1:A61)+1)","v":""}]
[{"$f":"IF(B63=\"\",\"\",MAX(A$1:A62)+1)","v":""}]
[{"$f":"IF(B64=\"\",\"\",MAX(A$1:A63)+1)","v":""}]
[{"$f":"IF(C65=\"\",\"\",MAX(A$1:A64)+1)","v":""}]
[{"$f":"IF(B66=\"\",\"\",MAX(A$1:A65)+1)","v":""}]
[{"$f":"IF(B67=\"\",\"\",MAX(A$1:A66)+1)","v":""}]
[{"$f":"IF(B68=\"\",\"\",MAX(A$1:A67)+1)","v":""}]
[{"$f":"IF(B69=\"\",\"\",MAX(A$1:A68)+1)","v":""}]
[{"$f":"IF(C70=\"\",\"\",MAX(A$1:A69)+1)","v":""}]
[{"$f":"IF(B71=\"\",\"\",MAX(A$1:A70)+1)","v":""}]
[{"$f":"IF(B72=\"\",\"\",MAX(A$1:A71)+1)","v":""}]
[{"$f":"IF(B73=\"\",\"\",MAX(A$1:A72)+1)","v":""}]
[{"$f":"IF(B74=\"\",\"\",MAX(A$1:A73)+1)","v":""}]
[{"$f":"IF(B75=\"\",\"\",MAX(A$1:A74)+1)","v":""}]
[{"$f":"IF(B76=\"\",\"\",MAX(A$1:A75)+1)","v":""}]
[{"$f":"IF(B77=\"\",\"\",MAX(A$1:A76)+1)","v":""}]
[{"$f":"IF(B78=\"\",\"\",MAX(A$1:A77)+1)","v":""}]
[{"$f":"IF(B79=\"\",\"\",MAX(A$1:A78)+1)","v":""}]
[{"$f":"IF(B80=\"\",\"\",MAX(A$1:A79)+1)","v":""}]
[{"$f":"IF(B81=\"\",\"\",MAX(A$1:A80)+1)","v":""}]
[{"$f":"IF(C82=\"\",\"\",MAX(A$1:A81)+1)","v":""}]
[{"$f":"IF(B83=\"\",\"\",MAX(A$1:A82)+1)","v":""}]
[{"$f":"IF(B84=\"\",\"\",MAX(A$1:A83)+1)","v":""}]
[{"$f":"IF(B85=\"\",\"\",MAX(A$1:A84)+1)","v":""}]
[{"$f":"IF(C86=\"\",\"\",MAX(A$1:A85)+1)","v":""}]
[{"$f":"IF(B87=\"\",\"\",MAX(A$1:A86)+1)","v":""}]
[{"$f":"IF(B88=\"\",\"\",MAX(A$1:A87)+1)","v":""}]
[{"$f":"IF(B89=\"\",\"\",MAX(A$1:A88)+1)","v":""}]
[{"$f":"IF(B90=\"\",\"\",MAX(A$1:A89)+1)","v":""}]
[{"$f":"IF(B91=\"\",\"\",MAX(A$1:A90)+1)","v":""}]
[{"$f":"IF(B92=\"\",\"\",MAX(A$1:A91)+1)","v":""}]
[{"$f":"IF(C93=\"\",\"\",MAX(A$1:A92)+1)","v":""}]
[{"$f":"IF(B94=\"\",\"\",MAX(A$1:A93)+1)","v":""}]
[{"$f":"IF(B95=\"\",\"\",MAX(A$1:A94)+1)","v":""}]
[{"$f":"IF(B96=\"\",\"\",MAX(A$1:A95)+1)","v":""}]
[{"$f":"IF(B97=\"\",\"\",MAX(A$1:A96)+1)","v":""}]
[{"$f":"IF(B98=\"\",\"\",MAX(A$1:A97)+1)","v":""}]
[{"$f":"IF(B99=\"\",\"\",MAX(A$1:A98)+1)","v":""}]
[{"$f":"IF(B100=\"\",\"\",MAX(A$1:A99)+1)","v":""}]
[{"$f":"IF(C101=\"\",\"\",MAX(A$1:A100)+1)","v":""}]
[{"$f":"IF(C102=\"\",\"\",MAX(A$1:A101)+1)","v":""}]
[{"$f":"IF(C103=\"\",\"\",MAX(A$1:A102)+1)","v":""}]
[{"$f":"IF(B104=\"\",\"\",MAX(A$1:A103)+1)","v":""}]
[{"$f":"IF(B105=\"\",\"\",MAX(A$1:A104)+1)","v":""}]
[{"$f":"IF(B106=\"\",\"\",MAX(A$1:A105)+1)","v":""}]
[{"$f":"IF(B107=\"\",\"\",MAX(A$1:A106)+1)","v":""}]
[{"$f":"IF(B108=\"\",\"\",MAX(A$1:A107)+1)","v":""}]
[{"$f":"IF(B109=\"\",\"\",MAX(A$1:A108)+1)","v":""}]
[{"$f":"IF(B110=\"\",\"\",MAX(A$1:A109)+1)","v":""}]
[{"$f":"IF(B111=\"\",\"\",MAX(A$1:A110)+1)","v":""}]
[{"$f":"IF(C112=\"\",\"\",MAX(A$1:A111)+1)","v":""}]
[{"$f":"IF(C113=\"\",\"\",MAX(A$1:A112)+1)","v":""}]
[{"$f":"IF(B114=\"\",\"\",MAX(A$1:A113)+1)","v":""}]
[{"$f":"IF(B115=\"\",\"\",MAX(A$1:A114)+1)","v":""}]
[{"$f":"IF(B116=\"\",\"\",MAX(A$1:A115)+1)","v":""}]
[{"$f":"IF(C117=\"\",\"\",MAX(A$1:A116)+1)","v":""}]
[{"$f":"IF(B118=\"\",\"\",MAX(A$1:A117)+1)","v":""}]
[{"$f":"IF(B119=\"\",\"\",MAX(A$1:A118)+1)","v":""}]
[{"$f":"IF(B120=\"\",\"\",MAX(A$1:A119)+1)","v":""}]
[{"$f":"IF(B121=\"\",\"\",MAX(A$1:A120)+1)","v":""}]
[{"$f":"IF(B122=\"\",\"\",MAX(A$1:A121)+1)","v":""}]
[{"$f":"IF(B123=\"\",\"\",MAX(A$1:A122)+1)","v":""}]
[{"$f":"IF(B124=\"\",\"\",MAX(A$1:A123)+1)","v":""}]
[{"$f":"IF(B125=\"\",\"\",MAX(A$1:A124)+1)","v":""}]
[{"$f":"IF(B126=\"\",\"\",MAX(A$1:A125)+1)","v":""}]
[{"$f":"IF(B127=\"\",\"\",MAX(A$1:A126)+1)","v":""}]
[{"$f":"IF(B128=\"\",\"\",MAX(A$1:A127)+1)","v":""}]
[{"$f":"IF(B129=\"\",\"\",MAX(A$1:A128)+1)","v":""}]
[{"$f":"IF(B130=\"\",\"\",MAX(A$1:A129)+1)","v":""}]
[{"$f":"IF(B131=\"\",\"\",MAX(A$1:A130)+1)","v":""}]
[{"$f":"IF(B132=\"\",\"\",MAX(A$1:A131)+1)","v":""}]
[{"$f":"IF(B133=\"\",\"\",MAX(A$1:A132)+1)","v":""}]
[{"$f":"IF(B134=\"\",\"\",MAX(A$1:A133)+1)","v":""}]
[{"$f":"IF(B135=\"\",\"\",MAX(A$1:A134)+1)","v":""}]
[{"$f":"IF(B136=\"\",\"\",MAX(A$1:A135)+1)","v":""}]
[{"$f":"IF(B137=\"\",\"\",MAX(A$1:A136)+1)","v":""}]
[{"$f":"IF(B138=\"\",\"\",MAX(A$1:A137)+1)","v":""}]
[{"$f":"IF(B139=\"\",\"\",MAX(A$1:A138)+1)","v":""}]
[{"$f":"IF(B140=\"\",\"\",MAX(A$1:A139)+1)","v":""}]
[{"$f":"IF(B141=\"\",\"\",MAX(A$1:A140)+1)","v":""}]
[{"$f":"IF(B142=\"\",\"\",MAX(A$1:A141)+1)","v":""}]
[{"$f":"IF(B143=\"\",\"\",MAX(A$1:A142)+1)","v":""}]
[{"$f":"IF(B144=\"\",\"\",MAX(A$1:A143)+1)","v":""}]
[{"$f":"IF(B145=\"\",\"\",MAX(A$1:A144)+1)","v":""}]
[{"$f":"IF(B146=\"\",\"\",MAX(A$1:A145)+1)","v":""}]
[{"$f":"IF(B147=\"\",\"\",MAX(A$1:A146)+1)","v":""}]
[{"$f":"IF(B148=\"\",\"\",MAX(A$1:A147)+1)","v":""}]
[{"$f":"IF(B149=\"\",\"\",MAX(A$1:A148)+1)","v":""}]
[{"$f":"IF(B150=\"\",\"\",MAX(A$1:A149)+1)","v":""}]
[{"$f":"IF(B151=\"\",\"\",MAX(A$1:A150)+1)","v":""}]
[{"$f":"IF(B152=\"\",\"\",MAX(A$1:A151)+1)","v":""}]
[{"$f":"IF(B153=\"\",\"\",MAX(A$1:A152)+1)","v":""}]
[{"$f":"IF(B154=\"\",\"\",MAX(A$1:A153)+1)","v":""}]
[{"$f":"IF(B155=\"\",\"\",MAX(A$1:A154)+1)","v":""}]
[{"$f":"IF(B156=\"\",\"\",MAX(A$1:A155)+1)","v":""}]
[{"$f":"IF(B157=\"\",\"\",MAX(A$1:A156)+1)","v":""}]
[{"$f":"IF(B158=\"\",\"\",MAX(A$1:A157)+1)","v":""}]
[{"$f":"IF(B159=\"\",\"\",MAX(A$1:A158)+1)","v":""}]
[{"$f":"IF(B160=\"\",\"\",MAX(A$1:A159)+1)","v":""}]

{"sheet":"Table","index":3,"n_rows":15,"n_cols":16,"rows_kept":15,"cut":false,"hidden":false,"merged":[]}
["Player","Points","TD For","TD Against","TD Net","Cas For","Cas Against","Cas Net","Bonus1","Bonus2","Wins","Draws","Losses","Opp Score",null,"Group"]
["d",2,2,2,0,2,1,1,1,0,null,1,null,2]
["c",2,2,2,0,1,0,1,2,3,null,1,null,2]
["b",2,2,2,0,1,2,-1,2,2,null,1,null,2]
["a",2,2,2,0,0,1,-1,3,1,null,1,null,2]
["n",2,3,0,3,3,1,2,2,0,1,null,null,0]
["h",2,3,0,3,0,2,-2,0,2,1,null,null,0]
["k",2,3,2,1,1,3,-2,3,2,1,null,null,0]
["e",1,1,1,0,2,2,0,1,2,null,1,null,1]
["i",1,1,1,0,2,2,0,1,2,null,1,null,1]
["l",0,2,3,-1,3,1,2,2,1,null,null,1,2]
["f",0,0,3,-3,2,0,2,2,0,null,null,1,2]
["m",0,0,3,-3,1,3,-2,2,2,null,null,1,2]
["j",-98,1,0,1,1,1,0,1,3,1,null,null,-100]
["g",-100,0,1,-1,1,1,0,3,1,null,null,1,-98]

{"sheet":"Stunty","index":4,"n_rows":1,"n_cols":16,"rows_kept":1,"cut":false,"hidden":false,"merged":[]}
["Player","Points","TD For","TD Against","TD Net","Cas For","Cas Against","Cas Net","Bonus1","Bonus2","Wins","Draws","Losses","Opp Score","Race","Group"]

{"sheet":"GroupFixtures","index":5,"n_rows":0,"n_cols":0,"rows_kept":0,"cut":false,"hidden":false,"merged":[]}

{"sheet":"GroupTable","index":6,"n_rows":0,"n_cols":0,"rows_kept":0,"cut":false,"hidden":false,"merged":[]}

{"sheet":"Presentation","index":7,"n_rows":183,"n_cols":9,"rows_kept":183,"cut":false,"hidden":false,"merged":[]}
["Round",1]
[]
["Board","Home","Away","Home Team","Away Team","Home TD","Away TD","Home Cas","Away Cas"]
[1,{"$f":"IF(A4=\"\",\"\",OFFSET(INDIRECT(\"Round\"&Round&\"!B1\"),$A4,0))","v":"d"},{"$f":"IF(A4=\"\",\"\",OFFSET(INDIRECT(\"Round\"&Round&\"!c1\"),$A4,0))","v":"b"},{"$f":"IF(A4=\"\",\"\",OFFSET(INDIRECT(\"Round\"&Round&\"!n1\"),$A4,0))","v":0},{"$f":"IF(A4=\"\",\"\",OFFSET(INDIRECT(\"Round\"&Round&\"!o1\"),$A4,0))","v":0}]
[{"$f":"IF(A4=\"\",A3+1,IF(ROUNDUP(A4/TeamSize,0)=A4/TeamSize,\"\",A4+1))","v":2},"a","c",0,0]
[3,"n","m",0,0]
[4,"i","e",0,0]
["","","","",""]
[5,"l","k",0,0]
[6,"f","h",0,0]
[7,"j","g",0,0]
[8,0,0,0,0]
["","","","",""]
[9,0,0,0,0]
[10,0,0,0,0]
[11,0,0,0,0]
[12,0,0,0,0]
["","","","",""]
[13,0,0,0,0]
[14,0,0,0,0]
[15,0,0,0,0]
[16,0,0,0,0]
["","","","",""]
[17,0,0,0,0]
[18,0,0,0,0]
[19,0,0,0,0]
[20,0,0,0,0]
["","","","",""]
[21,0,0,0,0]
[22,0,0,0,0]
[23,0,0,0,0]
[24,0,0,0,0]
["","","","",""]
[25,0,0,0,0]
[26,0,0,0,0]
[27,{"$f":"IF(A36=\"\",\"\",OFFSET(INDIRECT(\"Round\"&Round&\"!B1\"),$A36,0))","v":0},{"$f":"IF(A36=\"\",\"\",OFFSET(INDIRECT(\"Round\"&Round&\"!c1\"),$A36,0))","v":0},{"$f":"IF(A36=\"\",\"\",OFFSET(INDIRECT(\"Round\"&Round&\"!n1\"),$A36,0))","v":0},{"$f":"IF(A36=\"\",\"\",OFFSET(INDIRECT(\"Round\"&Round&\"!o1\"),$A36,0))","v":0}]
[{"$f":"IF(A36=\"\",A35+1,IF(ROUNDUP(A36/TeamSize,0)=A36/TeamSize,\"\",A36+1))","v":28},0,0,0,0]
["","","","",""]
[29,0,0,0,0]
[30,0,0,0,0]
[31,0,0,0,0]
[32,0,0,0,0]
["","","","",""]
[33,0,0,0,0]
[34,0,0,0,0]
[35,0,0,0,0]
[36,0,0,0,0]
["","","","",""]
[37,0,0,0,0]
[38,0,0,0,0]
[39,0,0,0,0]
[40,0,0,0,0]
["","","","",""]
[41,0,0,0,0]
[42,0,0,0,0]
[43,0,0,0,0]
[44,0,0,0,0]
["","","","",""]
[45,0,0,0,0]
[46,0,0,0,0]
[47,0,0,0,0]
[48,0,0,0,0]
["","","","",""]
[49,0,0,0,0]
[50,0,0,0,0]
[51,0,0,0,0]
[52,0,0,0,0]
["",{"$f":"IF(A68=\"\",\"\",OFFSET(INDIRECT(\"Round\"&Round&\"!B1\"),$A68,0))","v":""},{"$f":"IF(A68=\"\",\"\",OFFSET(INDIRECT(\"Round\"&Round&\"!c1\"),$A68,0))","v":""},{"$f":"IF(A68=\"\",\"\",OFFSET(INDIRECT(\"Round\"&Round&\"!n1\"),$A68,0))","v":""},{"$f":"IF(A68=\"\",\"\",OFFSET(INDIRECT(\"Round\"&Round&\"!o1\"),$A68,0))","v":""}]
[{"$f":"IF(A68=\"\",A67+1,IF(ROUNDUP(A68/TeamSize,0)=A68/TeamSize,\"\",A68+1))","v":53},0,0,0,0]
[54,0,0,0,0]
[55,0,0,0,0]
[56,0,0,0,0]
["","","","",""]
[57,0,0,0,0]
[58,0,0,0,0]
[59,0,0,0,0]
[60,0,0,0,0]
["","","","",""]
[61,0,0,0,0]
[62,0,0,0,0]
[63,0,0,0,0]
[64,0,0,0,0]
["","","","",""]
[65,0,0,0,0]
[66,0,0,0,0]
[67,0,0,0,0]
[68,0,0,0,0]
["","","","",""]
[69,0,0,0,0]
[70,0,0,0,0]
[71,0,0,0,0]
[72,0,0,0,0]
["","","","",""]
[73,0,0,0,0]
[74,0,0,0,0]
[75,0,0,0,0]
[76,0,0,0,0]
["","","","",""]
[77,0,0,0,0]
[78,{"$f":"IF(A100=\"\",\"\",OFFSET(INDIRECT(\"Round\"&Round&\"!B1\"),$A100,0))","v":0},{"$f":"IF(A100=\"\",\"\",OFFSET(INDIRECT(\"Round\"&Round&\"!c1\"),$A100,0))","v":0},{"$f":"IF(A100=\"\",\"\",OFFSET(INDIRECT(\"Round\"&Round&\"!n1\"),$A100,0))","v":0},{"$f":"IF(A100=\"\",\"\",OFFSET(INDIRECT(\"Round\"&Round&\"!o1\"),$A100,0))","v":0}]
[{"$f":"IF(A100=\"\",A99+1,IF(ROUNDUP(A100/TeamSize,0)=A100/TeamSize,\"\",A100+1))","v":79},0,0,0,0]
[80,0,0,0,0]
["","","","",""]
[81,0,0,0,0]
[82,0,0,0,0]
[83,0,0,0,0]
[84,0,0,0,0]
["","","","",""]
[85,0,0,0,0]
[86,0,0,0,0]
[87,0,0,0,0]
[88,0,0,0,0]
["","","","",""]
[89,0,0,0,0]
[90,0,0,0,0]
[91,0,0,0,0]
[92,0,0,0,0]
["","","","",""]
[93,0,0,0,0]
[94,0,0,0,0]
[95,0,0,0,0]
[96,0,0,0,0]
["","","","",""]
[97,0,0,0,0]
[98,0,0,0,0]
[99,0,0,0,0]
[100,0,0,0,0]
["","","","",""]
[101,0,0,0,0]
[102,0,0,0,0]
[103,0,0,0,0]
[104,{"$f":"IF(A132=\"\",\"\",OFFSET(INDIRECT(\"Round\"&Round&\"!B1\"),$A132,0))","v":0},{"$f":"IF(A132=\"\",\"\",OFFSET(INDIRECT(\"Round\"&Round&\"!c1\"),$A132,0))","v":0},{"$f":"IF(A132=\"\",\"\",OFFSET(INDIRECT(\"Round\"&Round&\"!n1\"),$A132,0))","v":0},{"$f":"IF(A132=\"\",\"\",OFFSET(INDIRECT(\"Round\"&Round&\"!o1\"),$A132,0))","v":0}]
[{"$f":"IF(A132=\"\",A131+1,IF(ROUNDUP(A132/TeamSize,0)=A132/TeamSize,\"\",A132+1))","v":""},"","","",""]
[105,0,0,0,0]
[106,0,0,0,0]
[107,0,0,0,0]
[108,0,0,0,0]
["","","","",""]
[109,0,0,0,0]
[110,0,0,0,0]
[111,0,0,0,0]
[112,0,0,0,0]
["","","","",""]
[113,0,0,0,0]
[114,0,0,0,0]
[115,0,0,0,0]
[116,0,0,0,0]
["","","","",""]
[117,0,0,0,0]
[118,0,0,0,0]
[119,0,0,0,0]
[120,0,0,0,0]
["","","","",""]
[121,0,0,0,0]
[122,0,0,0,0]
[123,0,0,0,0]
[124,0,0,0,0]
["","","","",""]
[125,0,0,0,0]
[126,0,0,0,0]
[127,0,0,0,0]
[128,0,0,0,0]
["","","","",""]
[129,{"$f":"IF(A164=\"\",\"\",OFFSET(INDIRECT(\"Round\"&Round&\"!B1\"),$A164,0))","v":0},{"$f":"IF(A164=\"\",\"\",OFFSET(INDIRECT(\"Round\"&Round&\"!c1\"),$A164,0))","v":0},{"$f":"IF(A164=\"\",\"\",OFFSET(INDIRECT(\"Round\"&Round&\"!n1\"),$A164,0))","v":0},{"$f":"IF(A164=\"\",\"\",OFFSET(INDIRECT(\"Round\"&Round&\"!o1\"),$A164,0))","v":0}]
[{"$f":"IF(A164=\"\",A163+1,IF(ROUNDUP(A164/TeamSize,0)=A164/TeamSize,\"\",A164+1))","v":130},0,0,0,0]
[131,0,0,0,0]
[132,0,0,0,0]
["","","","",""]
[133,0,0,0,0]
[134,0,0,0,0]
[135,0,0,0,0]
[136,0,0,0,0]
["","","","",""]
[137,0,0,0,0]
[138,0,0,0,0]
[139,0,0,0,0]
[140,0,0,0,0]
["","","","",""]
[141,0,0,0,0]
[142,0,0,0,0]
[143,0,0,0,0]
[144,0,0,0,0]
["","","","",""]

{"sheet":"GroupMatrix","index":8,"n_rows":0,"n_cols":0,"rows_kept":0,"cut":false,"hidden":false,"merged":[]}

{"sheet":"Matrix","index":9,"n_rows":129,"n_cols":129,"rows_kept":129,"cut":false,"hidden":false,"merged":[]}
[null,"a","b","c","d","e","f","g","h","i","j","k","l","m","n",null,null,null,null,null,null,null,null,null,null,null,null,null,null,null,null,null,null,null,null,null,null,null,null,null,null,null,null,null,null,null,null,null,null,null,null,null,null,null,null,null,null,null,null,null,null,null,null,null,null,null,null,null,null,null,null,null,null,null,null,null,null,null,null,null,null,null,null,null,null,null,null,null,null,null,null,null,null,null,null,null,null,null,null,null,"Driesfield ","kfoged ","Podfrey ","valkohukka ","Skoberget ","brocCooli ","Ploppy_McPloppy ","BiBi ","Matt le fou ","Candlejack ","Purdindas ","JJ ","Wilzif ","noraal ","cz ","Loki ","gninocker ","Mewash ","Leonek ","JamesEs ","Duke_Luthor_Von_Hawkfire ","Jokaero ","Duckwing ","Justicium ","Liam ","Endalos ","bothun ","Inforthepain ","sigu70 "]
["a",null,null,"R1, 1 - 1",null,null,null,null,null,null,null,null,null,null,null,null,null,null,null,null,null,null,null,null,null,null,null,null,null,null,null,null,null,null,null,null,null,null,null,null,null,null,null,null,null,null,null,null,null,null,null,null,null,null,null,null,null,null,null,null,null,null,null,null,null,null,null,null,null,null,null,null,null,null,null,null,null,null,null,null,null,null,null,null,null,null,null,null,null,null,null,null,null,null,null,null,null,null,null,null,"R1, 1 - 0","R5, 1 - 0","R1, 1 - 0","R3, 0 - 1",null,"R4, 1 - 0","R6, 1 - 0",null,"R1, 0.5 - 0.5","R4, 4 - 18","R2, 0 - 1",null,"R4, 1 - 0",null,"R5, 0 - 1","R7, 0.5 - 0.5","R1, 1 - 0","R8, 1 - 0","R3, 0 - 1","R3, 1 - 0","R3, 23 - 5",null,"R3, 0 - 1",null,"R1, 0 - 1",null,null,"R3, 1 - 0","R5, 1 - 0"]
["b",null,null,null,"R1, 1 - 1",null,null,null,null,null,null,null,null,null,null,null,null,null,null,null,null,null,null,null,null,null,null,null,null,null,null,null,null,null,null,null,null,null,null,null,null,null,null,null,null,null,null,null,null,null,null,null,null,null,null,null,null,null,null,null,null,null,null,null,null,null,null,null,null,null,null,null,null,null,null,null,null,null,null,null,null,null,null,null,null,null,null,null,null,null,null,null,null,null,null,null,null,null,null,null,null,"R1, 0.5 - 0.5",null,"R4, 0.5 - 0.5","R5, 0.5 - 0.5","R2, 0 - 1","R1, 1 - 0",null,null,"R4, 0.5 - 0.5",null,"R3, 1 - 0",null,"R1, 0.5 - 0.5",null,"R3, 0.5 - 0.5","R1, 2 - 0",null,null,null,"R1, 1 - 0","R3, 0 - 1","R5, 1 - 0",null,null,"R4, 5 - 22","R6, 0 - 1"]
["c","R1, 1 - 1",null,null,null,null,null,null,null,null,null,null,null,null,null,null,null,null,null,null,null,null,null,null,null,null,null,null,null,null,null,null,null,null,null,null,null,null,null,null,null,null,null,null,null,null,null,null,null,null,null,null,null,null,null,null,null,null,null,null,null,null,null,null,null,null,null,null,null,null,null,null,null,null,null,null,null,null,null,null,null,null,null,null,null,null,null,null,null,null,null,null,null,null,null,null,null,null,null,null,"R1, 0.5 - 0.5","R4, 0.5 - 0.5","R1, 0 - 1","R2, 0.5 - 0.5",null,"R3, 0 - 1","R3, 1 - 0","R4, 0 - 1","R4, 0.5 - 0.5","R5, 3 - 20","R4, 0 - 1",null,null,"R5, 0 - 1","R6, 1 - 0","R6, 1 - 0","R1, 1 - 0","R3, 1 - 0","R2, 0 - 1","R1, 0.5 - 0.5","R2, 0 - 1",null,null,"R2, 0 - 1","R2, 22 - 6","R5, 0.5 - 0.5","R5, 1 - 0","R2, 0 - 1"]
["d",null,"R1, 1 - 1",null,null,null,null,null,null,null,null,null,null,null,null,null,null,null,null,null,null,null,null,null,null,null,null,null,null,null,null,null,null,null,null,null,null,null,null,null,null,null,null,null,null,null,null,null,null,null,null,null,null,null,null,null,null,null,null,null,null,null,null,null,null,null,null,null,null,null,null,null,null,null,null,null,null,null,null,null,null,null,null,null,null,null,null,null,null,null,null,null,null,null,null,null,null,null,null,null,"R4, 0 - 1","R5, 0.5 - 0.5","R1, 0 - 1","R1, 1 - 0","R1, 0.5 - 0.5","R2, 0 - 1","R4, 0.5 - 0.5","R3, 0.5 - 0.5","R7, 1 - 0",null,null,"R6, 0 - 1","R1, 0 - 1","R3, 0.5 - 0.5","R6, 0.5 - 0.5","R4, 0.5 - 0.5","R1, 1 - 0","R4, 0.5 - 0.5",null,"R2, 1 - 0","R1, 0.5 - 0.5","R3, 0 - 1",null,"R3, 21 - 4","R2, 0 - 1","R6, 0.5 - 0.5",null,"R3, 1 - 0","R6, 19 - 3"]
["e",null,null,null,null,null,null,null,null,"R1, 1 - 1",null,null,null,null,null,null,null,null,null,null,null,null,null,null,null,null,null,null,null,null,null,null,null,null,null,null,null,null,null,null,null,null,null,null,null,null,null,null,null,null,null,null,null,null,null,null,null,null,null,null,null,null,null,null,null,null,null,null,null,null,null,null,null,null,null,null,null,null,null,null,null,null,null,null,null,null,null,null,null,null,null,null,null,null,null,null,null,null,null,null,null,null,"R5, 0 - 1","R2, 1 - 0","R1, 0.5 - 0.5","R2, 0.5 - 0.5",null,"R1, 0 - 1","R4, 1 - 0","R5, 1 - 0","R4, 0 - 1","R1, 0 - 1","R5, 0 - 1","R3, 0.5 - 0.5","R1, 0 - 1","R1, 0.5 - 0.5",null,null,"R5, 0 - 1","R1, 0.5 - 0.5",null,null,"R6, 1 - 0","R3, 1 - 0",null,null,"R2, 1 - 0",null,"R6, 0 - 1"]
["f",null,null,null,null,null,null,null,"R1, 0 - 2",null,null,null,null,null,null,null,null,null,null,null,null,null,null,null,null,null,null,null,null,null,null,null,null,null,null,null,null,null,null,null,null,null,null,null,null,null,null,null,null,null,null,null,null,null,null,null,null,null,null,null,null,null,null,null,null,null,null,null,null,null,null,null,null,null,null,null,null,null,null,null,null,null,null,null,null,null,null,null,null,null,null,null,null,null,null,null,null,null,null,null,"R5, 1 - 0","R1, 0 - 1","R5, 0.5 - 0.5","R4, 0 - 1","R6, 0.5 - 0.5",null,"R4, 0.5 - 0.5",null,"R4, 0.5 - 0.5","R6, 0.5 - 0.5","R1, 0.5 - 0.5","R3, 1 - 0","R3, 1 - 0","R6, 0.5 - 0.5","R3, 0.5 - 0.5","R2, 1 - 0","R2, 1 - 0","R3, 0.5 - 0.5","R1, 1 - 0","R7, 1 - 0","R3, 1 - 0","R5, 0.5 - 0.5",null,null,"R3, 1 - 0","R2, 1 - 0","R5, 0 - 1"]
["g",null,null,null,null,null,null,null,null,null,"R1, 0 - 2",null,null,null,null,null,null,null,null,null,null,null,null,null,null,null,null,null,null,null,null,null,null,null,null,null,null,null,null,null,null,null,null,null,null,null,null,null,null,null,null,null,null,null,null,null,null,null,null,null,null,null,null,null,null,null,null,null,null,null,null,null,null,null,null,null,null,null,null,null,null,null,null,null,null,null,null,null,null,null,null,null,null,null,null,null,null,null,null,null,"R1, 1 - 0",null,"R4, 0 - 1","R1, 1 - 0","R3, 1 - 0","R1, 1 - 0",null,"R5, 0.5 - 0.5",null,"R3, 0 - 1","R7, 0 - 1","R4, 1 - 0",null,"R2, 1 - 0",null,"R1, 0 - 1","R5, 1 - 0","R1, 1 - 0","R2, 0 - 1",null,"R1, 0.5 - 0.5",null,null,"R7, 0 - 1",null,"R1, 0 - 2","R5, 0.5 - 0.5",null,"R2, 0 - 1"]
["h",null,null,null,null,null,"R1, 2 - 0",null,null,null,null,null,null,null,null,null,null,null,null,null,null,null,null,null,null,null,null,null,null,null,null,null,null,null,null,null,null,null,null,null,null,null,null,null,null,null,null,null,null,null,null,null,null,null,null,null,null,null,null,null,null,null,null,null,null,null,null,null,null,null,null,null,null,null,null,null,null,null,null,null,null,null,null,null,null,null,null,null,null,null,null,null,null,null,null,null,null,null,null,null,"R1, 0 - 1","R1, 1 - 0","R1, 0.5 - 0.5","R5, 0 - 1",null,null,"R3, 0 - 1","R7, 0.5 - 0.5",null,"R1, 1 - 0",null,"R4, 0 - 1","R4, 0 - 1","R1, 0 - 1","R2, 1 - 0",null,"R3, 0 - 1",null,"R2, 0.5 - 0.5",null,null,null,"R2, 1 - 0","R4, 19 - 4","R5, 0.5 - 0.5","R2, 0.5 - 0.5",null,"R6, 0.5 - 0.5","R3, 1 - 0"]
["i",null,null,null,null,"R1, 1 - 1",null,null,null,null,null,null,null,null,null,null,null,null,null,null,null,null,null,null,null,null,null,null,null,null,null,null,null,null,null,null,null,null,null,null,null,null,null,null,null,null,null,null,null,null,null,null,null,null,null,null,null,null,null,null,null,null,null,null,null,null,null,null,null,null,null,null,null,null,null,null,null,null,null,null,null,null,null,null,null,null,null,null,null,null,null,null,null,null,null,null,null,null,null,null,"R4, 1 - 0",null,"R1, 0.5 - 0.5","R3, 0 - 1","R1, 1 - 0","R2, 1 - 0","R2, 0.5 - 0.5","R2, 1 - 0","R2, 1 - 0","R1, 0.5 - 0.5","R1, 0.5 - 0.5","R2, 0.5 - 0.5","R5, 0 - 1",null,"R1, 1 - 0","R6, 1 - 0","R6, 0.5 - 0.5",null,null,"R1, 0.5 - 0.5","R2, 0 - 1","R3, 0.5 - 0.5","R1, 0.5 - 0.5","R1, 0.5 - 0.5",null,"R3, 1 - 0","R4, 1 - 0","R5, 0.5 - 0.5","R1, 1 - 0"]
["j",null,null,null,null,null,null,"R1, 2 - 0",null,null,null,null,null,null,null,null,null,null,null,null,null,null,null,null,null,null,null,null,null,null,null,null,null,null,null,null,null,null,null,null,null,null,null,null,null,null,null,null,null,null,null,null,null,null,null,null,null,null,null,null,null,null,null,null,null,null,null,null,null,null,null,null,null,null,null,null,null,null,null,null,null,null,null,null,null,null,null,null,null,null,null,null,null,null,null,null,null,null,null,null,null,"R1, 1 - 0","R1, 1 - 0","R4, 1 - 0","R1, 0 - 1","R2, 1 - 0","R1, 0.5 - 0.5","R6, 0.5 - 0.5","R1, 0 - 1","R3, 1 - 0",null,"R2, 0.5 - 0.5","R2, 0.5 - 0.5","R1, 0.5 - 0.5","R2, 1 - 0","R6, 1 - 0","R7, 0.5 - 0.5","R1, 0.5 - 0.5",null,"R2, 1 - 0",null,null,"R5, 1 - 0","R5, 0 - 1",null,"R1, 0.5 - 0.5","R1, 0 - 1","R1, 0.5 - 0.5","R4, 1 - 0"]
["k",null,null,null,null,null,null,null,null,null,null,null,"R1, 2 - 0",null,null,null,null,null,null,null,null,null,null,null,null,null,null,null,null,null,null,null,null,null,null,null,null,null,null,null,null,null,null,null,null,null,null,null,null,null,null,null,null,null,null,null,null,null,null,null,null,null,null,null,null,null,null,null,null,null,null,null,null,null,null,null,null,null,null,null,null,null,null,null,null,null,null,null,null,null,null,null,null,null,null,null,null,null,null,null,"R1, 1 - 0",null,"R8, 0 - 1","R1, 0.5 - 0.5","R3, 1 - 0","R3, 0 - 1","R3, 0.5 - 0.5","R1, 1 - 0",null,"R2, 0.5 - 0.5","R2, 1 - 0","R1, 1 - 0",null,"R4, 20 - 3","R2, 1 - 0",null,"R2, 1 - 0",null,"R1, 0.5 - 0.5",null,null,"R1, 0.5 - 0.5",null,"R3, 1 - 0","R1, 1 - 0",null,"R1, 0 - 1"]
["l",null,null,null,null,null,null,null,null,null,null,"R1, 0 - 2",null,null,null,null,null,null,null,null,null,null,null,null,null,null,null,null,null,null,null,null,null,null,null,null,null,null,null,null,null,null,null,null,null,null,null,null,null,null,null,null,null,null,null,null,null,null,null,null,null,null,null,null,null,null,null,null,null,null,null,null,null,null,null,null,null,null,null,null,null,null,null,null,null,null,null,null,null,null,null,null,null,null,null,null,null,null,null,null,"R4, 0.5 - 0.5",null,null,"R1, 0.5 - 0.5","R1, 0.5 - 0.5","R1, 0 - 1","R2, 0.5 - 0.5","R4, 0 - 1","R3, 0 - 1","R2, 0 - 1","R3, 0.5 - 0.5","R2, 0.5 - 0.5",null,"R2, 1 - 0","R1, 1 - 1","R8, 0.5 - 0.5","R1, 1 - 0",null,null,"R4, 0 - 1","R2, 0 - 1","R3, 0.5 - 0.5",null,null,"R4, 0 - 1","R5, 0 - 1","R1, 1 - 0","R5, 0 - 1","R1, 1 - 0"]
["m",null,null,null,null,null,null,null,null,null,null,null,null,null,"R1, 0 - 2",null,null,null,null,null,null,null,null,null,null,null,null,null,null,null,null,null,null,null,null,null,null,null,null,null,null,null,null,null,null,null,null,null,null,null,null,null,null,null,null,null,null,null,null,null,null,null,null,null,null,null,null,null,null,null,null,null,null,null,null,null,null,null,null,null,null,null,null,null,null,null,null,null,null,null,null,null,null,null,null,null,null,null,null,null,null,"R2, 0 - 1",null,"R1, 0.5 - 0.5","R4, 0 - 1",null,"R1, 0 - 1","R6, 1 - 0","R2, 1 - 0",null,null,null,"R2, 1 - 0","R2, 6 - 22","R6, 0.5 - 0.5",null,null,"R5, 0.5 - 0.5","R7, 0 - 1","R2, 0 - 1","R1, 1 - 0","R5, 0.5 - 0.5",null,"R1, 0.5 - 0.5","R1, 0.5 - 0.5","R6, 20 - 3","R1, 0 - 1","R1, 0 - 1"]
["n",null,null,null,null,null,null,null,null,null,null,null,null,"R1, 2 - 0",null,null,null,null,null,null,null,null,null,null,null,null,null,null,null,null,null,null,null,null,null,null,null,null,null,null,null,null,null,null,null,null,null,null,null,null,null,null,null,null,null,null,null,null,null,null,null,null,null,null,null,null,null,null,null,null,null,null,null,null,null,null,null,null,null,null,null,null,null,null,null,null,null,null,null,null,null,null,null,null,null,null,null,null,null,null,"R1, 0 - 1","R1, 0.5 - 0.5","R1, 2 - 0",null,null,"R3, 0.5 - 0.5","R2, 1 - 0",null,"R3, 1 - 0","R1, 0 - 1","R1, 0.5 - 0.5",null,"R2, 1 - 0","R1, 0.5 - 0.5","R3, 0.5 - 0.5","R1, 1 - 0",null,"R2, 0.5 - 0.5","R2, 0 - 1","R6, 0 - 1",null,"R1, 0.5 - 0.5",null,"R4, 0 - 1",null,"R1, 0.5 - 0.5","R3, 1 - 0","R8, 0 - 1"]
[null,null,null,null,null,null,null,null,null,null,null,null,null,null,null,null,null,null,null,null,null,null,null,null,null,null,null,null,null,null,null,null,null,null,null,null,null,null,null,null,null,null,null,null,null,null,null,null,null,null,null,null,null,null,null,null,null,null,null,null,null,null,null,null,null,null,null,null,null,null,null,null,null,null,null,null,null,null,null,null,null,null,null,null,null,null,null,null,null,null,null,null,null,null,null,null,null,null,null,null,"R1, 0.5 - 0.5","R4, 0 - 1","R1, 0.5 - 0.5",null,"R2, 0 - 1","R1, 0 - 1","R2, 19 - 3","R2, 0 - 1","R2, 1 - 0","R2, 1 - 0","R2, 1 - 0","R1, 1 - 0","R3, 0 - 1",null,null,"R5, 0.5 - 0.5","R2, 0 - 1","R1, 1 - 0","R2, 1 - 0","R7, 1 - 0",null,"R7, 1 - 0","R1, 0.5 - 0.5","R1, 1 - 0","R1, 0.5 - 0.5",null,null,"R3, 0.5 - 0.5"]
[null,null,null,null,null,null,null,null,null,null,null,null,null,null,null,null,null,null,null,null,null,null,null,null,null,null,null,null,null,null,null,null,null,null,null,null,null,null,null,null,null,null,null,null,null,null,null,null,null,null,null,null,null,null,null,null,null,null,null,null,null,null,null,null,null,null,null,null,null,null,null,null,null,null,null,null,null,null,null,null,null,null,null,null,null,null,null,null,null,null,null,null,null,null,null,null,null,null,null,null,"R1, 1 - 0","R1, 0.5 - 0.5","R4, 0.5 - 0.5",null,"R1, 0 - 1","R3, 0.5 - 0.5",null,"R2, 0.5 - 0.5",null,null,null,null,"R1, 0 - 1","R4, 0 - 1","R1, 1 - 0","R2, 0.5 - 0.5",null,null,"R1, 0.5 - 0.5","R1, 0 - 1",null,null,"R1, 1 - 0","R2, 0 - 1","R1, 1 - 0","R1, 1 - 0","R5, 0.5 - 0.5"]
[null,null,null,null,null,null,null,null,null,null,null,null,null,null,null,null,null,null,null,null,null,null,null,null,null,null,null,null,null,null,null,null,null,null,null,null,null,null,null,null,null,null,null,null,null,null,null,null,null,null,null,null,null,null,null,null,null,null,null,null,null,null,null,null,null,null,null,null,null,null,null,null,null,null,null,null,null,null,null,null,null,null,null,null,null,null,null,null,null,null,null,null,null,null,null,null,null,null,null,null,"R2, 0 - 1","R2, 0.5 - 0.5","R6, 1 - 0","R1, 1 - 0","R1, 1 - 0","R3, 0 - 1","R4, 1 - 0","R6, 0.5 - 0.5","R1, 0 - 1","R4, 1 - 0",null,"R1, 1 - 0","R2, 0.5 - 0.5",null,null,"R1, 0 - 1","R3, 1 - 0","R3, 1 - 0","R1, 0.5 - 0.5",null,"R2, 0 - 1",null,null,"R2, 1 - 0","R1, 0 - 1",null,null,"R1, 0.5 - 0.5","R2, 12 - 10"]
[null,null,null,null,null,null,null,null,null,null,null,null,null,null,null,null,null,null,null,null,null,null,null,null,null,null,null,null,null,null,null,null,null,null,null,null,null,null,null,null,null,null,null,null,null,null,null,null,null,null,null,null,null,null,null,null,null,null,null,null,null,null,null,null,null,null,null,null,null,null,null,null,null,null,null,null,null,null,null,null,null,null,null,null,null,null,null,null,null,null,null,null,null,null,null,null,null,null,null,null,"R2, 0 - 1","R2, 1 - 0",null,"R2, 1 - 0","R3, 0.5 - 0.5",null,"R1, 0 - 1",null,"R5, 0 - 1","R4, 0.5 - 0.5","R2, 0 - 1",null,"R3, 1 - 0",null,"R4, 0 - 1",null,"R1, 1 - 0","R1, 0.5 - 0.5","R2, 0 - 1","R1, 1 - 0","R1, 0 - 1","R5, 0.5 - 0.5",null,"R1, 0 - 1","R5, 0 - 1","R1, 1 - 0",null,null,"R3, 1 - 0"]
[null,null,null,null,null,null,null,null,null,null,null,null,null,null,null,null,null,null,null,null,null,null,null,null,null,null,null,null,null,null,null,null,null,null,null,null,null,null,null,null,null,null,null,null,null,null,null,null,null,null,null,null,null,null,null,null,null,null,null,null,null,null,null,null,null,null,null,null,null,null,null,null,null,null,null,null,null,null,null,null,null,null,null,null,null,null,null,null,null,null,null,null,null,null,null,null,null,null,null,null,"R3, 1 - 0","R3, 0.5 - 0.5","R6, 1 - 0","R5, 1 - 0",null,null,null,"R1, 1 - 1","R3, 1 - 0","R2, 0 - 1","R4, 0.5 - 0.5","R5, 1 - 0","R3, 1 - 0","R3, 1 - 0","R1, 0.5 - 0.5","R2, 0.5 - 0.5","R4, 0.5 - 0.5","R1, 0.5 - 0.5","R4, 0 - 1",null,null,null,null,"R1, 0.5 - 0.5",null,"R1, 0 - 1","R2, 1 - 0","R3, 1 - 0"]
[null,null,null,null,null,null,null,null,null,null,null,null,null,null,null,null,null,null,null,null,null,null,null,null,null,null,null,null,null,null,null,null,null,null,null,null,null,null,null,null,null,null,null,null,null,null,null,null,null,null,null,null,null,null,null,null,null,null,null,null,null,null,null,null,null,null,null,null,null,null,null,null,null,null,null,null,null,null,null,null,null,null,null,null,null,null,null,null,null,null,null,null,null,null,null,null,null,null,null,null,"R5, 1 - 0","R3, 0 - 1","R7, 1 - 0","R6, 0 - 1","R4, 1 - 0",null,"R1, 0.5 - 0.5","R4, 0.5 - 0.5",null,"R5, 1 - 0","R3, 0.5 - 0.5","R4, 0 - 1","R1, 1 - 0","R5, 0.5 - 0.5","R2, 1 - 0","R1, 1 - 0",null,"R5, 0 - 1","R1, 1 - 0","R1, 0.5 - 0.5",null,null,"R2, 0 - 1",null,"R6, 1 - 0","R1, 0.5 - 0.5","R1, 1 - 0",null,"R2, 1 - 0"]
[null,null,null,null,null,null,null,null,null,null,null,null,null,null,null,null,null,null,null,null,null,null,null,null,null,null,null,null,null,null,null,null,null,null,null,null,null,null,null,null,null,null,null,null,null,null,null,null,null,null,null,null,null,null,null,null,null,null,null,null,null,null,null,null,null,null,null,null,null,null,null,null,null,null,null,null,null,null,null,null,null,null,null,null,null,null,null,null,null,null,null,null,null,null,null,null,null,null,null,null,"R3, 22 - 4","R2, 1 - 0","R2, 0 - 1",null,"R1, 0.5 - 0.5","R2, 1 - 0","R1, 0 - 1",null,null,"R3, 0 - 1",null,"R4, 1 - 0","R3, 1 - 0","R1, 1 - 0","R3, 0.5 - 0.5","R5, 0.5 - 0.5","R3, 0.5 - 0.5",null,null,"R4, 1 - 0","R1, 0 - 1","R1, 0.5 - 0.5","R2, 1 - 0",null,"R1, 0 - 1",null,null,null,"R1, 1 - 0"]
[null,null,null,null,null,null,null,null,null,null,null,null,null,null,null,null,null,null,null,null,null,null,null,null,null,null,null,null,null,null,null,null,null,null,null,null,null,null,null,null,null,null,null,null,null,null,null,null,null,null,null,null,null,null,null,null,null,null,null,null,null,null,null,null,null,null,null,null,null,null,null,null,null,null,null,null,null,null,null,null,null,null,null,null,null,null,null,null,null,null,null,null,null,null,null,null,null,null,null,null,"R4, 1 - 0","R1, 0 - 1","R3, 0.5 - 0.5","R2, 1 - 0","R5, 0 - 1","R1, 0.5 - 0.5",null,"R5, 0 - 1","R2, 0 - 1","R6, 0 - 1",null,"R3, 0 - 1",null,"R1, 0.5 - 0.5","R1, 1 - 0","R2, 0 - 1","R1, 0.5 - 0.5","R2, 0 - 1","R1, 0.5 - 0.5","R3, 1 - 0","R4, 0.5 - 0.5","R1, 1 - 0",null,null,"R5, 0.5 - 0.5","R2, 0.5 - 0.5",null,"R1, 1 - 0"]
[null,null,null,null,null,null,null,null,null,null,null,null,null,null,null,null,null,null,null,null,null,null,null,null,null,null,null,null,null,null,null,null,null,null,null,null,null,null,null,null,null,null,null,null,null,null,null,null,null,null,null,null,null,null,null,null,null,null,null,null,null,null,null,null,null,null,null,null,null,null,null,null,null,null,null,null,null,null,null,null,null,null,null,null,null,null,null,null,null,null,null,null,null,null,null,null,null,null,null,null,null,null,"R4, 1 - 0","R3, 0.5 - 0.5","R3, 0.5 - 0.5","R6, 1 - 0",null,"R2, 0 - 1","R3, 0 - 1","R3, 1 - 0",null,"R4, 0.5 - 0.5","R1, 1 - 0","R2, 0 - 1","R3, 1 - 0","R1, 0.5 - 0.5","R1, 1 - 0",null,"R2, 0.5 - 0.5","R1, 0.5 - 0.5","R3, 0.5 - 0.5","R2, 0.5 - 0.5","R1, 0 - 1",null,"R2, 0 - 1",null,"R1, 1 - 0","R5, 0 - 1","R4, 1 - 0"]
[null,null,null,null,null,null,null,null,null,null,null,null,null,null,null,null,null,null,null,null,null,null,null,null,null,null,null,null,null,null,null,null,null,null,null,null,null,null,null,null,null,null,null,null,null,null,null,null,null,null,null,null,null,null,null,null,null,null,null,null,null,null,null,null,null,null,null,null,null,null,null,null,null,null,null,null,null,null,null,null,null,null,null,null,null,null,null,null,null,null,null,null,null,null,null,null,null,null,null,null,"R3, 0 - 1","R4, 0.5 - 0.5","R5, 0 - 1","R3, 0.5 - 0.5","R2, 0 - 1","R4, 0 - 1","R2, 0.5 - 0.5","R3, 0 - 1",null,null,"R5, 1 - 0","R1, 1 - 0",null,"R1, 1 - 0",null,"R3, 1 - 0","R2, 1 - 0","R2, 0 - 1",null,"R1, 0.5 - 0.5","R4, 0.5 - 0.5",null,"R1, 0.5 - 0.5","R1, 0 - 1",null,null,null,"R2, 0.5 - 0.5"]
[null,null,null,null,null,null,null,null,null,null,null,null,null,null,null,null,null,null,null,null,null,null,null,null,null,null,null,null,null,null,null,null,null,null,null,null,null,null,null,null,null,null,null,null,null,null,null,null,null,null,null,null,null,null,null,null,null,null,null,null,null,null,null,null,null,null,null,null,null,null,null,null,null,null,null,null,null,null,null,null,null,null,null,null,null,null,null,null,null,null,null,null,null,null,null,null,null,null,null,null,"R1, 1 - 0","R2, 0 - 1",null,null,null,null,"R3, 0 - 1","R1, 1 - 0","R2, 1 - 0",null,"R3, 1 - 0",null,null,"R1, 1 - 0",null,"R5, 1 - 0","R3, 0.5 - 0.5",null,"R2, 1 - 0",null,"R3, 0 - 1","R1, 0.5 - 0.5",null,"R6, 0 - 1","R2, 0 - 1","R1, 1 - 0",null,"R1, 0.5 - 0.5","R2, 0.5 - 0.5"]
[null,null,null,null,null,null,null,null,null,null,null,null,null,null,null,null,null,null,null,null,null,null,null,null,null,null,null,null,null,null,null,null,null,null,null,null,null,null,null,null,null,null,null,null,null,null,null,null,null,null,null,null,null,null,null,null,null,null,null,null,null,null,null,null,null,null,null,null,null,null,null,null,null,null,null,null,null,null,null,null,null,null,null,null,null,null,null,null,null,null,null,null,null,null,null,null,null,null,null,null,"R6, 0.5 - 0.5",null,"R2, 1 - 0","R7, 0 - 1","R1, 0 - 1",null,"R1, 0.5 - 0.5","R5, 1 - 0",null,"R2, 0.5 - 0.5","R4, 1 - 0","R2, 1 - 0","R3, 0.5 - 0.5","R1, 21 - 4","R3, 0.5 - 0.5",null,null,"R1, 1 - 0","R3, 0.5 - 0.5","R5, 1 - 0","R2, 0 - 1","R1, 0.5 - 0.5","R5, 0.5 - 0.5","R5, 23 - 7","R1, 0 - 1",null,null,"R6, 0.5 - 0.5","R2, 0.5 - 0.5"]
[null,null,null,null,null,null,null,null,null,null,null,null,null,null,null,null,null,null,null,null,null,null,null,null,null,null,null,null,null,null,null,null,null,null,null,null,null,null,null,null,null,null,null,null,null,null,null,null,null,null,null,null,null,null,null,null,null,null,null,null,null,null,null,null,null,null,null,null,null,null,null,null,null,null,null,null,null,null,null,null,null,null,null,null,null,null,null,null,null,null,null,null,null,null,null,null,null,null,null,null,null,"R2, 0 - 1",null,"R1, 0 - 1","R2, 1 - 0","R2, 0 - 1","R3, 0 - 1",null,"R2, 0 - 1","R2, 0 - 1","R1, 1 - 0",null,"R1, 0 - 1","R5, 0 - 1",null,null,null,"R2, 1 - 0","R3, 0.5 - 0.5","R5, 0 - 1","R1, 0 - 1","R6, 0.5 - 0.5","R6, 0.5 - 0.5","R3, 0.5 - 0.5","R3, 1 - 0","R1, 0.5 - 0.5",null,null,"R2, 0 - 1"]
[null,null,null,null,null,null,null,null,null,null,null,null,null,null,null,null,null,null,null,null,null,null,null,null,null,null,null,null,null,null,null,null,null,null,null,null,null,null,null,null,null,null,null,null,null,null,null,null,null,null,null,null,null,null,null,null,null,null,null,null,null,null,null,null,null,null,null,null,null,null,null,null,null,null,null,null,null,null,null,null,null,null,null,null,null,null,null,null,null,null,null,null,null,null,null,null,null,null,null,null,null,null,null,"R2, 1 - 0",null,null,"R1, 1 - 0",null,"R3, 0.5 - 0.5",null,"R8, 0.5 - 0.5","R6, 0 - 1","R2, 0 - 1","R1, 2 - 0",null,null,"R4, 0 - 1","R3, 0 - 1","R5, 0 - 1","R1, 0.5 - 0.5",null,"R1, 0.5 - 0.5","R6, 0.5 - 0.5",null,"R3, 0.5 - 0.5",null,"R2, 0 - 1",null,"R1, 0 - 1"]
[null,null,null,null,null,null,null,null,null,null,null,null,null,null,null,null,null,null,null,null,null,null,null,null,null,null,null,null,null,null,null,null,null,null,null,null,null,null,null,null,null,null,null,null,null,null,null,null,null,null,null,null,null,null,null,null,null,null,null,null,null,null,null,null,null,null,null,null,null,null,null,null,null,null,null,null,null,null,null,null,null,null,null,null,null,null,null,null,null,null,null,null,null,null,null,null,null,null,null,null,"R2, 0 - 1",null,"R3, 0 - 1",null,"R4, 1 - 0","R3, 0.5 - 0.5","R2, 0 - 1","R2, 0.5 - 0.5","R1, 0.5 - 0.5","R1, 0.5 - 0.5","R3, 0.5 - 0.5","R5, 0.5 - 0.5",null,"R3, 1 - 0","R5, 0 - 1","R1, 0.5 - 0.5",null,null,"R6, 0 - 1","R2, 0 - 1","R5, 0.5 - 0.5","R3, 0.5 - 0.5","R1, 1 - 0","R8, 0.5 - 0.5","R1, 0.5 - 0.5","R6, 1 - 0",null,"R1, 1 - 0"]
[null,null,null,null,null,null,null,null,null,null,null,null,null,null,null,null,null,null,null,null,null,null,null,null,null,null,null,null,null,null,null,null,null,null,null,null,null,null,null,null,null,null,null,null,null,null,null,null,null,null,null,null,null,null,null,null,null,null,null,null,null,null,null,null,null,null,null,null,null,null,null,null,null,null,null,null,null,null,null,null,null,null,null,null,null,null,null,null,null,null,null,null,null,null,null,null,null,null,null,null,null,"R1, 1 - 0","R4, 0.5 - 0.5","R3, 1 - 20","R7, 0 - 1","R1, 1 - 0","R8, 0.5 - 0.5","R2, 1 - 0",null,null,"R2, 0.5 - 0.5","R3, 1 - 0","R1, 0 - 1","R7, 1 - 0",null,"R3, 1 - 0","R2, 0.5 - 0.5","R5, 1 - 0","R3, 0.5 - 0.5","R1, 6 - 20","R4, 1 - 0","R4, 1 - 0","R2, 0.5 - 0.5","R1, 0 - 1","R6, 0.5 - 0.5","R2, 1 - 0","R2, 0.5 - 0.5","R2, 0.5 - 0.5","R3, 1 - 0"]
[null,null,null,null,null,null,null,null,null,null,null,null,null,null,null,null,null,null,null,null,null,null,null,null,null,null,null,null,null,null,null,null,null,null,null,null,null,null,null,null,null,null,null,null,null,null,null,null,null,null,null,null,null,null,null,null,null,null,null,null,null,null,null,null,null,null,null,null,null,null,null,null,null,null,null,null,null,null,null,null,null,null,null,null,null,null,null,null,null,null,null,null,null,null,null,null,null,null,null,null,"R4, 1 - 0",null,"R3, 0.5 - 0.5",null,"R5, 0 - 1",null,null,"R3, 1 - 0","R2, 3 - 18","R2, 1 - 0","R1, 1 - 0","R3, 0 - 1",null,null,"R2, 0.5 - 0.5",null,"R3, 0.5 - 0.5",null,null,null,"R2, 1 - 0","R2, 0 - 1","R1, 0 - 1","R2, 0.5 - 0.5",null,"R2, 0.5 - 0.5","R1, 0 - 1","R2, 0.5 - 0.5","R6, 0 - 1"]
[null,null,null,null,null,null,null,null,null,null,null,null,null,null,null,null,null,null,null,null,null,null,null,null,null,null,null,null,null,null,null,null,null,null,null,null,null,null,null,null,null,null,null,null,null,null,null,null,null,null,null,null,null,null,null,null,null,null,null,null,null,null,null,null,null,null,null,null,null,null,null,null,null,null,null,null,null,null,null,null,null,null,null,null,null,null,null,null,null,null,null,null,null,null,null,null,null,null,null,null,null,"R4, 0 - 1","R2, 1 - 0",null,null,"R1, 0.5 - 0.5",null,"R2, 0.5 - 0.5","R5, 1 - 0","R3, 0.5 - 0.5","R5, 1 - 0","R6, 20 - 5",null,"R3, 0 - 1",null,"R2, 0 - 1","R1, 0 - 1","R5, 0 - 1",null,"R3, 0 - 1","R4, 0 - 1","R1, 0 - 1","R2, 1 - 0",null,"R2, 0.5 - 0.5","R1, 1 - 0","R6, 0.5 - 0.5","R6, 0.5 - 0.5","R1, 0.5 - 0.5"]
[null,null,null,null,null,null,null,null,null,null,null,null,null,null,null,null,null,null,null,null,null,null,null,null,null,null,null,null,null,null,null,null,null,null,null,null,null,null,null,null,null,null,null,null,null,null,null,null,null,null,null,null,null,null,null,null,null,null,null,null,null,null,null,null,null,null,null,null,null,null,null,null,null,null,null,null,null,null,null,null,null,null,null,null,null,null,null,null,null,null,null,null,null,null,null,null,null,null,null,null,"R3, 1 - 0","R1, 0 - 1",null,null,"R5, 0 - 1","R6, 1 - 0",null,"R2, 0.5 - 0.5","R5, 0 - 1","R2, 0.5 - 0.5","R1, 0.5 - 0.5",null,"R6, 1 - 0","R2, 0.5 - 0.5",null,null,"R1, 0.5 - 0.5","R4, 0.5 - 0.5",null,"R1, 1 - 0","R5, 1 - 0","R4, 0.5 - 0.5","R1, 0 - 1","R4, 0.5 - 0.5","R6, 0 - 1",null,null,"R5, 0.5 - 0.5","R3, 0.5 - 0.5"]
[null,null,null,null,null,null,null,null,null,null,null,null,null,null,null,null,null,null,null,null,null,null,null,null,null,null,null,null,null,null,null,null,null,null,null,null,null,null,null,null,null,null,null,null,null,null,null,null,null,null,null,null,null,null,null,null,null,null,null,null,null,null,null,null,null,null,null,null,null,null,null,null,null,null,null,null,null,null,null,null,null,null,null,null,null,null,null,null,null,null,null,null,null,null,null,null,null,null,null,null,null,"R8, 0.5 - 0.5","R4, 1 - 0",null,null,"R1, 1 - 0","R7, 0.5 - 0.5","R1, 0 - 1","R2, 1 - 0","R1, 1 - 0",null,null,"R1, 0.5 - 0.5","R5, 0 - 1","R3, 1 - 0","R4, 0 - 1","R1, 0 - 1",null,"R4, 0.5 - 0.5","R2, 0.5 - 0.5","R4, 0.5 - 0.5","R1, 0 - 1","R4, 3 - 18","R1, 0 - 1","R6, 1 - 0",null,"R4, 0 - 1","R1, 1 - 0","R5, 0.5 - 0.5"]
[null,null,null,null,null,null,null,null,null,null,null,null,null,null,null,null,null,null,null,null,null,null,null,null,null,null,null,null,null,null,null,null,null,null,null,null,null,null,null,null,null,null,null,null,null,null,null,null,null,null,null,null,null,null,null,null,null,null,null,null,null,null,null,null,null,null,null,null,null,null,null,null,null,null,null,null,null,null,null,null,null,null,null,null,null,null,null,null,null,null,null,null,null,null,null,null,null,null,null,null,null,"R4, 1 - 0","R1, 0.5 - 0.5",null,null,"R3, 1 - 0","R1, 0.5 - 0.5","R6, 0.5 - 0.5","R1, 1 - 0",null,"R6, 0.5 - 0.5","R7, 0.5 - 0.5","R2, 0.5 - 0.5","R3, 0 - 1","R4, 0 - 1","R6, 0 - 1","R1, 0.5 - 0.5","R1, 1 - 0","R4, 0 - 1","R3, 0.5 - 0.5","R5, 0 - 1","R6, 0.5 - 0.5","R1, 0.5 - 0.5","R1, 0 - 1","R5, 0.5 - 0.5","R4, 0.5 - 0.5","R6, 0.5 - 0.5","R4, 0 - 1"]
[null,null,null,null,null,null,null,null,null,null,null,null,null,null,null,null,null,null,null,null,null,null,null,null,null,null,null,null,null,null,null,null,null,null,null,null,null,null,null,null,null,null,null,null,null,null,null,null,null,null,null,null,null,null,null,null,null,null,null,null,null,null,null,null,null,null,null,null,null,null,null,null,null,null,null,null,null,null,null,null,null,null,null,null,null,null,null,null,null,null,null,null,null,null,null,null,null,null,null,null,"R1, 0 - 1","R6, 1 - 0","R5, 0.5 - 0.5",null,"R6, 20 - 5","R1, 1 - 1","R2, 0 - 1","R5, 0 - 1","R1, 23 - 3","R1, 1 - 0","R5, 0 - 1",null,"R1, 0.5 - 0.5","R1, 0 - 1","R2, 22 - 3","R1, 0 - 1","R4, 1 - 0","R3, 1 - 0","R5, 0 - 1","R4, 20 - 4","R2, 0.5 - 0.5","R1, 0 - 1","R1, 1 - 0",null,"R1, 1 - 0","R3, 1 - 0","R2, 19 - 5",null,"R1, 1 - 0"]
[null,null,null,null,null,null,null,null,null,null,null,null,null,null,null,null,null,null,null,null,null,null,null,null,null,null,null,null,null,null,null,null,null,null,null,null,null,null,null,null,null,null,null,null,null,null,null,null,null,null,null,null,null,null,null,null,null,null,null,null,null,null,null,null,null,null,null,null,null,null,null,null,null,null,null,null,null,null,null,null,null,null,null,null,null,null,null,null,null,null,null,null,null,null,null,null,null,null,null,null,null,null,null,"R5, 0.5 - 0.5","R1, 0 - 1","R5, 0 - 1",null,"R2, 0 - 1","R6, 0 - 1","R1, 1 - 0","R1, 0 - 1",null,null,"R1, 1 - 0","R4, 0.5 - 0.5","R3, 0.5 - 0.5","R2, 0 - 1",null,null,"R4, 0.5 - 0.5","R1, 1 - 0",null,"R4, 0 - 1","R5, 0.5 - 0.5","R5, 0 - 1","R3, 1 - 0","R1, 0.5 - 0.5","R1, 0 - 1"]
[null,null,null,null,null,null,null,null,null,null,null,null,null,null,null,null,null,null,null,null,null,null,null,null,null,null,null,null,null,null,null,null,null,null,null,null,null,null,null,null,null,null,null,null,null,null,null,null,null,null,null,null,null,null,null,null,null,null,null,null,null,null,null,null,null,null,null,null,null,null,null,null,null,null,null,null,null,null,null,null,null,null,null,null,null,null,null,null,null,null,null,null,null,null,null,null,null,null,null,null,"R4, 0.5 - 0.5",null,"R5, 18 - 2","R1, 0.5 - 0.5",null,null,null,"R4, 19 - 2","R6, 0 - 1","R6, 0 - 1",null,"R2, 0.5 - 0.5",null,"R4, 1 - 0","R1, 1 - 0","R5, 0 - 1","R3, 0 - 1","R4, 1 - 0","R2, 1 - 0",null,"R1, 1 - 0","R5, 0 - 1","R8, 1 - 0","R1, 1 - 0",null,"R6, 1 - 0","R1, 0 - 1","R3, 1 - 0","R1, 0.5 - 0.5"]
[null,null,null,null,null,null,null,null,null,null,null,null,null,null,null,null,null,null,null,null,null,null,null,null,null,null,null,null,null,null,null,null,null,null,null,null,null,null,null,null,null,null,null,null,null,null,null,null,null,null,null,null,null,null,null,null,null,null,null,null,null,null,null,null,null,null,null,null,null,null,null,null,null,null,null,null,null,null,null,null,null,null,null,null,null,null,null,null,null,null,null,null,null,null,null,null,null,null,null,null,"R5, 0.5 - 0.5","R4, 0 - 1",null,null,"R1, 0 - 1","R2, 0.5 - 0.5","R5, 1 - 0","R1, 1 - 0",null,"R1, 9 - 10",null,"R4, 0 - 1","R6, 0.5 - 0.5",null,"R4, 0.5 - 0.5","R1, 0 - 1","R5, 0.5 - 0.5",null,"R3, 0.5 - 0.5","R3, 1 - 0",null,"R1, 1 - 0","R5, 1 - 0","R3, 0 - 1","R4, 0.5 - 0.5",null,"R1, 0 - 1","R1, 1 - 0","R3, 0 - 1"]
[null,null,null,null,null,null,null,null,null,null,null,null,null,null,null,null,null,null,null,null,null,null,null,null,null,null,null,null,null,null,null,null,null,null,null,null,null,null,null,null,null,null,null,null,null,null,null,null,null,null,null,null,null,null,null,null,null,null,null,null,null,null,null,null,null,null,null,null,null,null,null,null,null,null,null,null,null,null,null,null,null,null,null,null,null,null,null,null,null,null,null,null,null,null,null,null,null,null,null,null,null,"R3, 0.5 - 0.5","R4, 0 - 1",null,null,null,"R1, 0 - 1","R3, 1 - 0",null,"R4, 1 - 0","R1, 0 - 1","R1, 0 - 1","R1, 0 - 1",null,"R5, 1 - 0","R4, 0.5 - 0.5","R2, 0 - 1",null,"R1, 0.5 - 0.5","R4, 0.5 - 0.5",null,"R1, 0 - 1","R1, 0.5 - 0.5","R3, 1 - 0","R1, 0 - 1","R1, 0 - 1","R5, 0.5 - 0.5",null,"R4, 0 - 1"]
[null,null,null,null,null,null,null,null,null,null,null,null,null,null,null,null,null,null,null,null,null,null,null,null,null,null,null,null,null,null,null,null,null,null,null,null,null,null,null,null,null,null,null,null,null,null,null,null,null,null,null,null,null,null,null,null,null,null,null,null,null,null,null,null,null,null,null,null,null,null,null,null,null,null,null,null,null,null,null,null,null,null,null,null,null,null,null,null,null,null,null,null,null,null,null,null,null,null,null,null,"R1, 0.5 - 0.5",null,null,"R6, 1 - 0",null,"R2, 20 - 3","R2, 0.5 - 0.5",null,null,"R1, 1 - 0","R1, 0 - 1","R1, 0 - 1","R1, 0.5 - 0.5","R5, 0 - 1",null,"R3, 0 - 1","R6, 0 - 1","R4, 0.5 - 0.5","R6, 0 - 1",null,null,"R2, 1 - 0",null,"R1, 1 - 0","R6, 0 - 1","R2, 0.5 - 0.5","R1, 0.5 - 0.5","R1, 1 - 1"]
[null,null,null,null,null,null,null,null,null,null,null,null,null,null,null,null,null,null,null,null,null,null,null,null,null,null,null,null,null,null,null,null,null,null,null,null,null,null,null,null,null,null,null,null,null,null,null,null,null,null,null,null,null,null,null,null,null,null,null,null,null,null,null,null,null,null,null,null,null,null,null,null,null,null,null,null,null,null,null,null,null,null,null,null,null,null,null,null,null,null,null,null,null,null,null,null,null,null,null,null,"R4, 0 - 1","R3, 0.5 - 0.5","R1, 1 - 0","R5, 1 - 0","R1, 0 - 1","R1, 0.5 - 0.5","R1, 1 - 0","R1, 0 - 1",null,null,null,"R1, 0 - 1","R2, 0.5 - 0.5","R3, 1 - 0","R8, 1 - 0",null,null,"R2, 0.5 - 0.5","R6, 0.5 - 0.5","R5, 0 - 1","R2, 0.5 - 0.5","R2, 1 - 0","R1, 1 - 0","R6, 0.5 - 0.5","R1, 0 - 1","R1, 0 - 1","R2, 1 - 0","R2, 0.5 - 0.5","R5, 0 - 1"]
[null,null,null,null,null,null,null,null,null,null,null,null,null,null,null,null,null,null,null,null,null,null,null,null,null,null,null,null,null,null,null,null,null,null,null,null,null,null,null,null,null,null,null,null,null,null,null,null,null,null,null,null,null,null,null,null,null,null,null,null,null,null,null,null,null,null,null,null,null,null,null,null,null,null,null,null,null,null,null,null,null,null,null,null,null,null,null,null,null,null,null,null,null,null,null,null,null,null,null,null,"R5, 1 - 0","R6, 0 - 1",null,"R6, 0.5 - 0.5","R4, 0 - 1",null,"R7, 0 - 1",null,"R5, 1 - 0","R1, 0 - 1","R1, 0.5 - 0.5",null,"R1, 0.5 - 0.5","R6, 0 - 1",null,"R5, 1 - 0","R2, 1 - 0",null,null,"R3, 0 - 1","R2, 1 - 0",null,"R1, 2 - 0",null,"R3, 1 - 0","R3, 0.5 - 0.5","R2, 1 - 0","R6, 0.5 - 0.5","R2, 0 - 1"]
[null,null,null,null,null,null,null,null,null,null,null,null,null,null,null,null,null,null,null,null,null,null,null,null,null,null,null,null,null,null,null,null,null,null,null,null,null,null,null,null,null,null,null,null,null,null,null,null,null,null,null,null,null,null,null,null,null,null,null,null,null,null,null,null,null,null,null,null,null,null,null,null,null,null,null,null,null,null,null,null,null,null,null,null,null,null,null,null,null,null,null,null,null,null,null,null,null,null,null,null,null,null,"R4, 0.5 - 0.5",null,"R6, 0.5 - 0.5","R3, 0.5 - 0.5",null,"R1, 1 - 0","R4, 0.5 - 0.5",null,"R1, 1 - 0",null,null,"R6, 1 - 0","R1, 0.5 - 0.5","R4, 0.5 - 0.5","R3, 0 - 1","R5, 1 - 0","R2, 1 - 0","R2, 1 - 0",null,"R5, 1 - 0","R4, 1 - 0","R2, 1 - 0","R3, 0 - 1","R1, 0.5 - 0.5","R2, 1 - 0","R1, 1 - 0"]
[null,null,null,null,null,null,null,null,null,null,null,null,null,null,null,null,null,null,null,null,null,null,null,null,null,null,null,null,null,null,null,null,null,null,null,null,null,null,null,null,null,null,null,null,null,null,null,null,null,null,null,null,null,null,null,null,null,null,null,null,null,null,null,null,null,null,null,null,null,null,null,null,null,null,null,null,null,null,null,null,null,null,null,null,null,null,null,null,null,null,null,null,null,null,null,null,null,null,null,null,"R1, 0 - 2","R6, 0.5 - 0.5",null,"R4, 1 - 0","R2, 0.5 - 0.5","R1, 0 - 1","R1, 0 - 1",null,"R4, 0 - 1",null,null,null,"R1, 1 - 0",null,"R2, 1 - 0",null,null,null,"R3, 1 - 0","R3, 0.5 - 0.5","R6, 0.5 - 0.5","R1, 0 - 1",null,"R2, 1 - 0","R4, 0 - 1","R4, 0.5 - 0.5","R8, 0 - 1","R2, 0 - 1"]
[null,null,null,null,null,null,null,null,null,null,null,null,null,null,null,null,null,null,null,null,null,null,null,null,null,null,null,null,null,null,null,null,null,null,null,null,null,null,null,null,null,null,null,null,null,null,null,null,null,null,null,null,null,null,null,null,null,null,null,null,null,null,null,null,null,null,null,null,null,null,null,null,null,null,null,null,null,null,null,null,null,null,null,null,null,null,null,null,null,null,null,null,null,null,null,null,null,null,null,null,"R6, 0.5 - 0.5",null,"R5, 0.5 - 0.5","R1, 0.5 - 0.5","R2, 0 - 1","R6, 0.5 - 0.5",null,null,"R1, 0.5 - 0.5","R3, 0 - 1","R2, 0.5 - 0.5","R1, 0 - 1",null,"R2, 0.5 - 0.5","R7, 0 - 1",null,null,"R4, 0.5 - 0.5",null,"R2, 1 - 0","R5, 0.5 - 0.5","R7, 1 - 0",null,"R2, 1 - 0","R2, 0 - 1",null,"R3, 0.5 - 0.5","R3, 0 - 1","R1, 1 - 0"]
[null,null,null,null,null,null,null,null,null,null,null,null,null,null,null,null,null,null,null,null,null,null,null,null,null,null,null,null,null,null,null,null,null,null,null,null,null,null,null,null,null,null,null,null,null,null,null,null,null,null,null,null,null,null,null,null,null,null,null,null,null,null,null,null,null,null,null,null,null,null,null,null,null,null,null,null,null,null,null,null,null,null,null,null,null,null,null,null,null,null,null,null,null,null,null,null,null,null,null,null,"R1, 0 - 1",null,null,null,null,"R1, 0.5 - 0.5","R1, 1 - 0",null,"R5, 1 - 0",null,"R2, 0 - 1",null,"R1, 0 - 1","R2, 1 - 0",null,null,"R5, 0.5 - 0.5","R6, 1 - 0","R4, 1 - 0","R2, 0 - 1","R3, 0.5 - 0.5",null,"R2, 0.5 - 0.5","R1, 1 - 0",null,null,null,null,"R2, 1 - 0"]
[null,null,null,null,null,null,null,null,null,null,null,null,null,null,null,null,null,null,null,null,null,null,null,null,null,null,null,null,null,null,null,null,null,null,null,null,null,null,null,null,null,null,null,null,null,null,null,null,null,null,null,null,null,null,null,null,null,null,null,null,null,null,null,null,null,null,null,null,null,null,null,null,null,null,null,null,null,null,null,null,null,null,null,null,null,null,null,null,null,null,null,null,null,null,null,null,null,null,null,null,null,"R1, 0 - 1","R6, 1 - 0",null,null,null,null,"R4, 0 - 1","R8, 1 - 0",null,"R1, 1 - 0","R1, 0.5 - 0.5",null,"R4, 0 - 1","R3, 0 - 1","R6, 0 - 1","R2, 0 - 1",null,"R3, 1 - 0",null,null,"R2, 0.5 - 0.5",null,"R2, 1 - 0","R5, 0 - 1","R7, 0.5 - 0.5","R6, 0 - 1","R2, 0.5 - 0.5","R4, 0.5 - 0.5"]
[null,null,null,null,null,null,null,null,null,null,null,null,null,null,null,null,null,null,null,null,null,null,null,null,null,null,null,null,null,null,null,null,null,null,null,null,null,null,null,null,null,null,null,null,null,null,null,null,null,null,null,null,null,null,null,null,null,null,null,null,null,null,null,null,null,null,null,null,null,null,null,null,null,null,null,null,null,null,null,null,null,null,null,null,null,null,null,null,null,null,null,null,null,null,null,null,null,null,null,null,"R5, 1 - 0",null,"R3, 0 - 1","R3, 1 - 0","R3, 0.5 - 0.5","R1, 0 - 1","R2, 0.5 - 0.5","R3, 1 - 0",null,"R5, 0 - 1","R1, 0 - 1",null,"R1, 0.5 - 0.5","R6, 0.5 - 0.5","R1, 0 - 1",null,null,"R6, 10 - 11","R2, 1 - 0","R2, 0 - 1","R2, 1 - 0","R1, 1 - 0",null,"R4, 1 - 0","R4, 0 - 1",null,null,"R1, 0 - 1","R3, 1 - 0"]
[null,null,null,null,null,null,null,null,null,null,null,null,null,null,null,null,null,null,null,null,null,null,null,null,null,null,null,null,null,null,null,null,null,null,null,null,null,null,null,null,null,null,null,null,null,null,null,null,null,null,null,null,null,null,null,null,null,null,null,null,null,null,null,null,null,null,null,null,null,null,null,null,null,null,null,null,null,null,null,null,null,null,null,null,null,null,null,null,null,null,null,null,null,null,null,null,null,null,null,null,null,"R1, 0 - 1","R1, 0.5 - 0.5",null,null,"R1, 1 - 0",null,null,"R1, 1 - 0",null,"R1, 0.5 - 0.5","R8, 1 - 0",null,"R2, 0.5 - 0.5","R1, 0 - 1",null,"R6, 0 - 1",null,"R6, 1 - 0","R6, 0.5 - 0.5","R4, 0.5 - 0.5",null,"R4, 1 - 0",null,"R1, 1 - 0","R2, 0 - 1","R3, 0.5 - 0.5","R4, 1 - 0"]
[null,null,null,null,null,null,null,null,null,null,null,null,null,null,null,null,null,null,null,null,null,null,null,null,null,null,null,null,null,null,null,null,null,null,null,null,null,null,null,null,null,null,null,null,null,null,null,null,null,null,null,null,null,null,null,null,null,null,null,null,null,null,null,null,null,null,null,null,null,null,null,null,null,null,null,null,null,null,null,null,null,null,null,null,null,null,null,null,null,null,null,null,null,null,null,null,null,null,null,null,"R1, 0.5 - 0.5",null,"R2, 0 - 1",null,null,"R1, 0.5 - 0.5","R4, 1 - 0","R1, 1 - 0","R1, 0.5 - 0.5","R1, 0 - 1","R2, 0.5 - 0.5",null,"R3, 0 - 1","R1, 0.5 - 0.5",null,"R5, 0.5 - 0.5","R6, 1 - 0",null,"R7, 0 - 1",null,null,"R4, 0.5 - 0.5",null,"R6, 0.5 - 0.5","R4, 1 - 0",null,"R1, 0.5 - 0.5","R1, 1 - 0","R5, 1 - 0"]
[null,null,null,null,null,null,null,null,null,null,null,null,null,null,null,null,null,null,null,null,null,null,null,null,null,null,null,null,null,null,null,null,null,null,null,null,null,null,null,null,null,null,null,null,null,null,null,null,null,null,null,null,null,null,null,null,null,null,null,null,null,null,null,null,null,null,null,null,null,null,null,null,null,null,null,null,null,null,null,null,null,null,null,null,null,null,null,null,null,null,null,null,null,null,null,null,null,null,null,null,"R3, 1 - 0","R5, 0.5 - 0.5","R5, 0 - 1","R3, 0 - 1",null,null,"R1, 0.5 - 0.5","R5, 0.5 - 0.5",null,"R3, 0 - 1","R1, 0.5 - 0.5","R1, 1 - 0","R1, 1 - 0","R4, 0.5 - 0.5","R6, 0.5 - 0.5","R2, 0.5 - 0.5",null,"R2, 1 - 0","R4, 0.5 - 0.5",null,null,"R4, 0 - 1",null,null,"R6, 1 - 0","R1, 1 - 0","R4, 0.5 - 0.5","R2, 0.5 - 0.5","R6, 0.5 - 0.5"]
[null,null,null,null,null,null,null,null,null,null,null,null,null,null,null,null,null,null,null,null,null,null,null,null,null,null,null,null,null,null,null,null,null,null,null,null,null,null,null,null,null,null,null,null,null,null,null,null,null,null,null,null,null,null,null,null,null,null,null,null,null,null,null,null,null,null,null,null,null,null,null,null,null,null,null,null,null,null,null,null,null,null,null,null,null,null,null,null,null,null,null,null,null,null,null,null,null,null,null,null,"R3, 0.5 - 0.5","R2, 1 - 0",null,"R3, 0 - 1","R1, 0 - 1","R1, 1 - 0","R2, 1 - 0","R1, 0 - 1","R1, 1 - 0","R1, 1 - 0",null,"R5, 1 - 0","R7, 0.5 - 0.5","R2, 0 - 1",null,null,null,"R2, 0 - 1",null,"R6, 0.5 - 0.5","R1, 0.5 - 0.5","R2, 0.5 - 0.5","R4, 0 - 1",null,"R1, 1 - 0","R4, 0.5 - 0.5"]
[null,null,null,null,null,null,null,null,null,null,null,null,null,null,null,null,null,null,null,null,null,null,null,null,null,null,null,null,null,null,null,null,null,null,null,null,null,null,null,null,null,null,null,null,null,null,null,null,null,null,null,null,null,null,null,null,null,null,null,null,null,null,null,null,null,null,null,null,null,null,null,null,null,null,null,null,null,null,null,null,null,null,null,null,null,null,null,null,null,null,null,null,null,null,null,null,null,null,null,null,"R3, 3 - 20",null,"R1, 0.5 - 0.5","R1, 0.5 - 0.5","R1, 0 - 1",null,null,"R1, 1 - 0","R1, 0.5 - 0.5","R1, 1 - 0",null,"R3, 1 - 0","R5, 1 - 0",null,"R5, 1 - 0",null,"R6, 1 - 0","R6, 0.5 - 0.5",null,"R1, 1 - 0",null,"R2, 0.5 - 0.5","R6, 0 - 1","R3, 1 - 0",null,"R3, 1 - 0","R4, 1 - 0","R4, 0 - 1","R1, 0 - 1"]
[null,null,null,null,null,null,null,null,null,null,null,null,null,null,null,null,null,null,null,null,null,null,null,null,null,null,null,null,null,null,null,null,null,null,null,null,null,null,null,null,null,null,null,null,null,null,null,null,null,null,null,null,null,null,null,null,null,null,null,null,null,null,null,null,null,null,null,null,null,null,null,null,null,null,null,null,null,null,null,null,null,null,null,null,null,null,null,null,null,null,null,null,null,null,null,null,null,null,null,null,"R1, 1 - 0","R3, 1 - 0","R3, 0 - 1","R1, 0.5 - 0.5",null,"R5, 0.5 - 0.5",null,null,"R3, 0.5 - 0.5","R1, 1 - 0","R1, 0.5 - 0.5","R1, 1 - 0","R1, 0 - 1","R1, 0.5 - 0.5","R4, 0 - 1",null,null,"R1, 0 - 1",null,null,"R6, 0 - 1","R6, 1 - 0","R1, 1 - 0","R5, 0 - 1","R4, 0.5 - 0.5","R4, 0 - 1","R1, 1 - 0","R6, 5 - 18","R2, 0.5 - 0.5"]
[null,null,null,null,null,null,null,null,null,null,null,null,null,null,null,null,null,null,null,null,null,null,null,null,null,null,null,null,null,null,null,null,null,null,null,null,null,null,null,null,null,null,null,null,null,null,null,null,null,null,null,null,null,null,null,null,null,null,null,null,null,null,null,null,null,null,null,null,null,null,null,null,null,null,null,null,null,null,null,null,null,null,null,null,null,null,null,null,null,null,null,null,null,null,null,null,null,null,null,null,null,null,null,"R4, 1 - 0","R3, 1 - 0","R3, 0.5 - 0.5","R1, 0.5 - 0.5",null,null,null,null,"R1, 1 - 0",null,null,"R2, 0.5 - 0.5","R6, 0 - 1","R5, 1 - 0",null,null,null,null,"R6, 0 - 1","R4, 0 - 1","R1, 1 - 0",null,"R1, 11 - 11",null,"R6, 0 - 1","R4, 0 - 1"]
[null,null,null,null,null,null,null,null,null,null,null,null,null,null,null,null,null,null,null,null,null,null,null,null,null,null,null,null,null,null,null,null,null,null,null,null,null,null,null,null,null,null,null,null,null,null,null,null,null,null,null,null,null,null,null,null,null,null,null,null,null,null,null,null,null,null,null,null,null,null,null,null,null,null,null,null,null,null,null,null,null,null,null,null,null,null,null,null,null,null,null,null,null,null,null,null,null,null,null,null,"R5, 0.5 - 0.5","R6, 1 - 0","R4, 0.5 - 0.5","R2, 0.5 - 0.5","R2, 0 - 1","R1, 0.5 - 0.5","R1, 0 - 1","R6, 0 - 1","R2, 1 - 0",null,"R3, 0 - 1","R4, 0.5 - 0.5",null,null,null,"R1, 0 - 2","R1, 0 - 1",null,"R3, 0 - 1",null,"R1, 0 - 1","R2, 1 - 0",null,null,"R7, 0 - 1","R3, 0.5 - 0.5",null,"R2, 0 - 1"]
[null,null,null,null,null,null,null,null,null,null,null,null,null,null,null,null,null,null,null,null,null,null,null,null,null,null,null,null,null,null,null,null,null,null,null,null,null,null,null,null,null,null,null,null,null,null,null,null,null,null,null,null,null,null,null,null,null,null,null,null,null,null,null,null,null,null,null,null,null,null,null,null,null,null,null,null,null,null,null,null,null,null,null,null,null,null,null,null,null,null,null,null,null,null,null,null,null,null,null,null,"R1, 0 - 1","R2, 0.5 - 0.5","R2, 0.5 - 0.5","R1, 0.5 - 0.5",null,"R2, 0.5 - 0.5","R5, 0.5 - 0.5","R2, 18 - 4","R1, 1 - 0","R5, 1 - 0","R4, 0.5 - 0.5","R2, 0 - 1","R1, 0 - 1","R3, 0 - 1","R3, 0 - 1",null,null,"R4, 1 - 0","R1, 0.5 - 0.5","R1, 0.5 - 0.5","R3, 0 - 1","R3, 1 - 0","R2, 0 - 1","R1, 0 - 1","R1, 0.5 - 0.5",null,"R2, 1 - 0","R6, 0.5 - 0.5","R2, 0.5 - 0.5"]
[null,null,null,null,null,null,null,null,null,null,null,null,null,null,null,null,null,null,null,null,null,null,null,null,null,null,null,null,null,null,null,null,null,null,null,null,null,null,null,null,null,null,null,null,null,null,null,null,null,null,null,null,null,null,null,null,null,null,null,null,null,null,null,null,null,null,null,null,null,null,null,null,null,null,null,null,null,null,null,null,null,null,null,null,null,null,null,null,null,null,null,null,null,null,null,null,null,null,null,null,null,"R2, 0 - 1",null,"R5, 0.5 - 0.5","R1, 0 - 1",null,"R2, 0 - 1","R1, 0.5 - 0.5","R2, 0.5 - 0.5","R2, 21 - 4","R1, 0.5 - 0.5",null,"R4, 1 - 0","R1, 1 - 0","R1, 1 - 0","R2, 1 - 0",null,null,"R3, 0.5 - 0.5","R3, 0.5 - 0.5",null,"R5, 0 - 1","R1, 0.5 - 0.5","R2, 1 - 0",null,"R2, 0.5 - 0.5","R6, 0 - 1",null,"R2, 0.5 - 0.5"]
[null,null,null,null,null,null,null,null,null,null,null,null,null,null,null,null,null,null,null,null,null,null,null,null,null,null,null,null,null,null,null,null,null,null,null,null,null,null,null,null,null,null,null,null,null,null,null,null,null,null,null,null,null,null,null,null,null,null,null,null,null,null,null,null,null,null,null,null,null,null,null,null,null,null,null,null,null,null,null,null,null,null,null,null,null,null,null,null,null,null,null,null,null,null,null,null,null,null,null,null,"R1, 1 - 0","R6, 1 - 0","R1, 1 - 0","R5, 0.5 - 0.5","R2, 0 - 1",null,"R4, 1 - 0","R3, 0 - 1",null,"R3, 0 - 1","R1, 1 - 0","R4, 0.5 - 0.5","R1, 1 - 0","R2, 0.5 - 0.5",null,"R3, 0 - 1",null,"R1, 1 - 0",null,"R3, 0 - 1","R1, 0.5 - 0.5","R5, 0.5 - 0.5","R2, 0 - 1","R3, 0 - 1","R8, 0 - 1","R3, 0.5 - 0.5","R1, 1 - 0","R2, 0 - 1"]
[null,null,null,null,null,null,null,null,null,null,null,null,null,null,null,null,null,null,null,null,null,null,null,null,null,null,null,null,null,null,null,null,null,null,null,null,null,null,null,null,null,null,null,null,null,null,null,null,null,null,null,null,null,null,null,null,null,null,null,null,null,null,null,null,null,null,null,null,null,null,null,null,null,null,null,null,null,null,null,null,null,null,null,null,null,null,null,null,null,null,null,null,null,null,null,null,null,null,null,null,"R2, 1 - 0","R1, 1 - 0","R2, 0 - 1","R6, 0 - 1","R1, 1 - 0","R4, 0 - 1","R2, 0.5 - 0.5","R4, 0.5 - 0.5","R1, 1 - 0","R4, 1 - 0",null,"R3, 1 - 0","R5, 0.5 - 0.5","R3, 0 - 1","R3, 0 - 1","R1, 0.5 - 0.5","R3, 1 - 0","R2, 0.5 - 0.5","R1, 0.5 - 0.5","R3, 1 - 0","R5, 0.5 - 0.5",null,"R4, 0.5 - 0.5",null,"R2, 0.5 - 0.5","R2, 1 - 0","R7, 0 - 1","R1, 1 - 0","R3, 0 - 1"]
[null,null,null,null,null,null,null,null,null,null,null,null,null,null,null,null,null,null,null,null,null,null,null,null,null,null,null,null,null,null,null,null,null,null,null,null,null,null,null,null,null,null,null,null,null,null,null,null,null,null,null,null,null,null,null,null,null,null,null,null,null,null,null,null,null,null,null,null,null,null,null,null,null,null,null,null,null,null,null,null,null,null,null,null,null,null,null,null,null,null,null,null,null,null,null,null,null,null,null,null,"R5, 0 - 1","R1, 0.5 - 0.5","R2, 0.5 - 0.5","R2, 1 - 0","R5, 1 - 0","R5, 0 - 1",null,null,"R4, 0.5 - 0.5","R1, 0.5 - 0.5",null,"R1, 0.5 - 0.5","R4, 0 - 1","R6, 0 - 1","R1, 0 - 1",null,"R1, 0.5 - 0.5","R3, 1 - 0","R1, 1 - 1",null,null,"R2, 0 - 1","R2, 0.5 - 0.5",null,"R2, 0 - 1",null,null,null,"R5, 1 - 0"]
[null,null,null,null,null,null,null,null,null,null,null,null,null,null,null,null,null,null,null,null,null,null,null,null,null,null,null,null,null,null,null,null,null,null,null,null,null,null,null,null,null,null,null,null,null,null,null,null,null,null,null,null,null,null,null,null,null,null,null,null,null,null,null,null,null,null,null,null,null,null,null,null,null,null,null,null,null,null,null,null,null,null,null,null,null,null,null,null,null,null,null,null,null,null,null,null,null,null,null,null,"R4, 0.5 - 0.5",null,"R7, 0 - 1",null,"R5, 0 - 1","R1, 1 - 0","R1, 1 - 0","R5, 0 - 1",null,"R2, 1 - 0","R4, 0 - 1","R1, 0.5 - 0.5","R4, 0 - 1","R1, 1 - 0","R3, 1 - 0","R3, 1 - 0","R2, 0 - 1","R1, 1 - 0","R5, 0.5 - 0.5",null,"R3, 0.5 - 0.5",null,"R3, 0.5 - 0.5","R2, 0 - 1",null,"R5, 1 - 0","R1, 0.5 - 0.5","R2, 0 - 1","R3, 0 - 1"]
[null,null,null,null,null,null,null,null,null,null,null,null,null,null,null,null,null,null,null,null,null,null,null,null,null,null,null,null,null,null,null,null,null,null,null,null,null,null,null,null,null,null,null,null,null,null,null,null,null,null,null,null,null,null,null,null,null,null,null,null,null,null,null,null,null,null,null,null,null,null,null,null,null,null,null,null,null,null,null,null,null,null,null,null,null,null,null,null,null,null,null,null,null,null,null,null,null,null,null,null,"R1, 0 - 1","R2, 0 - 1","R6, 1 - 0","R4, 0.5 - 0.5",null,null,"R4, 1 - 0","R1, 1 - 0","R5, 1 - 0","R1, 0 - 1","R2, 1 - 0","R2, 4 - 21","R4, 0.5 - 0.5","R2, 1 - 0","R2, 0.5 - 0.5","R1, 1 - 0",null,"R3, 0 - 1","R8, 1 - 0","R3, 0.5 - 0.5",null,null,"R2, 0 - 1",null,"R5, 0.5 - 0.5","R5, 1 - 0","R2, 1 - 0","R4, 0.5 - 0.5","R2, 0.5 - 0.5"]
[null,null,null,null,null,null,null,null,null,null,null,null,null,null,null,null,null,null,null,null,null,null,null,null,null,null,null,null,null,null,null,null,null,null,null,null,null,null,null,null,null,null,null,null,null,null,null,null,null,null,null,null,null,null,null,null,null,null,null,null,null,null,null,null,null,null,null,null,null,null,null,null,null,null,null,null,null,null,null,null,null,null,null,null,null,null,null,null,null,null,null,null,null,null,null,null,null,null,null,null,"R1, 0 - 1","R1, 0 - 1",null,"R3, 0.5 - 0.5",null,"R3, 0 - 1","R1, 0.5 - 0.5","R2, 0 - 1","R3, 1 - 0",null,"R7, 1 - 0","R5, 0.5 - 0.5","R5, 1 - 0","R4, 0 - 1","R1, 6 - 22","R4, 0.5 - 0.5","R1, 0 - 1","R2, 0.5 - 0.5","R5, 0.5 - 0.5","R4, 0.5 - 0.5","R4, 0.5 - 0.5","R1, 0 - 1","R5, 0 - 1","R3, 1 - 0","R1, 1 - 0","R6, 0 - 1","R3, 0 - 1","R3, 1 - 0","R2, 1 - 0"]
[null,null,null,null,null,null,null,null,null,null,null,null,null,null,null,null,null,null,null,null,null,null,null,null,null,null,null,null,null,null,null,null,null,null,null,null,null,null,null,null,null,null,null,null,null,null,null,null,null,null,null,null,null,null,null,null,null,null,null,null,null,null,null,null,null,null,null,null,null,null,null,null,null,null,null,null,null,null,null,null,null,null,null,null,null,null,null,null,null,null,null,null,null,null,null,null,null,null,null,null,null,null,"R6, 0.5 - 0.5","R1, 1 - 0","R2, 0 - 1","R2, 1 - 0","R2, 1 - 0","R2, 0 - 1","R2, 0 - 1","R1, 0.5 - 0.5",null,null,"R4, 0 - 1","R7, 0 - 1","R4, 0 - 1","R2, 0.5 - 0.5","R1, 1 - 0","R5, 1 - 0",null,null,null,"R1, 0 - 1",null,null,null,"R3, 1 - 0","R3, 0 - 1","R1, 0.5 - 0.5","R7, 0 - 1"]
[null,null,null,null,null,null,null,null,null,null,null,null,null,null,null,null,null,null,null,null,null,null,null,null,null,null,null,null,null,null,null,null,null,null,null,null,null,null,null,null,null,null,null,null,null,null,null,null,null,null,null,null,null,null,null,null,null,null,null,null,null,null,null,null,null,null,null,null,null,null,null,null,null,null,null,null,null,null,null,null,null,null,null,null,null,null,null,null,null,null,null,null,null,null,null,null,null,null,null,null,"R2, 0 - 1",null,null,"R1, 1 - 0","R1, 2 - 0","R2, 0.5 - 0.5","R2, 1 - 0","R1, 1 - 0","R2, 0 - 1",null,null,null,"R2, 0 - 1","R4, 1 - 0","R4, 0.5 - 0.5","R4, 0.5 - 0.5",null,"R5, 1 - 0","R4, 0.5 - 0.5","R4, 0.5 - 0.5","R5, 0.5 - 0.5",null,"R3, 1 - 0",null,"R2, 0.5 - 0.5","R3, 1 - 0","R6, 0.5 - 0.5","R5, 0 - 1"]
[null,null,null,null,null,null,null,null,null,null,null,null,null,null,null,null,null,null,null,null,null,null,null,null,null,null,null,null,null,null,null,null,null,null,null,null,null,null,null,null,null,null,null,null,null,null,null,null,null,null,null,null,null,null,null,null,null,null,null,null,null,null,null,null,null,null,null,null,null,null,null,null,null,null,null,null,null,null,null,null,null,null,null,null,null,null,null,null,null,null,null,null,null,null,null,null,null,null,null,null,"R2, 1 - 0","R1, 0.5 - 0.5",null,null,null,"R2, 0.5 - 0.5","R5, 0.5 - 0.5","R2, 4 - 21","R2, 1 - 0","R2, 1 - 0",null,"R1, 0.5 - 0.5","R4, 1 - 0","R4, 0.5 - 0.5","R5, 0 - 1",null,"R1, 9 - 10","R5, 1 - 0","R4, 0 - 1","R3, 0.5 - 0.5",null,null,"R1, 0.5 - 0.5","R1, 0.5 - 0.5","R3, 1 - 0","R3, 0 - 1","R5, 1 - 0","R7, 0.5 - 0.5"]
[null,null,null,null,null,null,null,null,null,null,null,null,null,null,null,null,null,null,null,null,null,null,null,null,null,null,null,null,null,null,null,null,null,null,null,null,null,null,null,null,null,null,null,null,null,null,null,null,null,null,null,null,null,null,null,null,null,null,null,null,null,null,null,null,null,null,null,null,null,null,null,null,null,null,null,null,null,null,null,null,null,null,null,null,null,null,null,null,null,null,null,null,null,null,null,null,null,null,null,null,null,"R3, 0 - 1","R2, 0 - 1","R2, 1 - 0","R1, 1 - 0","R1, 0.5 - 0.5",null,"R2, 0 - 1","R7, 0 - 1","R2, 0.5 - 0.5","R2, 0.5 - 0.5","R2, 1 - 0",null,"R4, 1 - 0",null,"R5, 0 - 1",null,"R5, 23 - 4","R2, 0 - 1","R4, 1 - 0","R4, 1 - 0",null,null,"R3, 0 - 1","R3, 0.5 - 0.5","R3, 0 - 1","R2, 0 - 1","R3, 1 - 0","R1, 0 - 1"]
[null,null,null,null,null,null,null,null,null,null,null,null,null,null,null,null,null,null,null,null,null,null,null,null,null,null,null,null,null,null,null,null,null,null,null,null,null,null,null,null,null,null,null,null,null,null,null,null,null,null,null,null,null,null,null,null,null,null,null,null,null,null,null,null,null,null,null,null,null,null,null,null,null,null,null,null,null,null,null,null,null,null,null,null,null,null,null,null,null,null,null,null,null,null,null,null,null,null,null,null,"R1, 1 - 0","R2, 0.5 - 0.5","R2, 0.5 - 0.5",null,"R3, 0 - 1",null,"R2, 0 - 1",null,"R6, 0.5 - 0.5","R2, 0.5 - 0.5","R2, 0.5 - 0.5","R7, 0 - 1",null,"R8, 0 - 1","R5, 0.5 - 0.5","R5, 1 - 0","R4, 1 - 0","R3, 0 - 1","R5, 0 - 1","R4, 1 - 0",null,"R3, 1 - 0","R3, 0 - 1","R5, 1 - 0","R2, 1 - 0",null,"R1, 0.5 - 0.5",null,"R3, 0.5 - 0.5"]
[null,null,null,null,null,null,null,null,null,null,null,null,null,null,null,null,null,null,null,null,null,null,null,null,null,null,null,null,null,null,null,null,null,null,null,null,null,null,null,null,null,null,null,null,null,null,null,null,null,null,null,null,null,null,null,null,null,null,null,null,null,null,null,null,null,null,null,null,null,null,null,null,null,null,null,null,null,null,null,null,null,null,null,null,null,null,null,null,null,null,null,null,null,null,null,null,null,null,null,null,null,null,"R2, 0 - 1","R2, 1 - 0","R6, 0.5 - 0.5",null,"R5, 0 - 1","R2, 1 - 0","R5, 1 - 0","R2, 1 - 0","R1, 1 - 0","R2, 1 - 0",null,"R5, 0 - 1","R4, 0.5 - 0.5","R5, 0.5 - 0.5","R5, 1 - 0",null,null,"R6, 1 - 0","R4, 1 - 0","R5, 1 - 0",null,"R1, 1 - 0","R7, 0.5 - 0.5","R1, 0.5 - 0.5",null,"R5, 0 - 1","R3, 1 - 0"]
[null,null,null,null,null,null,null,null,null,null,null,null,null,null,null,null,null,null,null,null,null,null,null,null,null,null,null,null,null,null,null,null,null,null,null,null,null,null,null,null,null,null,null,null,null,null,null,null,null,null,null,null,null,null,null,null,null,null,null,null,null,null,null,null,null,null,null,null,null,null,null,null,null,null,null,null,null,null,null,null,null,null,null,null,null,null,null,null,null,null,null,null,null,null,null,null,null,null,null,null,null,"R6, 0.5 - 0.5","R3, 0 - 1","R1, 1 - 0","R5, 1 - 0","R2, 1 - 0",null,null,"R2, 0 - 1","R4, 1 - 0","R1, 0 - 2",null,"R4, 0 - 1",null,null,"R3, 0 - 1","R5, 0 - 1",null,"R4, 0 - 1","R5, 1 - 0","R1, 9 - 11","R8, 0 - 1","R3, 0 - 1","R5, 1 - 0",null,"R1, 0.5 - 0.5",null,"R3, 0.5 - 0.5","R3, 1 - 0"]
[null,null,null,null,null,null,null,null,null,null,null,null,null,null,null,null,null,null,null,null,null,null,null,null,null,null,null,null,null,null,null,null,null,null,null,null,null,null,null,null,null,null,null,null,null,null,null,null,null,null,null,null,null,null,null,null,null,null,null,null,null,null,null,null,null,null,null,null,null,null,null,null,null,null,null,null,null,null,null,null,null,null,null,null,null,null,null,null,null,null,null,null,null,null,null,null,null,null,null,null,"R4, 0.5 - 0.5","R7, 1 - 0","R1, 0 - 1","R6, 1 - 0","R5, 0 - 1","R1, 0.5 - 0.5","R3, 1 - 0",null,"R1, 1 - 0",null,"R2, 1 - 0","R4, 0.5 - 0.5",null,null,null,"R1, 0.5 - 0.5","R6, 1 - 0","R2, 0.5 - 0.5","R6, 0.5 - 0.5","R1, 0 - 1",null,null,"R5, 1 - 0",null,null,null,"R1, 1 - 0","R1, 0.5 - 0.5","R1, 20 - 5"]
[null,null,null,null,null,null,null,null,null,null,null,null,null,null,null,null,null,null,null,null,null,null,null,null,null,null,null,null,null,null,null,null,null,null,null,null,null,null,null,null,null,null,null,null,null,null,null,null,null,null,null,null,null,null,null,null,null,null,null,null,null,null,null,null,null,null,null,null,null,null,null,null,null,null,null,null,null,null,null,null,null,null,null,null,null,null,null,null,null,null,null,null,null,null,null,null,null,null,null,null,null,"R5, 0 - 1","R3, 0 - 1",null,"R6, 0 - 1","R5, 0 - 1",null,"R2, 0.5 - 0.5",null,null,"R1, 0.5 - 0.5",null,"R6, 1 - 0","R6, 0 - 1","R6, 1 - 0","R1, 0.5 - 0.5","R1, 0 - 1",null,null,"R2, 0.5 - 0.5","R5, 1 - 0",null,null,"R5, 0.5 - 0.5","R1, 0 - 2","R1, 0.5 - 0.5",null,null,"R1, 1 - 0"]
[null,null,null,null,null,null,null,null,null,null,null,null,null,null,null,null,null,null,null,null,null,null,null,null,null,null,null,null,null,null,null,null,null,null,null,null,null,null,null,null,null,null,null,null,null,null,null,null,null,null,null,null,null,null,null,null,null,null,null,null,null,null,null,null,null,null,null,null,null,null,null,null,null,null,null,null,null,null,null,null,null,null,null,null,null,null,null,null,null,null,null,null,null,null,null,null,null,null,null,null,"R7, 1 - 0","R3, 20 - 6","R2, 0 - 1","R1, 0.5 - 0.5","R3, 0 - 1","R1, 0.5 - 0.5","R5, 0.5 - 0.5","R2, 0 - 1",null,"R1, 0 - 1","R4, 0.5 - 0.5","R2, 1 - 0",null,null,"R2, 1 - 0",null,null,"R6, 0 - 1",null,"R6, 0 - 1",null,null,null,null,"R1, 1 - 0","R5, 1 - 0","R4, 0 - 1",null,"R2, 0 - 1"]
[null,null,null,null,null,null,null,null,null,null,null,null,null,null,null,null,null,null,null,null,null,null,null,null,null,null,null,null,null,null,null,null,null,null,null,null,null,null,null,null,null,null,null,null,null,null,null,null,null,null,null,null,null,null,null,null,null,null,null,null,null,null,null,null,null,null,null,null,null,null,null,null,null,null,null,null,null,null,null,null,null,null,null,null,null,null,null,null,null,null,null,null,null,null,null,null,null,null,null,null,"R3, 1 - 0","R1, 0 - 1","R1, 0.5 - 0.5","R6, 1 - 0",null,"R4, 0 - 1","R2, 1 - 0","R1, 0.5 - 0.5",null,"R5, 1 - 0",null,"R1, 1 - 0",null,null,"R1, 1 - 0",null,"R2, 0 - 1","R6, 0 - 1","R6, 0.5 - 0.5","R1, 1 - 0","R6, 0.5 - 0.5","R1, 1 - 0",null,"R4, 1 - 0","R5, 1 - 0",null,"R7, 1 - 0","R5, 0 - 1"]
[null,null,null,null,null,null,null,null,null,null,null,null,null,null,null,null,null,null,null,null,null,null,null,null,null,null,null,null,null,null,null,null,null,null,null,null,null,null,null,null,null,null,null,null,null,null,null,null,null,null,null,null,null,null,null,null,null,null,null,null,null,null,null,null,null,null,null,null,null,null,null,null,null,null,null,null,null,null,null,null,null,null,null,null,null,null,null,null,null,null,null,null,null,null,null,null,null,null,null,null,"R2, 1 - 0","R6, 1 - 0","R3, 0.5 - 0.5","R5, 0.5 - 0.5","R1, 0.5 - 0.5","R5, 1 - 0","R1, 2 - 0",null,"R5, 1 - 0","R2, 1 - 0","R4, 0 - 1",null,"R2, 0 - 1","R2, 1 - 0",null,"R6, 1 - 0",null,null,"R2, 0 - 1",null,"R1, 0 - 1","R4, 0.5 - 0.5",null,"R1, 1 - 0",null,null,"R1, 1 - 0","R5, 0.5 - 0.5"]
[null,null,null,null,null,null,null,null,null,null,null,null,null,null,null,null,null,null,null,null,null,null,null,null,null,null,null,null,null,null,null,null,null,null,null,null,null,null,null,null,null,null,null,null,null,null,null,null,null,null,null,null,null,null,null,null,null,null,null,null,null,null,null,null,null,null,null,null,null,null,null,null,null,null,null,null,null,null,null,null,null,null,null,null,null,null,null,null,null,null,null,null,null,null,null,null,null,null,null,null,"R6, 1 - 0",null,null,"R1, 1 - 0",null,null,"R4, 0 - 1","R1, 0 - 1","R2, 1 - 0",null,null,"R1, 1 - 0","R3, 1 - 0",null,"R6, 0 - 1","R2, 1 - 0",null,"R6, 1 - 0",null,null,"R6, 1 - 0","R3, 0 - 1","R4, 0 - 1",null,"R1, 0.5 - 0.5",null,"R1, 20 - 4","R1, 1 - 0","R1, 1 - 0"]
[null,null,null,null,null,null,null,null,null,null,null,null,null,null,null,null,null,null,null,null,null,null,null,null,null,null,null,null,null,null,null,null,null,null,null,null,null,null,null,null,null,null,null,null,null,null,null,null,null,null,null,null,null,null,null,null,null,null,null,null,null,null,null,null,null,null,null,null,null,null,null,null,null,null,null,null,null,null,null,null,null,null,null,null,null,null,null,null,null,null,null,null,null,null,null,null,null,null,null,null,"R5, 0.5 - 0.5","R1, 0.5 - 0.5","R3, 1 - 0",null,"R3, 0 - 1",null,null,"R7, 1 - 0","R2, 0 - 1","R1, 0 - 1",null,null,"R1, 0 - 1","R2, 1 - 0",null,"R6, 0 - 1","R6, 1 - 0",null,"R1, 0.5 - 0.5",null,"R2, 1 - 0","R1, 1 - 0","R1, 1 - 0","R1, 2 - 17",null,null,null,null,"R5, 0.5 - 0.5"]
[null,null,null,null,null,null,null,null,null,null,null,null,null,null,null,null,null,null,null,null,null,null,null,null,null,null,null,null,null,null,null,null,null,null,null,null,null,null,null,null,null,null,null,null,null,null,null,null,null,null,null,null,null,null,null,null,null,null,null,null,null,null,null,null,null,null,null,null,null,null,null,null,null,null,null,null,null,null,null,null,null,null,null,null,null,null,null,null,null,null,null,null,null,null,null,null,null,null,null,null,"R5, 1 - 0",null,"R4, 0.5 - 0.5","R2, 1 - 0","R1, 1 - 0","R2, 0.5 - 0.5","R6, 1 - 0",null,"R1, 0.5 - 0.5",null,null,"R5, 0.5 - 0.5","R1, 1 - 0","R1, 0.5 - 0.5",null,"R2, 6 - 19",null,null,null,"R6, 1 - 0","R2, 0 - 1","R5, 0 - 1","R1, 0.5 - 0.5","R3, 0 - 1","R6, 0 - 1","R1, 1 - 0","R5, 1 - 0"]
[null,null,null,null,null,null,null,null,null,null,null,null,null,null,null,null,null,null,null,null,null,null,null,null,null,null,null,null,null,null,null,null,null,null,null,null,null,null,null,null,null,null,null,null,null,null,null,null,null,null,null,null,null,null,null,null,null,null,null,null,null,null,null,null,null,null,null,null,null,null,null,null,null,null,null,null,null,null,null,null,null,null,null,null,null,null,null,null,null,null,null,null,null,null,null,null,null,null,null,null,"R2, 20 - 8",null,"R1, 1 - 0",null,"R1, 0.5 - 0.5",null,"R3, 0 - 1","R4, 0 - 1","R1, 0.5 - 0.5",null,null,"R1, 1 - 0",null,"R1, 0 - 1","R6, 0 - 1","R2, 0 - 1","R2, 0.5 - 0.5","R3, 0.5 - 0.5","R1, 1 - 0","R4, 1 - 0","R7, 1 - 0","R2, 0.5 - 0.5","R3, 1 - 0",null,"R1, 0.5 - 0.5","R2, 1 - 0","R2, 0.5 - 0.5","R6, 0 - 1"]
[null,null,null,null,null,null,null,null,null,null,null,null,null,null,null,null,null,null,null,null,null,null,null,null,null,null,null,null,null,null,null,null,null,null,null,null,null,null,null,null,null,null,null,null,null,null,null,null,null,null,null,null,null,null,null,null,null,null,null,null,null,null,null,null,null,null,null,null,null,null,null,null,null,null,null,null,null,null,null,null,null,null,null,null,null,null,null,null,null,null,null,null,null,null,null,null,null,null,null,null,"R6, 1 - 0","R1, 1 - 0",null,"R3, 1 - 0",null,"R3, 0 - 1",null,"R1, 1 - 0","R4, 6 - 21","R3, 1 - 0",null,null,"R3, 1 - 0",null,"R1, 0.5 - 0.5","R6, 0 - 1",null,null,"R5, 0 - 1","R1, 1 - 0","R1, 0.5 - 0.5","R6, 0 - 1","R2, 0.5 - 0.5",null,"R2, 1 - 0","R2, 0.5 - 0.5","R2, 0.5 - 0.5",null,"R6, 0.5 - 0.5"]
[null,null,null,null,null,null,null,null,null,null,null,null,null,null,null,null,null,null,null,null,null,null,null,null,null,null,null,null,null,null,null,null,null,null,null,null,null,null,null,null,null,null,null,null,null,null,null,null,null,null,null,null,null,null,null,null,null,null,null,null,null,null,null,null,null,null,null,null,null,null,null,null,null,null,null,null,null,null,null,null,null,null,null,null,null,null,null,null,null,null,null,null,null,null,null,null,null,null,null,null,"R5, 0.5 - 0.5","R6, 1 - 0","R1, 0.5 - 0.5",null,"R1, 0.5 - 0.5",null,"R1, 1 - 0",null,null,null,"R1, 0.5 - 0.5","R3, 1 - 0","R3, 0 - 1",null,null,"R1, 0.5 - 0.5","R6, 0.5 - 0.5","R3, 0 - 1","R6, 0 - 1","R6, 0.5 - 0.5","R1, 1 - 0","R1, 0.5 - 0.5","R6, 1 - 0","R1, 1 - 0","R2, 1 - 0",null,null,null,"R4, 0.5 - 0.5"]
[null,null,null,null,null,null,null,null,null,null,null,null,null,null,null,null,null,null,null,null,null,null,null,null,null,null,null,null,null,null,null,null,null,null,null,null,null,null,null,null,null,null,null,null,null,null,null,null,null,null,null,null,null,null,null,null,null,null,null,null,null,null,null,null,null,null,null,null,null,null,null,null,null,null,null,null,null,null,null,null,null,null,null,null,null,null,null,null,null,null,null,null,null,null,null,null,null,null,null,null,"R2, 0 - 1","R5, 1 - 0",null,"R1, 0 - 2",null,"R2, 0.5 - 0.5","R3, 1 - 0","R3, 0.5 - 0.5",null,"R6, 0 - 1","R1, 0.5 - 0.5","R1, 1 - 0","R3, 0 - 1","R1, 1 - 0",null,null,"R4, 0.5 - 0.5","R7, 0 - 1","R2, 0.5 - 0.5",null,"R1, 0 - 1","R1, 0 - 1",null,"R6, 0 - 1","R3, 0 - 1",null,"R3, 1 - 0","R2, 0.5 - 0.5","R1, 0 - 1"]
[null,null,null,null,null,null,null,null,null,null,null,null,null,null,null,null,null,null,null,null,null,null,null,null,null,null,null,null,null,null,null,null,null,null,null,null,null,null,null,null,null,null,null,null,null,null,null,null,null,null,null,null,null,null,null,null,null,null,null,null,null,null,null,null,null,null,null,null,null,null,null,null,null,null,null,null,null,null,null,null,null,null,null,null,null,null,null,null,null,null,null,null,null,null,null,null,null,null,null,null,"R1, 0 - 1","R2, 9 - 8","R1, 10 - 10",null,"R6, 1 - 0","R3, 0.5 - 0.5","R1, 0.5 - 0.5",null,"R1, 1 - 0","R5, 0.5 - 0.5","R6, 0.5 - 0.5","R4, 1 - 0",null,"R6, 0 - 1","R1, 1 - 0","R4, 0 - 1","R2, 0 - 1","R1, 1 - 0","R6, 0 - 1","R1, 0.5 - 0.5","R2, 0.5 - 0.5","R2, 1 - 0","R2, 1 - 0","R4, 0.5 - 0.5","R2, 1 - 0","R5, 1 - 0",null,"R1, 0 - 1","R6, 1 - 0"]
[null,null,null,null,null,null,null,null,null,null,null,null,null,null,null,null,null,null,null,null,null,null,null,null,null,null,null,null,null,null,null,null,null,null,null,null,null,null,null,null,null,null,null,null,null,null,null,null,null,null,null,null,null,null,null,null,null,null,null,null,null,null,null,null,null,null,null,null,null,null,null,null,null,null,null,null,null,null,null,null,null,null,null,null,null,null,null,null,null,null,null,null,null,null,null,null,null,null,null,null,"R1, 1 - 0","R1, 0.5 - 0.5","R5, 0.5 - 0.5","R2, 1 - 0",null,"R3, 0 - 1","R4, 0 - 1",null,null,null,"R3, 1 - 0","R3, 0 - 1","R1, 0.5 - 0.5","R6, 0 - 1","R2, 0 - 1","R1, 0.5 - 0.5","R1, 0 - 1","R6, 0 - 1","R1, 1 - 0","R3, 1 - 0",null,"R1, 0 - 2","R2, 1 - 0","R3, 0.5 - 0.5","R2, 0 - 1","R3, 1 - 0",null,"R2, 0 - 1","R2, 0.5 - 0.5"]
[null,null,null,null,null,null,null,null,null,null,null,null,null,null,null,null,null,null,null,null,null,null,null,null,null,null,null,null,null,null,null,null,null,null,null,null,null,null,null,null,null,null,null,null,null,null,null,null,null,null,null,null,null,null,null,null,null,null,null,null,null,null,null,null,null,null,null,null,null,null,null,null,null,null,null,null,null,null,null,null,null,null,null,null,null,null,null,null,null,null,null,null,null,null,null,null,null,null,null,null,null,"R1, 0 - 1","R5, 0 - 1","R1, 0 - 1","R1, 11 - 11",null,"R6, 0 - 1","R3, 1 - 0",null,"R1, 0.5 - 0.5","R5, 1 - 0",null,"R1, 0.5 - 0.5","R3, 1 - 0","R1, 1 - 0","R3, 0.5 - 0.5",null,"R1, 1 - 0","R1, 0 - 1",null,"R2, 0 - 1","R2, 1 - 0","R3, 0 - 1","R2, 0 - 1","R2, 0 - 1","R2, 0.5 - 0.5","R6, 0.5 - 0.5","R2, 0.5 - 0.5","R3, 0 - 1"]
[null,null,null,null,null,null,null,null,null,null,null,null,null,null,null,null,null,null,null,null,null,null,null,null,null,null,null,null,null,null,null,null,null,null,null,null,null,null,null,null,null,null,null,null,null,null,null,null,null,null,null,null,null,null,null,null,null,null,null,null,null,null,null,null,null,null,null,null,null,null,null,null,null,null,null,null,null,null,null,null,null,null,null,null,null,null,null,null,null,null,null,null,null,null,null,null,null,null,null,null,null,null,null,"R1, 1 - 0","R2, 0 - 1","R7, 1 - 0","R3, 0 - 1","R1, 0 - 1","R3, 0 - 1",null,"R3, 1 - 0","R6, 1 - 0",null,"R1, 1 - 0",null,"R6, 0.5 - 0.5","R1, 0.5 - 0.5",null,"R3, 0.5 - 0.5","R1, 1 - 0","R1, 0 - 2",null,"R4, 0.5 - 0.5","R2, 1 - 0",null,"R7, 0 - 1","R2, 0.5 - 0.5","R3, 0.5 - 0.5","R2, 0.5 - 0.5"]
[null,null,null,null,null,null,null,null,null,null,null,null,null,null,null,null,null,null,null,null,null,null,null,null,null,null,null,null,null,null,null,null,null,null,null,null,null,null,null,null,null,null,null,null,null,null,null,null,null,null,null,null,null,null,null,null,null,null,null,null,null,null,null,null,null,null,null,null,null,null,null,null,null,null,null,null,null,null,null,null,null,null,null,null,null,null,null,null,null,null,null,null,null,null,null,null,null,null,null,null,"R3, 0 - 1","R3, 0 - 1","R1, 0 - 1","R2, 0.5 - 0.5","R3, 1 - 0",null,"R4, 0 - 1",null,null,"R5, 0.5 - 0.5","R4, 0.5 - 0.5",null,null,null,"R6, 1 - 0","R2, 0 - 1","R1, 0.5 - 0.5",null,"R1, 0 - 1","R4, 1 - 0",null,null,"R3, 12 - 15","R7, 0 - 1",null,"R1, 0 - 1","R1, 1 - 0",null,"R5, 0 - 1"]
[null,null,null,null,null,null,null,null,null,null,null,null,null,null,null,null,null,null,null,null,null,null,null,null,null,null,null,null,null,null,null,null,null,null,null,null,null,null,null,null,null,null,null,null,null,null,null,null,null,null,null,null,null,null,null,null,null,null,null,null,null,null,null,null,null,null,null,null,null,null,null,null,null,null,null,null,null,null,null,null,null,null,null,null,null,null,null,null,null,null,null,null,null,null,null,null,null,null,null,null,null,"R3, 1 - 0","R2, 1 - 0","R1, 0.5 - 0.5","R2, 1 - 0",null,"R4, 0 - 1","R1, 1 - 0",null,null,null,null,"R1, 1 - 0","R2, 1 - 0","R1, 0.5 - 0.5","R4, 1 - 0","R8, 0 - 1",null,null,null,"R1, 0 - 1","R1, 1 - 0","R7, 0 - 1",null,null,"R2, 1 - 0","R4, 0 - 1",null,"R3, 19 - 4"]
[null,null,null,null,null,null,null,null,null,null,null,null,null,null,null,null,null,null,null,null,null,null,null,null,null,null,null,null,null,null,null,null,null,null,null,null,null,null,null,null,null,null,null,null,null,null,null,null,null,null,null,null,null,null,null,null,null,null,null,null,null,null,null,null,null,null,null,null,null,null,null,null,null,null,null,null,null,null,null,null,null,null,null,null,null,null,null,null,null,null,null,null,null,null,null,null,null,null,null,null,null,"R2, 0 - 1","R2, 1 - 0","R1, 0 - 1",null,"R7, 1 - 0",null,null,null,"R6, 0.5 - 0.5","R6, 0 - 1","R1, 0 - 1",null,"R1, 0 - 1","R4, 1 - 0","R1, 0.5 - 0.5",null,null,null,null,"R6, 0.5 - 0.5","R6, 0 - 1","R4, 0 - 1","R1, 1 - 0","R1, 0.5 - 0.5","R3, 22 - 2",null,null,"R2, 0 - 1"]
[null,null,null,null,null,null,null,null,null,null,null,null,null,null,null,null,null,null,null,null,null,null,null,null,null,null,null,null,null,null,null,null,null,null,null,null,null,null,null,null,null,null,null,null,null,null,null,null,null,null,null,null,null,null,null,null,null,null,null,null,null,null,null,null,null,null,null,null,null,null,null,null,null,null,null,null,null,null,null,null,null,null,null,null,null,null,null,null,null,null,null,null,null,null,null,null,null,null,null,null,"R1, 0.5 - 0.5","R2, 1 - 0","R2, 1 - 0","R2, 0.5 - 0.5",null,null,null,null,"R5, 0.5 - 0.5",null,"R1, 0.5 - 0.5",null,"R6, 0.5 - 0.5","R6, 0.5 - 0.5",null,null,"R2, 0.5 - 0.5","R2, 0.5 - 0.5","R1, 0 - 1",null,"R4, 1 - 0","R1, 1 - 0","R5, 0 - 1","R4, 0.5 - 0.5","R1, 1 - 0","R4, 0 - 1","R1, 1 - 0"]
[null,null,null,null,null,null,null,null,null,null,null,null,null,null,null,null,null,null,null,null,null,null,null,null,null,null,null,null,null,null,null,null,null,null,null,null,null,null,null,null,null,null,null,null,null,null,null,null,null,null,null,null,null,null,null,null,null,null,null,null,null,null,null,null,null,null,null,null,null,null,null,null,null,null,null,null,null,null,null,null,null,null,null,null,null,null,null,null,null,null,null,null,null,null,null,null,null,null,null,null,"R2, 0.5 - 0.5","R1, 0.5 - 0.5",null,"R3, 0 - 1","R2, 0 - 1",null,"R6, 0.5 - 0.5","R3, 0 - 1",null,"R1, 1 - 0",null,null,"R5, 0 - 1",null,"R1, 1 - 0","R1, 1 - 0","R4, 0.5 - 0.5","R1, 0 - 1",null,"R3, 1 - 0","R2, 1 - 0","R4, 0.5 - 0.5","R1, 0 - 1","R6, 0.5 - 0.5",null,"R1, 1 - 0",null,"R5, 0 - 1"]
[null,null,null,null,null,null,null,null,null,null,null,null,null,null,null,null,null,null,null,null,null,null,null,null,null,null,null,null,null,null,null,null,null,null,null,null,null,null,null,null,null,null,null,null,null,null,null,null,null,null,null,null,null,null,null,null,null,null,null,null,null,null,null,null,null,null,null,null,null,null,null,null,null,null,null,null,null,null,null,null,null,null,null,null,null,null,null,null,null,null,null,null,null,null,null,null,null,null,null,null,"R3, 1 - 0","R1, 1 - 0","R2, 0 - 1","R8, 0 - 1","R3, 0.5 - 0.5",null,"R5, 1 - 0",null,null,null,null,null,"R1, 0.5 - 0.5","R1, 1 - 0","R1, 0 - 1",null,null,"R4, 0 - 1",null,"R6, 1 - 0",null,null,null,"R1, 1 - 0",null,null,"R6, 1 - 0","R1, 0.5 - 0.5","R1, 0 - 1"]
[null,null,null,null,null,null,null,null,null,null,null,null,null,null,null,null,null,null,null,null,null,null,null,null,null,null,null,null,null,null,null,null,null,null,null,null,null,null,null,null,null,null,null,null,null,null,null,null,null,null,null,null,null,null,null,null,null,null,null,null,null,null,null,null,null,null,null,null,null,null,null,null,null,null,null,null,null,null,null,null,null,null,null,null,null,null,null,null,null,null,null,null,null,null,null,null,null,null,null,null,"R2, 0.5 - 0.5",null,"R3, 0.5 - 0.5","R3, 1 - 0","R6, 1 - 0","R5, 6 - 20",null,null,"R1, 0.5 - 0.5","R8, 0 - 1","R5, 0.5 - 0.5",null,null,"R4, 1 - 0",null,null,"R5, 0 - 1","R1, 1 - 1","R2, 0 - 1","R1, 0.5 - 0.5","R1, 0.5 - 0.5",null,"R1, 0 - 1",null,"R4, 1 - 0",null,"R3, 19 - 5","R6, 0 - 1","R1, 1 - 0"]
[null,null,null,null,null,null,null,null,null,null,null,null,null,null,null,null,null,null,null,null,null,null,null,null,null,null,null,null,null,null,null,null,null,null,null,null,null,null,null,null,null,null,null,null,null,null,null,null,null,null,null,null,null,null,null,null,null,null,null,null,null,null,null,null,null,null,null,null,null,null,null,null,null,null,null,null,null,null,null,null,null,null,null,null,null,null,null,null,null,null,null,null,null,null,null,null,null,null,null,null,"R3, 1 - 0","R7, 1 - 0","R6, 1 - 0",null,null,"R1, 1 - 0",null,"R3, 1 - 0",null,null,"R4, 0.5 - 0.5","R5, 0 - 1",null,null,null,null,"R2, 0.5 - 0.5","R1, 1 - 0","R4, 0.5 - 0.5","R2, 0 - 1","R1, 0 - 1",null,"R3, 11 - 12","R1, 1 - 1","R3, 0 - 1","R6, 0 - 1",null,"R1, 0.5 - 0.5","R1, 1 - 0"]
[null,null,null,null,null,null,null,null,null,null,null,null,null,null,null,null,null,null,null,null,null,null,null,null,null,null,null,null,null,null,null,null,null,null,null,null,null,null,null,null,null,null,null,null,null,null,null,null,null,null,null,null,null,null,null,null,null,null,null,null,null,null,null,null,null,null,null,null,null,null,null,null,null,null,null,null,null,null,null,null,null,null,null,null,null,null,null,null,null,null,null,null,null,null,null,null,null,null,null,null,"R2, 0.5 - 0.5",null,null,null,null,"R2, 0 - 1",null,"R3, 0.5 - 0.5","R3, 0 - 1","R5, 0 - 1","R6, 0 - 1",null,"R4, 0.5 - 0.5","R1, 0.5 - 0.5","R3, 0 - 1","R1, 0.5 - 0.5","R5, 0 - 1","R1, 0.5 - 0.5","R2, 0.5 - 0.5","R3, 0 - 1",null,null,"R1, 0.5 - 0.5",null,null,"R1, 0 - 1",null,null,"R2, 0 - 1"]
[null,null,null,null,null,null,null,null,null,null,null,null,null,null,null,null,null,null,null,null,null,null,null,null,null,null,null,null,null,null,null,null,null,null,null,null,null,null,null,null,null,null,null,null,null,null,null,null,null,null,null,null,null,null,null,null,null,null,null,null,null,null,null,null,null,null,null,null,null,null,null,null,null,null,null,null,null,null,null,null,null,null,null,null,null,null,null,null,null,null,null,null,null,null,null,null,null,null,null,null,null,null,null,null,null,null,"R5, 1 - 0","R3, 0.5 - 0.5","R5, 0 - 1","R3, 0.5 - 0.5",null,"R2, 1 - 0","R6, 0.5 - 0.5",null,"R1, 0 - 1",null,"R3, 0 - 1","R5, 0.5 - 0.5","R3, 0.5 - 0.5","R2, 1 - 0",null,null,null,null,null,"R6, 0 - 1","R2, 0 - 1","R2, 1 - 0","R1, 1 - 0"]
[null,null,null,null,null,null,null,null,null,null,null,null,null,null,null,null,null,null,null,null,null,null,null,null,null,null,null,null,null,null,null,null,null,null,null,null,null,null,null,null,null,null,null,null,null,null,null,null,null,null,null,null,null,null,null,null,null,null,null,null,null,null,null,null,null,null,null,null,null,null,null,null,null,null,null,null,null,null,null,null,null,null,null,null,null,null,null,null,null,null,null,null,null,null,null,null,null,null,null,null,null,null,null,null,"R7, 0.5 - 0.5","R8, 1 - 0",null,"R6, 0.5 - 0.5","R6, 0.5 - 0.5","R4, 1 - 0","R2, 0 - 1",null,null,null,"R1, 0.5 - 0.5","R5, 0 - 1","R2, 0.5 - 0.5",null,"R1, 0.5 - 0.5",null,"R3, 1 - 0","R2, 0.5 - 0.5",null,null,"R4, 1 - 0","R3, 1 - 0"]
[null,null,null,null,null,null,null,null,null,null,null,null,null,null,null,null,null,null,null,null,null,null,null,null,null,null,null,null,null,null,null,null,null,null,null,null,null,null,null,null,null,null,null,null,null,null,null,null,null,null,null,null,null,null,null,null,null,null,null,null,null,null,null,null,null,null,null,null,null,null,null,null,null,null,null,null,null,null,null,null,null,null,null,null,null,null,null,null,null,null,null,null,null,null,null,null,null,null,null,null,null,"R6, 1 - 0","R2, 0 - 1","R7, 0.5 - 0.5","R8, 0.5 - 0.5","R5, 1 - 0","R2, 1 - 0",null,"R5, 2 - 18","R6, 1 - 0","R5, 0 - 1","R6, 0 - 1",null,null,"R2, 1 - 0","R1, 0 - 1","R3, 1 - 0","R1, 0.5 - 0.5",null,null,"R6, 1 - 0","R6, 0.5 - 0.5","R3, 1 - 0",null,null,"R1, 1 - 0",null,"R2, 1 - 0"]
[null,null,null,null,null,null,null,null,null,null,null,null,null,null,null,null,null,null,null,null,null,null,null,null,null,null,null,null,null,null,null,null,null,null,null,null,null,null,null,null,null,null,null,null,null,null,null,null,null,null,null,null,null,null,null,null,null,null,null,null,null,null,null,null,null,null,null,null,null,null,null,null,null,null,null,null,null,null,null,null,null,null,null,null,null,null,null,null,null,null,null,null,null,null,null,null,null,null,null,null,"R6, 0 - 1",null,null,"R4, 1 - 0","R4, 0.5 - 0.5","R6, 0 - 1","R6, 1 - 0","R6, 1 - 0","R2, 1 - 0",null,null,"R3, 0 - 1","R5, 0.5 - 0.5","R1, 0 - 1","R6, 20 - 3",null,null,"R2, 1 - 0",null,null,"R5, 0 - 1",null,"R1, 1 - 0","R5, 0.5 - 0.5",null,"R2, 1 - 0","R1, 0 - 2"]
[null,null,null,null,null,null,null,null,null,null,null,null,null,null,null,null,null,null,null,null,null,null,null,null,null,null,null,null,null,null,null,null,null,null,null,null,null,null,null,null,null,null,null,null,null,null,null,null,null,null,null,null,null,null,null,null,null,null,null,null,null,null,null,null,null,null,null,null,null,null,null,null,null,null,null,null,null,null,null,null,null,null,null,null,null,null,null,null,null,null,null,null,null,null,null,null,null,null,null,null,"R2, 1 - 0",null,null,null,"R1, 0 - 1","R3, 0.5 - 0.5","R5, 0.5 - 0.5","R2, 0.5 - 0.5","R6, 0.5 - 0.5","R1, 19 - 5",null,null,null,null,"R3, 0 - 1",null,"R1, 1 - 0",null,"R5, 0 - 1",null,"R1, 0.5 - 0.5","R1, 0 - 1",null,"R2, 0 - 1",null,null,null,null,"R1, 0 - 1"]
[null,null,null,null,null,null,null,null,null,null,null,null,null,null,null,null,null,null,null,null,null,null,null,null,null,null,null,null,null,null,null,null,null,null,null,null,null,null,null,null,null,null,null,null,null,null,null,null,null,null,null,null,null,null,null,null,null,null,null,null,null,null,null,null,null,null,null,null,null,null,null,null,null,null,null,null,null,null,null,null,null,null,null,null,null,null,null,null,null,null,null,null,null,null,null,null,null,null,null,null,"R7, 0.5 - 0.5","R4, 0 - 1",null,null,null,"R6, 0 - 1","R6, 1 - 0","R5, 0.5 - 0.5",null,null,"R1, 11 - 12",null,"R1, 1 - 0","R3, 1 - 0",null,null,"R6, 1 - 0","R2, 0.5 - 0.5","R1, 0.5 - 0.5","R1, 0 - 1","R1, 0.5 - 0.5",null,"R2, 1 - 0","R1, 0 - 1",null,"R4, 0 - 1",null,"R1, 0.5 - 0.5"]
[null,null,null,null,null,null,null,null,null,null,null,null,null,null,null,null,null,null,null,null,null,null,null,null,null,null,null,null,null,null,null,null,null,null,null,null,null,null,null,null,null,null,null,null,null,null,null,null,null,null,null,null,null,null,null,null,null,null,null,null,null,null,null,null,null,null,null,null,null,null,null,null,null,null,null,null,null,null,null,null,null,null,null,null,null,null,null,null,null,null,null,null,null,null,null,null,null,null,null,null,"R8, 0.5 - 0.5","R4, 0.5 - 0.5","R1, 1 - 0",null,null,"R5, 0 - 1",null,null,"R2, 0 - 1","R2, 1 - 0","R6, 1 - 0","R5, 1 - 0","R2, 0 - 1","R5, 0.5 - 0.5","R3, 10 - 10","R6, 0.5 - 0.5","R1, 0.5 - 0.5",null,null,"R1, 0.5 - 0.5","R2, 13 - 15","R2, 0.5 - 0.5",null,"R1, 0.5 - 0.5","R2, 1 - 0"]
[null,null,null,null,null,null,null,null,null,null,null,null,null,null,null,null,null,null,null,null,null,null,null,null,null,null,null,null,null,null,null,null,null,null,null,null,null,null,null,null,null,null,null,null,null,null,null,null,null,null,null,null,null,null,null,null,null,null,null,null,null,null,null,null,null,null,null,null,null,null,null,null,null,null,null,null,null,null,null,null,null,null,null,null,null,null,null,null,null,null,null,null,null,null,null,null,null,null,null,null,"R5, 0 - 1","R6, 1 - 0","R3, 0.5 - 0.5","R6, 1 - 0","R5, 1 - 0",null,"R1, 1 - 0",null,null,null,null,"R2, 0.5 - 0.5",null,"R4, 1 - 0","R6, 0 - 1","R5, 1 - 0","R2, 1 - 0","R6, 0 - 1","R1, 0.5 - 0.5","R1, 1 - 0","R2, 0 - 1",null,"R2, 1 - 0","R6, 1 - 0","R3, 1 - 0","R2, 0.5 - 0.5","R6, 0.5 - 0.5","R6, 0.5 - 0.5","R1, 0.5 - 0.5"]
[null,null,null,null,null,null,null,null,null,null,null,null,null,null,null,null,null,null,null,null,null,null,null,null,null,null,null,null,null,null,null,null,null,null,null,null,null,null,null,null,null,null,null,null,null,null,null,null,null,null,null,null,null,null,null,null,null,null,null,null,null,null,null,null,null,null,null,null,null,null,null,null,null,null,null,null,null,null,null,null,null,null,null,null,null,null,null,null,null,null,null,null,null,null,null,null,null,null,null,null,"R2, 0 - 1","R6, 0 - 1","R5, 0.5 - 0.5","R6, 0 - 1",null,"R1, 0 - 1",null,null,null,null,null,null,null,"R3, 0 - 1","R2, 0.5 - 0.5","R1, 0.5 - 0.5",null,"R3, 0.5 - 0.5","R5, 0.5 - 0.5","R2, 0 - 1",null,"R3, 0.5 - 0.5",null,"R1, 1 - 0","R6, 1 - 0",null,"R2, 0.5 - 0.5","R6, 0.5 - 0.5","R5, 1 - 0"]
[null,null,null,null,null,null,null,null,null,null,null,null,null,null,null,null,null,null,null,null,null,null,null,null,null,null,null,null,null,null,null,null,null,null,null,null,null,null,null,null,null,null,null,null,null,null,null,null,null,null,null,null,null,null,null,null,null,null,null,null,null,null,null,null,null,null,null,null,null,null,null,null,null,null,null,null,null,null,null,null,null,null,null,null,null,null,null,null,null,null,null,null,null,null,null,null,null,null,null,null,null,"R6, 0 - 1","R2, 0.5 - 0.5","R5, 0.5 - 0.5",null,null,null,null,"R6, 10 - 11",null,"R5, 19 - 4",null,null,"R2, 0.5 - 0.5",null,"R2, 0.5 - 0.5","R4, 1 - 0","R1, 0 - 1","R1, 0 - 1","R2, 1 - 0","R5, 0.5 - 0.5",null,"R1, 0 - 1","R1, 1 - 0","R6, 0.5 - 0.5","R3, 0.5 - 0.5","R6, 0 - 1",null,"R8, 1 - 0"]
[null,null,null,null,null,null,null,null,null,null,null,null,null,null,null,null,null,null,null,null,null,null,null,null,null,null,null,null,null,null,null,null,null,null,null,null,null,null,null,null,null,null,null,null,null,null,null,null,null,null,null,null,null,null,null,null,null,null,null,null,null,null,null,null,null,null,null,null,null,null,null,null,null,null,null,null,null,null,null,null,null,null,null,null,null,null,null,null,null,null,null,null,null,null,null,null,null,null,null,null,"R5, 18 - 2","R2, 0 - 1","R6, 0.5 - 0.5",null,"R2, 1 - 0",null,null,"R6, 11 - 10",null,"R2, 1 - 0","R1, 0.5 - 0.5",null,null,null,"R2, 1 - 0","R1, 0.5 - 0.5","R1, 0 - 1","R1, 0 - 1","R2, 0 - 1","R1, 2 - 0","R1, 1 - 0","R4, 0 - 1","R6, 1 - 0","R6, 0.5 - 0.5","R1, 1 - 0","R1, 0 - 1",null,null,"R3, 0.5 - 0.5"]
[null,null,null,null,null,null,null,null,null,null,null,null,null,null,null,null,null,null,null,null,null,null,null,null,null,null,null,null,null,null,null,null,null,null,null,null,null,null,null,null,null,null,null,null,null,null,null,null,null,null,null,null,null,null,null,null,null,null,null,null,null,null,null,null,null,null,null,null,null,null,null,null,null,null,null,null,null,null,null,null,null,null,null,null,null,null,null,null,null,null,null,null,null,null,null,null,null,null,null,null,"R6, 0 - 1",null,"R1, 5 - 19",null,"R2, 0 - 1",null,null,null,"R2, 0 - 1",null,null,"R2, 0 - 1","R6, 0 - 1","R5, 0 - 1","R4, 0.5 - 0.5","R7, 0 - 1","R1, 1 - 0","R1, 0 - 1","R1, 0.5 - 0.5","R5, 0 - 1","R1, 0.5 - 0.5","R6, 1 - 0","R6, 22 - 5","R6, 1 - 0",null,"R1, 1 - 0","R1, 1 - 0","R5, 0.5 - 0.5","R1, 2 - 0"]
[null,null,null,null,null,null,null,null,null,null,null,null,null,null,null,null,null,null,null,null,null,null,null,null,null,null,null,null,null,null,null,null,null,null,null,null,null,null,null,null,null,null,null,null,null,null,null,null,null,null,null,null,null,null,null,null,null,null,null,null,null,null,null,null,null,null,null,null,null,null,null,null,null,null,null,null,null,null,null,null,null,null,null,null,null,null,null,null,null,null,null,null,null,null,null,null,null,null,null,null,"R5, 1 - 0",null,null,"R1, 12 - 11","R6, 0 - 1",null,null,"R5, 4 - 19","R1, 0.5 - 0.5",null,null,"R5, 1 - 0",null,"R3, 0.5 - 0.5","R1, 1 - 0","R2, 0 - 1","R2, 1 - 0","R2, 1 - 0","R1, 0.5 - 0.5","R5, 0 - 1",null,"R6, 0.5 - 0.5","R3, 0 - 1","R4, 1 - 0",null,null,"R3, 0 - 1","R2, 1 - 0","R2, 0 - 1"]
[null,null,null,null,null,null,null,null,null,null,null,null,null,null,null,null,null,null,null,null,null,null,null,null,null,null,null,null,null,null,null,null,null,null,null,null,null,null,null,null,null,null,null,null,null,null,null,null,null,null,null,null,null,null,null,null,null,null,null,null,null,null,null,null,null,null,null,null,null,null,null,null,null,null,null,null,null,null,null,null,null,null,null,null,null,null,null,null,null,null,null,null,null,null,null,null,null,null,null,null,"R6, 1 - 0","R3, 1 - 0",null,null,"R5, 0 - 1","R2, 0.5 - 0.5",null,null,null,"R2, 1 - 0","R5, 0 - 1",null,"R1, 0 - 2","R1, 0 - 1","R1, 0 - 1",null,"R4, 1 - 0","R5, 0.5 - 0.5","R2, 1 - 0","R5, 1 - 0","R2, 0.5 - 0.5","R1, 1 - 0","R6, 0.5 - 0.5","R5, 1 - 0","R4, 0.5 - 0.5",null,"R1, 1 - 0","R3, 0 - 1","R6, 0.5 - 0.5"]
[null,null,null,null,null,null,null,null,null,null,null,null,null,null,null,null,null,null,null,null,null,null,null,null,null,null,null,null,null,null,null,null,null,null,null,null,null,null,null,null,null,null,null,null,null,null,null,null,null,null,null,null,null,null,null,null,null,null,null,null,null,null,null,null,null,null,null,null,null,null,null,null,null,null,null,null,null,null,null,null,null,null,null,null,null,null,null,null,null,null,null,null,null,null,null,null,null,null,null,null,null,"R5, 0.5 - 0.5",null,"R1, 0 - 1","R2, 1 - 0",null,null,null,null,"R6, 1 - 0",null,"R1, 2 - 0",null,"R1, 0.5 - 0.5",null,null,"R5, 0.5 - 0.5","R2, 0.5 - 0.5","R1, 0.5 - 0.5","R6, 1 - 0","R7, 1 - 0",null,"R3, 0.5 - 0.5",null,"R5, 1 - 0","R8, 0.5 - 0.5","R4, 1 - 0",null,"R3, 0.5 - 0.5"]
[null,null,null,null,null,null,null,null,null,null,null,null,null,null,null,null,null,null,null,null,null,null,null,null,null,null,null,null,null,null,null,null,null,null,null,null,null,null,null,null,null,null,null,null,null,null,null,null,null,null,null,null,null,null,null,null,null,null,null,null,null,null,null,null,null,null,null,null,null,null,null,null,null,null,null,null,null,null,null,null,null,null,null,null,null,null,null,null,null,null,null,null,null,null,null,null,null,null,null,null,null,"R1, 1 - 0",null,"R3, 0 - 1","R5, 0.5 - 0.5","R4, 0 - 1","R3, 1 - 0","R2, 0.5 - 0.5",null,"R5, 1 - 0","R3, 0.5 - 0.5","R1, 1 - 0","R1, 0.5 - 0.5",null,null,"R3, 1 - 0",null,"R3, 20 - 3",null,null,null,null,null,null,"R2, 0.5 - 0.5","R1, 0.5 - 0.5","R2, 1 - 0",null,"R1, 0 - 1"]
[null,null,null,null,null,null,null,null,null,null,null,null,null,null,null,null,null,null,null,null,null,null,null,null,null,null,null,null,null,null,null,null,null,null,null,null,null,null,null,null,null,null,null,null,null,null,null,null,null,null,null,null,null,null,null,null,null,null,null,null,null,null,null,null,null,null,null,null,null,null,null,null,null,null,null,null,null,null,null,null,null,null,null,null,null,null,null,null,null,null,null,null,null,null,null,null,null,null,null,null,"R2, 0 - 1","R6, 3 - 20","R3, 1 - 0",null,"R3, 10 - 10","R6, 1 - 0","R2, 0.5 - 0.5",null,"R2, 0 - 1","R4, 0.5 - 0.5","R1, 0 - 1","R1, 1 - 0",null,null,null,null,null,null,null,null,null,null,"R7, 0 - 1","R1, 0.5 - 0.5","R2, 1 - 0","R6, 1 - 0",null,"R2, 0.5 - 0.5"]
[null,null,null,null,null,null,null,null,null,null,null,null,null,null,null,null,null,null,null,null,null,null,null,null,null,null,null,null,null,null,null,null,null,null,null,null,null,null,null,null,null,null,null,null,null,null,null,null,null,null,null,null,null,null,null,null,null,null,null,null,null,null,null,null,null,null,null,null,null,null,null,null,null,null,null,null,null,null,null,null,null,null,null,null,null,null,null,null,null,null,null,null,null,null,null,null,null,null,null,null,"R1, 1 - 0",null,null,null,"R6, 0.5 - 0.5","R5, 0 - 1","R1, 0.5 - 0.5","R2, 0.5 - 0.5","R1, 0.5 - 0.5","R7, 1 - 0","R2, 1 - 0",null,null,"R3, 0 - 1",null,null,"R3, 0 - 1",null,null,null,"R5, 0 - 1","R2, 0.5 - 0.5","R6, 0 - 1",null,null,"R2, 0 - 1","R1, 1 - 0",null,"R4, 0 - 1"]
[null,null,null,null,null,null,null,null,null,null,null,null,null,null,null,null,null,null,null,null,null,null,null,null,null,null,null,null,null,null,null,null,null,null,null,null,null,null,null,null,null,null,null,null,null,null,null,null,null,null,null,null,null,null,null,null,null,null,null,null,null,null,null,null,null,null,null,null,null,null,null,null,null,null,null,null,null,null,null,null,null,null,null,null,null,null,null,null,null,null,null,null,null,null,null,null,null,null,null,null,"R3, 0 - 1",null,"R1, 0 - 1","R6, 0 - 1","R1, 0.5 - 0.5","R2, 0 - 1",null,"R4, 0 - 1","R1, 1 - 0","R1, 0 - 1","R2, 0 - 1","R4, 0 - 1","R5, 0.5 - 0.5",null,null,"R3, 1 - 0",null,"R7, 0 - 1",null,"R2, 1 - 0",null,"R2, 1 - 0","R2, 1 - 0",null,"R6, 0 - 1","R5, 22 - 8","R4, 0 - 1",null,"R1, 1 - 0"]
[null,null,null,null,null,null,null,null,null,null,null,null,null,null,null,null,null,null,null,null,null,null,null,null,null,null,null,null,null,null,null,null,null,null,null,null,null,null,null,null,null,null,null,null,null,null,null,null,null,null,null,null,null,null,null,null,null,null,null,null,null,null,null,null,null,null,null,null,null,null,null,null,null,null,null,null,null,null,null,null,null,null,null,null,null,null,null,null,null,null,null,null,null,null,null,null,null,null,null,null,"R1, 0.5 - 0.5","R2, 0 - 1",null,"R2, 0.5 - 0.5",null,"R6, 1 - 0","R3, 0.5 - 0.5","R1, 1 - 0","R1, 1 - 0","R1, 1 - 0","R2, 0 - 1","R5, 0.5 - 0.5","R2, 0.5 - 0.5","R3, 3 - 20",null,null,"R7, 1 - 0",null,null,null,null,"R1, 0 - 1","R3, 0 - 1","R2, 1 - 0",null,"R4, 0.5 - 0.5","R6, 0.5 - 0.5","R2, 0.5 - 0.5","R4, 1 - 0"]
[null,null,null,null,null,null,null,null,null,null,null,null,null,null,null,null,null,null,null,null,null,null,null,null,null,null,null,null,null,null,null,null,null,null,null,null,null,null,null,null,null,null,null,null,null,null,null,null,null,null,null,null,null,null,null,null,null,null,null,null,null,null,null,null,null,null,null,null,null,null,null,null,null,null,null,null,null,null,null,null,null,null,null,null,null,null,null,null,null,null,null,null,null,null,null,null,null,null,null,null,null,null,"R5, 1 - 0","R1, 0.5 - 0.5",null,"R1, 0.5 - 0.5","R5, 0.5 - 0.5","R1, 1 - 0","R2, 1 - 0","R1, 0.5 - 0.5","R1, 0.5 - 0.5","R2, 0 - 1","R1, 0.5 - 0.5",null,null,null,null,null,null,null,"R4, 19 - 2","R2, 1 - 0","R1, 0 - 1","R2, 1 - 0",null,null,null,"R1, 1 - 0"]
[null,null,null,null,null,null,null,null,null,null,null,null,null,null,null,null,null,null,null,null,null,null,null,null,null,null,null,null,null,null,null,null,null,null,null,null,null,null,null,null,null,null,null,null,null,null,null,null,null,null,null,null,null,null,null,null,null,null,null,null,null,null,null,null,null,null,null,null,null,null,null,null,null,null,null,null,null,null,null,null,null,null,null,null,null,null,null,null,null,null,null,null,null,null,null,null,null,null,null,null,null,null,null,"R1, 1 - 0","R1, 0.5 - 0.5","R1, 0 - 1","R2, 1 - 0","R2, 0 - 1","R1, 0 - 2","R5, 1 - 0","R5, 1 - 0","R5, 0 - 1","R6, 0 - 1",null,null,null,"R2, 0 - 1",null,null,null,"R8, 0.5 - 0.5",null,"R2, 0 - 1",null,"R4, 0 - 1","R2, 0 - 1","R2, 1 - 0","R6, 0 - 1"]
[null,null,null,null,null,null,null,null,null,null,null,null,null,null,null,null,null,null,null,null,null,null,null,null,null,null,null,null,null,null,null,null,null,null,null,null,null,null,null,null,null,null,null,null,null,null,null,null,null,null,null,null,null,null,null,null,null,null,null,null,null,null,null,null,null,null,null,null,null,null,null,null,null,null,null,null,null,null,null,null,null,null,null,null,null,null,null,null,null,null,null,null,null,null,null,null,null,null,null,null,"R6, 0 - 1","R5, 1 - 0","R1, 0.5 - 0.5","R1, 0.5 - 0.5","R2, 15 - 13","R2, 1 - 0",null,"R5, 0.5 - 0.5","R1, 0 - 1","R1, 0.5 - 0.5",null,"R2, 0.5 - 0.5","R7, 0 - 1",null,null,"R5, 1 - 0",null,null,"R4, 2 - 19","R8, 0.5 - 0.5",null,"R6, 0 - 1","R6, 1 - 0","R4, 0 - 1","R1, 0.5 - 0.5","R3, 0 - 1",null,null,"R2, 0 - 1"]
[null,null,null,null,null,null,null,null,null,null,null,null,null,null,null,null,null,null,null,null,null,null,null,null,null,null,null,null,null,null,null,null,null,null,null,null,null,null,null,null,null,null,null,null,null,null,null,null,null,null,null,null,null,null,null,null,null,null,null,null,null,null,null,null,null,null,null,null,null,null,null,null,null,null,null,null,null,null,null,null,null,null,null,null,null,null,null,null,null,null,null,null,null,null,null,null,null,null,null,null,"R6, 0.5 - 0.5",null,"R1, 1 - 0",null,"R2, 0.5 - 0.5",null,"R3, 0.5 - 0.5",null,"R4, 1 - 0","R6, 0 - 1","R6, 0.5 - 0.5","R1, 0 - 1",null,null,null,"R2, 0.5 - 0.5","R2, 0 - 1","R1, 1 - 0","R2, 0 - 1",null,"R6, 1 - 0",null,null,"R6, 10 - 10"]
[null,null,null,null,null,null,null,null,null,null,null,null,null,null,null,null,null,null,null,null,null,null,null,null,null,null,null,null,null,null,null,null,null,null,null,null,null,null,null,null,null,null,null,null,null,null,null,null,null,null,null,null,null,null,null,null,null,null,null,null,null,null,null,null,null,null,null,null,null,null,null,null,null,null,null,null,null,null,null,null,null,null,null,null,null,null,null,null,null,null,null,null,null,null,null,null,null,null,null,null,"R3, 0 - 1","R1, 0 - 1",null,"R2, 0 - 1",null,"R2, 0 - 1",null,"R1, 1 - 0","R6, 0 - 1","R6, 5 - 22","R3, 1 - 0","R6, 0.5 - 0.5","R3, 0.5 - 0.5",null,"R7, 1 - 0","R6, 1 - 0","R2, 0 - 1","R3, 1 - 0","R1, 1 - 0","R2, 1 - 0","R6, 0 - 1",null,null,"R5, 0 - 1",null,null,null,null,"R6, 0.5 - 0.5"]
[null,null,null,null,null,null,null,null,null,null,null,null,null,null,null,null,null,null,null,null,null,null,null,null,null,null,null,null,null,null,null,null,null,null,null,null,null,null,null,null,null,null,null,null,null,null,null,null,null,null,null,null,null,null,null,null,null,null,null,null,null,null,null,null,null,null,null,null,null,null,null,null,null,null,null,null,null,null,null,null,null,null,null,null,null,null,null,null,null,null,null,null,null,null,null,null,null,null,null,null,null,"R5, 0.5 - 0.5","R2, 1 - 0","R1, 1 - 0","R1, 0.5 - 0.5","R6, 0 - 1","R1, 0 - 1","R1, 0 - 1","R6, 0.5 - 0.5","R6, 0 - 1","R4, 0 - 1","R5, 0 - 1",null,null,"R1, 0.5 - 0.5",null,null,"R2, 0 - 1","R2, 0 - 1",null,"R4, 1 - 0","R6, 10 - 10","R5, 1 - 0"]
[null,null,null,null,null,null,null,null,null,null,null,null,null,null,null,null,null,null,null,null,null,null,null,null,null,null,null,null,null,null,null,null,null,null,null,null,null,null,null,null,null,null,null,null,null,null,null,null,null,null,null,null,null,null,null,null,null,null,null,null,null,null,null,null,null,null,null,null,null,null,null,null,null,null,null,null,null,null,null,null,null,null,null,null,null,null,null,null,null,null,null,null,null,null,null,null,null,null,null,null,null,null,null,null,"R2, 0 - 1","R3, 0 - 1","R6, 0 - 1","R6, 0.5 - 0.5","R1, 0 - 1",null,null,"R4, 0.5 - 0.5","R5, 0 - 1","R2, 0.5 - 0.5","R2, 0 - 1",null,"R6, 1 - 0",null,null,"R4, 1 - 0","R1, 0.5 - 0.5"]
[null,null,null,null,null,null,null,null,null,null,null,null,null,null,null,null,null,null,null,null,null,null,null,null,null,null,null,null,null,null,null,null,null,null,null,null,null,null,null,null,null,null,null,null,null,null,null,null,null,null,null,null,null,null,null,null,null,null,null,null,null,null,null,null,null,null,null,null,null,null,null,null,null,null,null,null,null,null,null,null,null,null,null,null,null,null,null,null,null,null,null,null,null,null,null,null,null,null,null,null,"R1, 0 - 1","R2, 0 - 1",null,"R4, 1 - 0",null,"R2, 0.5 - 0.5",null,"R3, 0.5 - 0.5","R1, 1 - 0","R1, 0 - 1",null,null,"R8, 0.5 - 0.5","R1, 0.5 - 0.5","R6, 0 - 1","R2, 1 - 0","R5, 8 - 22","R4, 0.5 - 0.5",null,"R2, 1 - 0","R3, 1 - 0",null,null,null,null,null,"R6, 0.5 - 0.5"]
[null,null,null,null,null,null,null,null,null,null,null,null,null,null,null,null,null,null,null,null,null,null,null,null,null,null,null,null,null,null,null,null,null,null,null,null,null,null,null,null,null,null,null,null,null,null,null,null,null,null,null,null,null,null,null,null,null,null,null,null,null,null,null,null,null,null,null,null,null,null,null,null,null,null,null,null,null,null,null,null,null,null,null,null,null,null,null,null,null,null,null,null,null,null,null,null,null,null,null,null,null,"R1, 2 - 0",null,null,null,"R6, 0.5 - 0.5","R2, 0.5 - 0.5","R6, 1 - 0",null,"R1, 0 - 1","R3, 1 - 0","R1, 0 - 1","R4, 0 - 1","R2, 0 - 1",null,"R1, 0 - 1","R4, 1 - 0","R6, 0.5 - 0.5",null,"R2, 0 - 1",null,null,null,null,null,"R6, 0.5 - 0.5",null,"R3, 1 - 0"]
[null,null,null,null,null,null,null,null,null,null,null,null,null,null,null,null,null,null,null,null,null,null,null,null,null,null,null,null,null,null,null,null,null,null,null,null,null,null,null,null,null,null,null,null,null,null,null,null,null,null,null,null,null,null,null,null,null,null,null,null,null,null,null,null,null,null,null,null,null,null,null,null,null,null,null,null,null,null,null,null,null,null,null,null,null,null,null,null,null,null,null,null,null,null,null,null,null,null,null,null,"R2, 0 - 1",null,null,"R1, 0.5 - 0.5",null,"R6, 0.5 - 0.5","R6, 0.5 - 0.5",null,null,"R5, 0.5 - 0.5","R2, 0 - 1","R3, 1 - 0",null,null,"R2, 0.5 - 0.5",null,null,"R2, 0.5 - 0.5","R1, 0 - 1","R6, 1 - 0",null,null,null,null,null,null,"R3, 0 - 1"]
[null,null,null,null,null,null,null,null,null,null,null,null,null,null,null,null,null,null,null,null,null,null,null,null,null,null,null,null,null,null,null,null,null,null,null,null,null,null,null,null,null,null,null,null,null,null,null,null,null,null,null,null,null,null,null,null,null,null,null,null,null,null,null,null,null,null,null,null,null,null,null,null,null,null,null,null,null,null,null,null,null,null,null,null,null,null,null,null,null,null,null,null,null,null,null,null,null,null,null,null,null,null,"R1, 1 - 0",null,null,"R1, 0.5 - 0.5","R5, 0 - 1","R8, 0 - 1","R3, 0.5 - 0.5","R1, 0 - 2","R2, 1 - 0","R6, 0.5 - 0.5","R3, 0.5 - 0.5","R1, 1 - 0",null,"R4, 1 - 0","R1, 0 - 1","R4, 0 - 1",null,null,"R2, 1 - 0",null,"R6, 0.5 - 0.5"]

{"sheet":"Round1","index":10,"n_rows":15,"n_cols":23,"rows_kept":15,"cut":false,"hidden":false,"merged":[]}
["Swaps: 0","Home Player","Away Player","Home Points","Away Points","Home TD","Away TD","Home Cas","Away Cas","Home Bonus1","Away Bonus1","Home Bonus2","Away Bonus2","Home Group","Away Group",null,null,null,"Points Before Games",null,null,"Points After Games"]
[null,"d","b",{"$f":"fctScore(F2,G2,H2,J2,L2)","v":1},{"$f":"fctScore(G2,F2,I2,K2,M2)","v":1},2,2,2,1,1,2,0,2,null,null,null,null,null,"d",0,null,"d",2]
[null,"a","c",{"$f":"fctScore(F3,G3,H3,J3,L3)","v":1},{"$f":"fctScore(G3,F3,I3,K3,M3)","v":1},2,2,0,1,3,2,1,3,null,null,null,null,null,"b",0,null,"c",2]
[null,"n","m",2,0,3,0,3,1,2,2,0,2,null,null,null,null,null,"a",0,null,"b",2]
[null,"i","e",1,1,1,1,2,2,1,1,2,2,null,null,null,null,null,"c",0,null,"a",2]
[null,"l","k",0,2,2,3,3,1,2,3,1,2,null,null,null,null,null,"n",0,null,"n",2]
[null,"f","h",0,2,0,3,2,0,2,0,0,2,null,null,null,null,null,"m",0,null,"h",2]
[null,"j","g",2,0,1,0,1,1,1,3,3,1,null,null,null,null,null,"i",0,null,"k",2]
[null,null,null,null,null,null,null,null,null,null,null,null,null,null,null,null,null,null,"e",0,null,"e",1]
[null,null,null,null,null,null,null,null,null,null,null,null,null,null,null,null,null,null,"l",0,null,"i",1]
[null,null,null,null,null,null,null,null,null,null,null,null,null,null,null,null,null,null,"k",0,null,"l",0]
[null,null,null,null,null,null,null,null,null,null,null,null,null,null,null,null,null,null,"f",0,null,"f",0]
[null,null,null,null,null,null,null,null,null,null,null,null,null,null,null,null,null,null,"h",0,null,"m",0]
[null,null,null,null,null,null,null,null,null,null,null,null,null,null,null,null,null,null,"j",0,null,"j",-98]
[null,null,null,null,null,null,null,null,null,null,null,null,null,null,null,null,null,null,"g",0,null,"g",-100]

{"sheet":"Round2","index":11,"n_rows":0,"n_cols":0,"rows_kept":0,"cut":false,"hidden":false,"merged":[]}

{"sheet":"Round3","index":12,"n_rows":0,"n_cols":0,"rows_kept":0,"cut":false,"hidden":false,"merged":[]}

{"sheet":"Round4","index":13,"n_rows":0,"n_cols":0,"rows_kept":0,"cut":false,"hidden":false,"merged":[]}

{"sheet":"Round5","index":14,"n_rows":0,"n_cols":0,"rows_kept":0,"cut":false,"hidden":false,"merged":[]}

{"sheet":"Round6","index":15,"n_rows":0,"n_cols":0,"rows_kept":0,"cut":false,"hidden":false,"merged":[]}

{"sheet":"Round7","index":16,"n_rows":0,"n_cols":0,"rows_kept":0,"cut":false,"hidden":false,"merged":[]}

{"sheet":"Round8","index":17,"n_rows":0,"n_cols":0,"rows_kept":0,"cut":false,"hidden":false,"merged":[]}

{"sheet":"Round9","index":18,"n_rows":0,"n_cols":0,"rows_kept":0,"cut":false,"hidden":false,"merged":[]}

{"sheet":"NAF","index":19,"n_rows":861,"n_cols":1,"rows_kept":861,"cut":false,"hidden":false,"merged":[]}
["<?xml version=\"1.0\" encoding=\"UTF-8\"?>"]
["<nafReport xmlns:blo=\"http://www.bloodbowl.net\">"]
["<organiser>Mike</organiser>"]
["<coaches>"]
["<coach>"]
["<name>Alex</name>"]
["<number>16761</number>"]
["<team>Skaven</team>"]
["</coach>"]
["<coach>"]
["<name>Mike</name>"]
["<number>10468</number>"]
["<team>Elves</team>"]
["</coach>"]
["<coach>"]
["<name>Linus</name>"]
["<number>15676</number>"]
["<team>Dwarves</team>"]
["</coach>"]
["<coach>"]
["<name>Player4</name>"]
["<number>9106</number>"]
["<team>Wood Elves</team>"]
["</coach>"]
["<coach>"]
["<name>Player5</name>"]
["<number>12789</number>"]
["<team>Dark Elves</team>"]
["</coach>"]
["<coach>"]
["<name>Player6</name>"]
["<number>18136</number>"]
["<team>Wood Elves</team>"]
["</coach>"]
["<coach>"]
["<name>Player7</name>"]
["<number>9672</number>"]
["<team>Wood Elves</team>"]
["</coach>"]
["<coach>"]
["<name>Player8</name>"]
["<number>4118</number>"]
["<team>Chaos Dwarves</team>"]
["</coach>"]
["<coach>"]
["<name>Player9</name>"]
["<number>14129</number>"]
["<team>Nurgle's Rotters</team>"]
["</coach>"]
["<coach>"]
["<name>Player10</name>"]
["<number>1739</number>"]
["<team>Lizardmen</team>"]
["</coach>"]
["<coach>"]
["<name>Player11</name>"]
["<number>19602</number>"]
["<team>Slann</team>"]
["</coach>"]
["<coach>"]
["<name>Player12</name>"]
["<number>15064</number>"]
["<team>Wood Elves</team>"]
["</coach>"]
["<coach>"]
["<name>Player13</name>"]
["<number>6092</number>"]
["<team>Amazons</team>"]
["</coach>"]
["<coach>"]
["<name>Player14</name>"]
["<number>9080</number>"]
["<team>Dwarves</team>"]
["</coach>"]
["<coach>"]
["<name>Player15</name>"]
["<number>7960</number>"]
["<team>Undead</team>"]
["</coach>"]
["<coach>"]
["<name>Player16</name>"]
["<number>15062</number>"]
["<team>Goblins</team>"]
["</coach>"]
["<coach>"]
["<name>Player17</name>"]
["<number>7106</number>"]
["<team>Wood Elves</team>"]
["</coach>"]
["<coach>"]
["<name>Player18</name>"]
["<number>7371</number>"]
["<team>Khemri</team>"]
["</coach>"]
["</coaches>"]
["<game>"]
["<timestamp>2016-09-18 01:00</timestamp>"]
["<playerRecord>"]
["<name>Player7</name>"]
["<number>9672</number>"]
["<teamRating>100</teamRating>"]
["<touchDowns>12</touchDowns>"]
["<badlyHurt>2</badlyHurt>"]
["</playerRecord>"]
["<playerRecord>"]
["<name>Player9</name>"]
["<number>14129</number>"]
["<teamRating>100</teamRating>"]
["<touchDowns>7</touchDowns>"]
["<badlyHurt>1</badlyHurt>"]
["</playerRecord>"]
["</game>"]
["<game>"]
["<timestamp>2016-09-18 01:00</timestamp>"]
["<playerRecord>"]
["<name>Player6</name>"]
["<number>18136</number>"]
["<teamRating>100</teamRating>"]
["<touchDowns>12</touchDowns>"]
["<badlyHurt>2</badlyHurt>"]
["</playerRecord>"]
["<playerRecord>"]
["<name>Player11</name>"]
["<number>19602</number>"]
["<teamRating>100</teamRating>"]
["<touchDowns>12</touchDowns>"]
["<badlyHurt>2</badlyHurt>"]
["</playerRecord>"]
["</game>"]
["<game>"]
["<timestamp>2016-09-18 01:00</timestamp>"]
["<playerRecord>"]
["<name>Player17</name>"]
["<number>7106</number>"]
["<teamRating>100</teamRating>"]
["<touchDowns>10</touchDowns>"]
["<badlyHurt>2</badlyHurt>"]
["</playerRecord>"]
["<playerRecord>"]
["<name>Player13</name>"]
["<number>6092</number>"]
["<teamRating>100</teamRating>"]
["<touchDowns>8</touchDowns>"]
["<badlyHurt>2</badlyHurt>"]
["</playerRecord>"]
["</game>"]
["<game>"]
["<timestamp>2016-09-18 01:00</timestamp>"]
["<playerRecord>"]
["<name>Player8</name>"]
["<number>4118</number>"]
["<teamRating>100</teamRating>"]
["<touchDowns>3</touchDowns>"]
["<badlyHurt>1</badlyHurt>"]
["</playerRecord>"]
["<playerRecord>"]
["<name>Linus</name>"]
["<number>15676</number>"]
["<teamRating>100</teamRating>"]
["<touchDowns>16</touchDowns>"]
["<badlyHurt>3</badlyHurt>"]
["</playerRecord>"]
["</game>"]
["<game>"]
["<timestamp>2016-09-18 01:00</timestamp>"]
["<playerRecord>"]
["<name>Player14</name>"]
["<number>9080</number>"]
["<teamRating>100</teamRating>"]
["<touchDowns>9</touchDowns>"]
["<badlyHurt>1</badlyHurt>"]
["</playerRecord>"]
["<playerRecord>"]
["<name>Player10</name>"]
["<number>1739</number>"]
["<teamRating>100</teamRating>"]
["<touchDowns>11</touchDowns>"]
["<badlyHurt>2</badlyHurt>"]
["</playerRecord>"]
["</game>"]
["<game>"]
["<timestamp>2016-09-18 01:00</timestamp>"]
["<playerRecord>"]
["<name>Mike</name>"]
["<number>10468</number>"]
["<teamRating>100</teamRating>"]
["<touchDowns>4</touchDowns>"]
["<badlyHurt>0</badlyHurt>"]
["</playerRecord>"]
["<playerRecord>"]
["<name>Player5</name>"]
["<number>12789</number>"]
["<teamRating>100</teamRating>"]
["<touchDowns>17</touchDowns>"]
["<badlyHurt>2</badlyHurt>"]
["</playerRecord>"]
["</game>"]
["<game>"]
["<timestamp>2016-09-18 01:00</timestamp>"]
["<playerRecord>"]
["<name>Player15</name>"]
["<number>7960</number>"]
["<teamRating>100</teamRating>"]
["<touchDowns>7</touchDowns>"]
["<badlyHurt>0</badlyHurt>"]
["</playerRecord>"]
["<playerRecord>"]
["<name>Player16</name>"]
["<number>15062</number>"]
["<teamRating>100</teamRating>"]
["<touchDowns>8</touchDowns>"]
["<badlyHurt>0</badlyHurt>"]
["</playerRecord>"]
["</game>"]
["<game>"]
["<timestamp>2016-09-18 01:00</timestamp>"]
["<playerRecord>"]
["<name>Player18</name>"]
["<number>7371</number>"]
["<teamRating>100</teamRating>"]
["<touchDowns>14</touchDowns>"]
["<badlyHurt>2</badlyHurt>"]
["</playerRecord>"]
["<playerRecord>"]
["<name>Player12</name>"]
["<number>15064</number>"]
["<teamRating>100</teamRating>"]
["<touchDowns>6</touchDowns>"]
["<badlyHurt>0</badlyHurt>"]
["</playerRecord>"]
["</game>"]
["<game>"]
["<timestamp>2016-09-18 01:00</timestamp>"]
["<playerRecord>"]
["<name>Alex</name>"]
["<number>16761</number>"]
["<teamRating>100</teamRating>"]
["<touchDowns>11</touchDowns>"]
["<badlyHurt>3</badlyHurt>"]
["</playerRecord>"]
["<playerRecord>"]
["<name>Player4</name>"]
["<number>9106</number>"]
["<teamRating>100</teamRating>"]
["<touchDowns>7</touchDowns>"]
["<badlyHurt>2</badlyHurt>"]
["</playerRecord>"]
["</game>"]
["<game>"]
["<timestamp>2016-09-18 02:00</timestamp>"]
["<playerRecord>"]
["<name>Player5</name>"]
["<number>12789</number>"]
["<teamRating>100</teamRating>"]
["<touchDowns>13</touchDowns>"]
["<badlyHurt>1</badlyHurt>"]
["</playerRecord>"]
["<playerRecord>"]
["<name>Linus</name>"]
["<number>15676</number>"]
["<teamRating>100</teamRating>"]
["<touchDowns>3</touchDowns>"]
["<badlyHurt>0</badlyHurt>"]
["</playerRecord>"]
["</game>"]
["<game>"]
["<timestamp>2016-09-18 02:00</timestamp>"]
["<playerRecord>"]
["<name>Player18</name>"]
["<number>7371</number>"]
["<teamRating>100</teamRating>"]
["<touchDowns>11</touchDowns>"]
["<badlyHurt>3</badlyHurt>"]
["</playerRecord>"]
["<playerRecord>"]
["<name>Player7</name>"]
["<number>9672</number>"]
["<teamRating>100</teamRating>"]
["<touchDowns>6</touchDowns>"]
["<badlyHurt>2</badlyHurt>"]
["</playerRecord>"]
["</game>"]
["<game>"]
["<timestamp>2016-09-18 02:00</timestamp>"]
["<playerRecord>"]
["<name>Player6</name>"]
["<number>18136</number>"]
["<teamRating>100</teamRating>"]
["<touchDowns>10</touchDowns>"]
["<badlyHurt>2</badlyHurt>"]
["</playerRecord>"]
["<playerRecord>"]
["<name>Player10</name>"]
["<number>1739</number>"]
["<teamRating>100</teamRating>"]
["<touchDowns>5</touchDowns>"]
["<badlyHurt>1</badlyHurt>"]
["</playerRecord>"]
["</game>"]
["<game>"]
["<timestamp>2016-09-18 02:00</timestamp>"]
["<playerRecord>"]
["<name>Player11</name>"]
["<number>19602</number>"]
["<teamRating>100</teamRating>"]
["<touchDowns>9</touchDowns>"]
["<badlyHurt>1</badlyHurt>"]
["</playerRecord>"]
["<playerRecord>"]
["<name>Alex</name>"]
["<number>16761</number>"]
["<teamRating>100</teamRating>"]
["<touchDowns>16</touchDowns>"]
["<badlyHurt>3</badlyHurt>"]
["</playerRecord>"]
["</game>"]
["<game>"]
["<timestamp>2016-09-18 02:00</timestamp>"]
["<playerRecord>"]
["<name>Player17</name>"]
["<number>7106</number>"]
["<teamRating>100</teamRating>"]
["<touchDowns>15</touchDowns>"]
["<badlyHurt>2</badlyHurt>"]
["</playerRecord>"]
["<playerRecord>"]
["<name>Player14</name>"]
["<number>9080</number>"]
["<teamRating>100</teamRating>"]
["<touchDowns>4</touchDowns>"]
["<badlyHurt>1</badlyHurt>"]
["</playerRecord>"]
["</game>"]
["<game>"]
["<timestamp>2016-09-18 02:00</timestamp>"]
["<playerRecord>"]
["<name>Player13</name>"]
["<number>6092</number>"]
["<teamRating>100</teamRating>"]
["<touchDowns>10</touchDowns>"]
["<badlyHurt>1</badlyHurt>"]
["</playerRecord>"]
["<playerRecord>"]
["<name>Player16</name>"]
["<number>15062</number>"]
["<teamRating>100</teamRating>"]
["<touchDowns>9</touchDowns>"]
["<badlyHurt>1</badlyHurt>"]
["</playerRecord>"]
["</game>"]
["<game>"]
["<timestamp>2016-09-18 02:00</timestamp>"]
["<playerRecord>"]
["<name>Player15</name>"]
["<number>7960</number>"]
["<teamRating>100</teamRating>"]
["<touchDowns>16</touchDowns>"]
["<badlyHurt>2</badlyHurt>"]
["</playerRecord>"]
["<playerRecord>"]
["<name>Player9</name>"]
["<number>14129</number>"]
["<teamRating>100</teamRating>"]
["<touchDowns>7</touchDowns>"]
["<badlyHurt>1</badlyHurt>"]
["</playerRecord>"]
["</game>"]
["<game>"]
["<timestamp>2016-09-18 02:00</timestamp>"]
["<playerRecord>"]
["<name>Player4</name>"]
["<number>9106</number>"]
["<teamRating>100</teamRating>"]
["<touchDowns>10</touchDowns>"]
["<badlyHurt>1</badlyHurt>"]
["</playerRecord>"]
["<playerRecord>"]
["<name>Player12</name>"]
["<number>15064</number>"]
["<teamRating>100</teamRating>"]
["<touchDowns>10</touchDowns>"]
["<badlyHurt>1</badlyHurt>"]
["</playerRecord>"]
["</game>"]
["<game>"]
["<timestamp>2016-09-18 02:00</timestamp>"]
["<playerRecord>"]
["<name>Mike</name>"]
["<number>10468</number>"]
["<teamRating>100</teamRating>"]
["<touchDowns>7</touchDowns>"]
["<badlyHurt>1</badlyHurt>"]
["</playerRecord>"]
["<playerRecord>"]
["<name>Player8</name>"]
["<number>4118</number>"]
["<teamRating>100</teamRating>"]
["<touchDowns>13</touchDowns>"]
["<badlyHurt>2</badlyHurt>"]
["</playerRecord>"]
["</game>"]
["<game>"]
["<timestamp>2016-09-18 03:00</timestamp>"]
["<playerRecord>"]
["<name>Player5</name>"]
["<number>12789</number>"]
["<teamRating>100</teamRating>"]
["<touchDowns>7</touchDowns>"]
["<badlyHurt>1</badlyHurt>"]
["</playerRecord>"]
["<playerRecord>"]
["<name>Alex</name>"]
["<number>16761</number>"]
["<teamRating>100</teamRating>"]
["<touchDowns>12</touchDowns>"]
["<badlyHurt>1</badlyHurt>"]
["</playerRecord>"]
["</game>"]
["<game>"]
["<timestamp>2016-09-18 03:00</timestamp>"]
["<playerRecord>"]
["<name>Player18</name>"]
["<number>7371</number>"]
["<teamRating>100</teamRating>"]
["<touchDowns>9</touchDowns>"]
["<badlyHurt>1</badlyHurt>"]
["</playerRecord>"]
["<playerRecord>"]
["<name>Player17</name>"]
["<number>7106</number>"]
["<teamRating>100</teamRating>"]
["<touchDowns>11</touchDowns>"]
["<badlyHurt>1</badlyHurt>"]
["</playerRecord>"]
["</game>"]
["<game>"]
["<timestamp>2016-09-18 03:00</timestamp>"]
["<playerRecord>"]
["<name>Player15</name>"]
["<number>7960</number>"]
["<teamRating>100</teamRating>"]
["<touchDowns>5</touchDowns>"]
["<badlyHurt>1</badlyHurt>"]
["</playerRecord>"]
["<playerRecord>"]
["<name>Player6</name>"]
["<number>18136</number>"]
["<teamRating>100</teamRating>"]
["<touchDowns>14</touchDowns>"]
["<badlyHurt>3</badlyHurt>"]
["</playerRecord>"]
["</game>"]
["<game>"]
["<timestamp>2016-09-18 03:00</timestamp>"]
["<playerRecord>"]
["<name>Player11</name>"]
["<number>19602</number>"]
["<teamRating>100</teamRating>"]
["<touchDowns>4</touchDowns>"]
["<badlyHurt>0</badlyHurt>"]
["</playerRecord>"]
["<playerRecord>"]
["<name>Linus</name>"]
["<number>15676</number>"]
["<teamRating>100</teamRating>"]
["<touchDowns>12</touchDowns>"]
["<badlyHurt>1</badlyHurt>"]
["</playerRecord>"]
["</game>"]
["<game>"]
["<timestamp>2016-09-18 03:00</timestamp>"]
["<playerRecord>"]
["<name>Player7</name>"]
["<number>9672</number>"]
["<teamRating>100</teamRating>"]
["<touchDowns>11</touchDowns>"]
["<badlyHurt>2</badlyHurt>"]
["</playerRecord>"]
["<playerRecord>"]
["<name>Player13</name>"]
["<number>6092</number>"]
["<teamRating>100</teamRating>"]
["<touchDowns>11</touchDowns>"]
["<badlyHurt>2</badlyHurt>"]
["</playerRecord>"]
["</game>"]
["<game>"]
["<timestamp>2016-09-18 03:00</timestamp>"]
["<playerRecord>"]
["<name>Player16</name>"]
["<number>15062</number>"]
["<teamRating>100</teamRating>"]
["<touchDowns>7</touchDowns>"]
["<badlyHurt>0</badlyHurt>"]
["</playerRecord>"]
["<playerRecord>"]
["<name>Player4</name>"]
["<number>9106</number>"]
["<teamRating>100</teamRating>"]
["<touchDowns>11</touchDowns>"]
["<badlyHurt>1</badlyHurt>"]
["</playerRecord>"]
["</game>"]
["<game>"]
["<timestamp>2016-09-18 03:00</timestamp>"]
["<playerRecord>"]
["<name>Player10</name>"]
["<number>1739</number>"]
["<teamRating>100</teamRating>"]
["<touchDowns>14</touchDowns>"]
["<badlyHurt>2</badlyHurt>"]
["</playerRecord>"]
["<playerRecord>"]
["<name>Player8</name>"]
["<number>4118</number>"]
["<teamRating>100</teamRating>"]
["<touchDowns>4</touchDowns>"]
["<badlyHurt>1</badlyHurt>"]
["</playerRecord>"]
["</game>"]
["<game>"]
["<timestamp>2016-09-18 03:00</timestamp>"]
["<playerRecord>"]
["<name>Player12</name>"]
["<number>15064</number>"]
["<teamRating>100</teamRating>"]
["<touchDowns>5</touchDowns>"]
["<badlyHurt>0</badlyHurt>"]
["</playerRecord>"]
["<playerRecord>"]
["<name>Player9</name>"]
["<number>14129</number>"]
["<teamRating>100</teamRating>"]
["<touchDowns>13</touchDowns>"]
["<badlyHurt>1</badlyHurt>"]
["</playerRecord>"]
["</game>"]
["<game>"]
["<timestamp>2016-09-18 03:00</timestamp>"]
["<playerRecord>"]
["<name>Player14</name>"]
["<number>9080</number>"]
["<teamRating>100</teamRating>"]
["<touchDowns>10</touchDowns>"]
["<badlyHurt>1</badlyHurt>"]
["</playerRecord>"]
["<playerRecord>"]
["<name>Mike</name>"]
["<number>10468</number>"]
["<teamRating>100</teamRating>"]
["<touchDowns>9</touchDowns>"]
["<badlyHurt>1</badlyHurt>"]
["</playerRecord>"]
["</game>"]
["<game>"]
["<timestamp>2016-09-18 04:00</timestamp>"]
["<playerRecord>"]
["<name>Alex</name>"]
["<number>16761</number>"]
["<teamRating>100</teamRating>"]
["<touchDowns>9</touchDowns>"]
["<badlyHurt>2</badlyHurt>"]
["</playerRecord>"]
["<playerRecord>"]
["<name>Player6</name>"]
["<number>18136</number>"]
["<teamRating>100</teamRating>"]
["<touchDowns>12</touchDowns>"]
["<badlyHurt>3</badlyHurt>"]
["</playerRecord>"]
["</game>"]
["<game>"]
["<timestamp>2016-09-18 04:00</timestamp>"]
["<playerRecord>"]
["<name>Player5</name>"]
["<number>12789</number>"]
["<teamRating>100</teamRating>"]
["<touchDowns>12</touchDowns>"]
["<badlyHurt>1</badlyHurt>"]
["</playerRecord>"]
["<playerRecord>"]
["<name>Player17</name>"]
["<number>7106</number>"]
["<teamRating>100</teamRating>"]
["<touchDowns>4</touchDowns>"]
["<badlyHurt>0</badlyHurt>"]
["</playerRecord>"]
["</game>"]
["<game>"]
["<timestamp>2016-09-18 04:00</timestamp>"]
["<playerRecord>"]
["<name>Player18</name>"]
["<number>7371</number>"]
["<teamRating>100</teamRating>"]
["<touchDowns>16</touchDowns>"]
["<badlyHurt>2</badlyHurt>"]
["</playerRecord>"]
["<playerRecord>"]
["<name>Linus</name>"]
["<number>15676</number>"]
["<teamRating>100</teamRating>"]
["<touchDowns>8</touchDowns>"]
["<badlyHurt>1</badlyHurt>"]
["</playerRecord>"]
["</game>"]
["<game>"]
["<timestamp>2016-09-18 04:00</timestamp>"]
["<playerRecord>"]
["<name>Player10</name>"]
["<number>1739</number>"]
["<teamRating>100</teamRating>"]
["<touchDowns>5</touchDowns>"]
["<badlyHurt>0</badlyHurt>"]
["</playerRecord>"]
["<playerRecord>"]
["<name>Player13</name>"]
["<number>6092</number>"]
["<teamRating>100</teamRating>"]
["<touchDowns>15</touchDowns>"]
["<badlyHurt>3</badlyHurt>"]
["</playerRecord>"]
["</game>"]
["<game>"]
["<timestamp>2016-09-18 04:00</timestamp>"]
["<playerRecord>"]
["<name>Player7</name>"]
["<number>9672</number>"]
["<teamRating>100</teamRating>"]
["<touchDowns>11</touchDowns>"]
["<badlyHurt>2</badlyHurt>"]
["</playerRecord>"]
["<playerRecord>"]
["<name>Player4</name>"]
["<number>9106</number>"]
["<teamRating>100</teamRating>"]
["<touchDowns>7</touchDowns>"]
["<badlyHurt>1</badlyHurt>"]
["</playerRecord>"]
["</game>"]
["<game>"]
["<timestamp>2016-09-18 04:00</timestamp>"]
["<playerRecord>"]
["<name>Player15</name>"]
["<number>7960</number>"]
["<teamRating>100</teamRating>"]
["<touchDowns>16</touchDowns>"]
["<badlyHurt>3</badlyHurt>"]
["</playerRecord>"]
["<playerRecord>"]
["<name>Player11</name>"]
["<number>19602</number>"]
["<teamRating>100</teamRating>"]
["<touchDowns>8</touchDowns>"]
["<badlyHurt>1</badlyHurt>"]
["</playerRecord>"]
["</game>"]
["<game>"]
["<timestamp>2016-09-18 04:00</timestamp>"]
["<playerRecord>"]
["<name>Player9</name>"]
["<number>14129</number>"]
["<teamRating>100</teamRating>"]
["<touchDowns>13</touchDowns>"]
["<badlyHurt>2</badlyHurt>"]
["</playerRecord>"]
["<playerRecord>"]
["<name>Player16</name>"]
["<number>15062</number>"]
["<teamRating>100</teamRating>"]
["<touchDowns>9</touchDowns>"]
["<badlyHurt>1</badlyHurt>"]
["</playerRecord>"]
["</game>"]
["<game>"]
["<timestamp>2016-09-18 04:00</timestamp>"]
["<playerRecord>"]
["<name>Player14</name>"]
["<number>9080</number>"]
["<teamRating>100</teamRating>"]
["<touchDowns>17</touchDowns>"]
["<badlyHurt>3</badlyHurt>"]
["</playerRecord>"]
["<playerRecord>"]
["<name>Player8</name>"]
["<number>4118</number>"]
["<teamRating>100</teamRating>"]
["<touchDowns>6</touchDowns>"]
["<badlyHurt>1</badlyHurt>"]
["</playerRecord>"]
["</game>"]
["<game>"]
["<timestamp>2016-09-18 04:00</timestamp>"]
["<playerRecord>"]
["<name>Mike</name>"]
["<number>10468</number>"]
["<teamRating>100</teamRating>"]
["<touchDowns>5</touchDowns>"]
["<badlyHurt>1</badlyHurt>"]
["</playerRecord>"]
["<playerRecord>"]
["<name>Player12</name>"]
["<number>15064</number>"]
["<teamRating>100</teamRating>"]
["<touchDowns>12</touchDowns>"]
["<badlyHurt>2</badlyHurt>"]
["</playerRecord>"]
["</game>"]
["<game>"]
["<timestamp>2016-09-18 05:00</timestamp>"]
["<playerRecord>"]
["<name>Player18</name>"]
["<number>7371</number>"]
["<teamRating>100</teamRating>"]
["<touchDowns>6</touchDowns>"]
["<badlyHurt>1</badlyHurt>"]
["</playerRecord>"]
["<playerRecord>"]
["<name>Player5</name>"]
["<number>12789</number>"]
["<teamRating>100</teamRating>"]
["<touchDowns>13</touchDowns>"]
["<badlyHurt>2</badlyHurt>"]
["</playerRecord>"]
["</game>"]
["<game>"]
["<timestamp>2016-09-18 05:00</timestamp>"]
["<playerRecord>"]
["<name>Player6</name>"]
["<number>18136</number>"]
["<teamRating>100</teamRating>"]
["<touchDowns>20</touchDowns>"]
["<badlyHurt>3</badlyHurt>"]
["</playerRecord>"]
["<playerRecord>"]
["<name>Player13</name>"]
["<number>6092</number>"]
["<teamRating>100</teamRating>"]
["<touchDowns>7</touchDowns>"]
["<badlyHurt>0</badlyHurt>"]
["</playerRecord>"]
["</game>"]
["<game>"]
["<timestamp>2016-09-18 05:00</timestamp>"]
["<playerRecord>"]
["<name>Alex</name>"]
["<number>16761</number>"]
["<teamRating>100</teamRating>"]
["<touchDowns>16</touchDowns>"]
["<badlyHurt>3</badlyHurt>"]
["</playerRecord>"]
["<playerRecord>"]
["<name>Player15</name>"]
["<number>7960</number>"]
["<teamRating>100</teamRating>"]
["<touchDowns>6</touchDowns>"]
["<badlyHurt>0</badlyHurt>"]
["</playerRecord>"]
["</game>"]
["<game>"]
["<timestamp>2016-09-18 05:00</timestamp>"]
["<playerRecord>"]
["<name>Player7</name>"]
["<number>9672</number>"]
["<teamRating>100</teamRating>"]
["<touchDowns>8</touchDowns>"]
["<badlyHurt>1</badlyHurt>"]
["</playerRecord>"]
["<playerRecord>"]
["<name>Player17</name>"]
["<number>7106</number>"]
["<teamRating>100</teamRating>"]
["<touchDowns>11</touchDowns>"]
["<badlyHurt>2</badlyHurt>"]
["</playerRecord>"]
["</game>"]
["<game>"]
["<timestamp>2016-09-18 05:00</timestamp>"]
["<playerRecord>"]
["<name>Player14</name>"]
["<number>9080</number>"]
["<teamRating>100</teamRating>"]
["<touchDowns>9</touchDowns>"]
["<badlyHurt>1</badlyHurt>"]
["</playerRecord>"]
["<playerRecord>"]
["<name>Player9</name>"]
["<number>14129</number>"]
["<teamRating>100</teamRating>"]
["<touchDowns>17</touchDowns>"]
["<badlyHurt>3</badlyHurt>"]
["</playerRecord>"]
["</game>"]
["<game>"]
["<timestamp>2016-09-18 05:00</timestamp>"]
["<playerRecord>"]
["<name>Linus</name>"]
["<number>15676</number>"]
["<teamRating>100</teamRating>"]
["<touchDowns>9</touchDowns>"]
["<badlyHurt>1</badlyHurt>"]
["</playerRecord>"]
["<playerRecord>"]
["<name>Player4</name>"]
["<number>9106</number>"]
["<teamRating>100</teamRating>"]
["<touchDowns>7</touchDowns>"]
["<badlyHurt>1</badlyHurt>"]
["</playerRecord>"]
["</game>"]
["<game>"]
["<timestamp>2016-09-18 05:00</timestamp>"]
["<playerRecord>"]
["<name>Player10</name>"]
["<number>1739</number>"]
["<teamRating>100</teamRating>"]
["<touchDowns>12</touchDowns>"]
["<badlyHurt>2</badlyHurt>"]
["</playerRecord>"]
["<playerRecord>"]
["<name>Player12</name>"]
["<number>15064</number>"]
["<teamRating>100</teamRating>"]
["<touchDowns>6</touchDowns>"]
["<badlyHurt>1</badlyHurt>"]
["</playerRecord>"]
["</game>"]
["<game>"]
["<timestamp>2016-09-18 05:00</timestamp>"]
["<playerRecord>"]
["<name>Player16</name>"]
["<number>15062</number>"]
["<teamRating>100</teamRating>"]
["<touchDowns>11</touchDowns>"]
["<badlyHurt>3</badlyHurt>"]
["</playerRecord>"]
["<playerRecord>"]
["<name>Player8</name>"]
["<number>4118</number>"]
["<teamRating>100</teamRating>"]
["<touchDowns>4</touchDowns>"]
["<badlyHurt>2</badlyHurt>"]
["</playerRecord>"]
["</game>"]
["<game>"]
["<timestamp>2016-09-18 05:00</timestamp>"]
["<playerRecord>"]
["<name>Mike</name>"]
["<number>10468</number>"]
["<teamRating>100</teamRating>"]
["<touchDowns>9</touchDowns>"]
["<badlyHurt>3</badlyHurt>"]
["</playerRecord>"]
["<playerRecord>"]
["<name>Player11</name>"]
["<number>19602</number>"]
["<teamRating>100</teamRating>"]
["<touchDowns>12</touchDowns>"]
["<badlyHurt>3</badlyHurt>"]
["</playerRecord>"]
["</game>"]
["</nafReport>"]

{"sheet":"Working","index":20,"n_rows":40,"n_cols":34,"rows_kept":40,"cut":false,"hidden":false,"merged":[]}
[null,null,null,null,null,null,null,null,null,null,null,null,null,null,null,null,null,null,null,null,null,null,null,null,null,"Latest Rd:",1]
[null,null,null,null,null,null,null,null,null,null,null,null,null,null,null,null,null,null,null,null,null,null,null,null,null,"Players:",{"$f":"COUNTA(Players!B:B)-1","v":14},null,null,null,"Max Score",{"$f":"Setup!B19*TeamSize*Setup!B19+Setup!B19","v":18}]
[null,null,null,null,null,null,null,null,null,null,null,null,null,null,null,null,null,null,null,null,null,null,null,null,null,"Display",14,"Columns"]
[null,null,null,null,null,null,null,null,null,null,null,null,null,null,null,null,null,null,null,null,null,null,null,null,null,"Enter",7,"Columns"]
[null,null,null,null,null,null,null,null,null,null,null,null,null,null,null,null,null,null,null,null,null,null,null,null,null,"Max random",3]
[null,null,null,null,null,null,null,null,null,null,null,null,null,null,null,null,null,null,null,null,null,null,null,null,null,"Number of Groups",{"$f":"COUNTA(Players!M:M)-1","v":8},null,null,null,"Group"]
[null,null,null,null,null,null,null,null,null,null,null,null,null,null,null,null,null,null,null,null,null,null,null,null,null,null,null,null,null,null,"Individual"]
[null,null,null,null,null,null,null,null,null,null,null,null,null,null,null,null,null,null,null,null,null,null,null,null,null,"Group display",18,"columns"]
[]
[null,null,null,null,null,null,null,null,null,null,null,null,null,null,null,null,null,null,null,null,null,null,null,null,null,null,null,null,"Cumulative"]
[null,null,null,null,null,null,null,null,null,null,null,null,null,null,null,null,null,null,null,null,null,null,null,null,null,null,"Amazon",null,null,null,null,null,"Entry Data"]
[null,null,null,null,null,null,null,null,null,null,null,null,null,null,null,null,null,null,null,null,null,null,null,null,null,null,"Black Orc",null,null,null,"Initial Display Columns",null,"Player"]
[null,null,null,null,null,null,null,null,null,null,null,null,null,null,null,null,null,null,null,null,null,null,null,null,null,null,"Bretonnian",null,null,null,"Player",null,"Points"]
[null,null,null,null,null,null,null,null,null,null,null,null,null,null,null,null,null,null,null,null,null,null,null,null,null,null,"Chaos Chosen",null,null,null,"Points",null,"TD"]
[null,null,null,null,null,null,null,null,null,null,null,null,null,null,null,null,null,null,null,null,null,null,null,null,null,null,"Chaos Dwarf",null,null,null,"TD For",null,"Cas"]
[null,null,null,null,null,null,null,null,null,null,null,null,null,null,null,null,null,null,null,null,null,null,null,null,null,null,"Chaos Renegade",null,null,null,"Cas For",null,{"$f":"Setup!E3","v":"Bonus1"},"Bonus1 Name"]
[null,null,null,null,null,null,null,null,null,null,null,null,null,null,null,null,null,null,null,null,null,null,null,null,null,null,"Dark Elf",null,null,null,{"$f":"Working!AG16","v":"Bonus1"},null,{"$f":"Setup!E4","v":"Bonus2"},"Bonus2 Name"]
[null,null,null,null,null,null,null,null,null,null,null,null,null,null,null,null,null,null,null,null,null,null,null,null,null,null,"Daemons of Khorne",null,null,null,{"$f":"Working!AG17","v":"Bonus2"},null,"Group"]
[null,null,null,null,null,null,null,null,null,null,null,null,null,null,null,null,null,null,null,null,null,null,null,null,null,null,"Dwarf",null,null,null,"TD Against"]
[null,null,null,null,null,null,null,null,null,null,null,null,null,null,null,null,null,null,null,null,null,null,null,null,null,null,"Elf Union",null,null,null,"Cas Against"]
[null,null,null,null,null,null,null,null,null,null,null,null,null,null,null,null,null,null,null,null,null,null,null,null,null,null,"Goblin",null,null,null,"TD Net"]
[null,null,null,null,null,null,null,null,null,null,null,null,null,null,null,null,null,null,null,null,null,null,null,null,null,null,"Halfling",null,null,null,"Cas Net"]
[null,null,null,null,null,null,null,null,null,null,null,null,null,null,null,null,null,null,null,null,null,null,null,null,null,null,"High Elf",null,null,null,"Wins"]
[null,null,null,null,null,null,null,null,null,null,null,null,null,null,null,null,null,null,null,null,null,null,null,null,null,null,"Human",null,null,null,"Draws"]
[null,null,null,null,null,null,null,null,null,null,null,null,null,null,null,null,null,null,null,null,null,null,null,null,null,null,"Imperial Nobility",null,null,null,"Losses"]
[null,null,null,null,null,null,null,null,null,null,null,null,null,null,null,null,null,null,null,null,null,null,null,null,null,null,"Lizardmen",null,null,null,"Opp Score"]
[null,null,null,null,null,null,null,null,null,null,null,null,null,null,null,null,null,null,null,null,null,null,null,null,null,null,"Necromantic Horror",null,null,null,"Group"]
[null,null,null,null,null,null,null,null,null,null,null,null,null,null,null,null,null,null,null,null,null,null,null,null,null,null,"Norse",null,null,null,"Accelerated"]
[null,null,null,null,null,null,null,null,null,null,null,null,null,null,null,null,null,null,null,null,null,null,null,null,null,null,"Nurgle"]
[null,null,null,null,null,null,null,null,null,null,null,null,null,null,null,null,null,null,null,null,null,null,null,null,null,null,"Ogre"]
[null,null,null,null,null,null,null,null,null,null,null,null,null,null,null,null,null,null,null,null,null,null,null,null,null,null,"Old World Alliance"]
[null,null,null,null,null,null,null,null,null,null,null,null,null,null,null,null,null,null,null,null,null,null,null,null,null,null,"Orc"]
[null,null,null,null,null,null,null,null,null,null,null,null,null,null,null,null,null,null,null,null,null,null,null,null,null,null,"Shambling Undead"]
[null,null,null,null,null,null,null,null,null,null,null,null,null,null,null,null,null,null,null,null,null,null,null,null,null,null,"Skaven"]
[null,null,null,null,null,null,null,null,null,null,null,null,null,null,null,null,null,null,null,null,null,null,null,null,null,null,"Slann"]
[null,null,null,null,null,null,null,null,null,null,null,null,null,null,null,null,null,null,null,null,null,null,null,null,null,null,"Snotling"]
[null,null,null,null,null,null,null,null,null,null,null,null,null,null,null,null,null,null,null,null,null,null,null,null,null,null,"Tomb Kings"]
[null,null,null,null,null,null,null,null,null,null,null,null,null,null,null,null,null,null,null,null,null,null,null,null,null,null,"Underworld Denizens"]
[null,null,null,null,null,null,null,null,null,null,null,null,null,null,null,null,null,null,null,null,null,null,null,null,null,null,"Vampire"]
[null,null,null,null,null,null,null,null,null,null,null,null,null,null,null,null,null,null,null,null,null,null,null,null,null,null,"Wood Elf"]

{"sheet":"ChangeLog","index":21,"n_rows":37,"n_cols":4,"rows_kept":37,"cut":false,"hidden":false,"merged":[]}
[null,"This spreadsheet is based on one by Kaper on an Excel forum: http://www.excelforum.com/excel-programming-vba-macros/1105569-swiss-pairing-algorithm-in-excel-to-organize-a-chess-tournament.html"]
[null,"Massive thanks due to him!"]
[null,"The original was used for Chess, and it has been adapted to work for Blood Bowl by sann0638 (Mike Davies)"]
[]
["Version","Summary","Date","Notes"]
["1.0","Multi-sheet version of the chess","2016-06-19"]
[1.1000000000000001,"Remove Black and White stuff","2016-06-19"]
[1.2,"Change to TDs to generate points","2016-06-19"]
[null,"Got the Swiss working properly","2016-06-19","Published."]
[1.3,"More help information.","2016-06-20"]
[null,"Added Table","2016-06-20"]
[null,"Added Opponent Score","2016-06-20"]
[2.1,"Big overhaul to where info stored","2016-06-21"]
[2.2000000000000002,"Putting in the Score formula","2016-06-21","Published."]
[3.1,"Added all tiebreaker columns","2016-06-22"]
[null,"Realised opponent score was wrong, fixed it.","2016-06-22"]
[3.2,"Fixed problem with sorting the table.","2016-06-23","Published."]
[3.3,"Tiebreakers implemented","2016-06-24"]
[null,"NAF Upload file","2016-06-24","Published."]
[4.0999999999999996,"Group results and matrix added","2016-06-25"]
[null,"Group results fully implemented","2016-06-26"]
[4.2,"Fixed net casualties","2016-06-28"]
[4.3,"Tiebreakers corrected, yet again!","2016-09-17","Published."]
[4.4000000000000004,"Group results corrected, groups added to table","2016-09-17"]
[null,"Removed need for Groups to be in there, corrected number of players.","2016-09-18","Published."]
["5.0","Mostly working Group Swiss","2016-09-21"]
[5.0999999999999996,"Working Group Swiss.","2016-09-21","Published."]
[5.2,"Fixed problem with more than 100 coaches.","2016-09-25"]
[null,"Tidied up tabs.","2016-09-25","Published."]
[7.1,"Back to playing – added in a tab to show the Stunty Cup. Spent some time trying to add in extra Bonuses, but there were too many knock-on effects, so parked that one.  2 should be enough for people!"]
[8,"Getting sorted for Eurobowl 2018.  Added a Presentation tab for putting on websites and the like and also for printing to enter results, plus some colour coding."]
[9.1,"Post Eurobowl 2018. A variable was needed to be restated to allow pauses between running the various macros."]
[9.1999999999999993,"Cleaned up the variables a bit.  Getting ready for Eurobowl/Europen 2020 in Poland!","2020-03-01","Published."]
[9.3000000000000007,"Various tweaks following Bob feedback","2020-03-12"]
[null,"Accelerated Swiss implemented, though currently it takes the point away after 2 rounds"]
[null,"Presentation made variable size for team size"]
[10.1,"Blood Bowl 2020!","2021-04-06","Published."]